Workbook

Sheet Data for map
A1: area_fips | B1: SumOfAllIndust | C1: Outdoor workers | D1: Percentage
A2: 01000 | B2: =_xlfn.XLOOKUP(A2,'Total covered original data'!A:A,'Total covered original data'!G:G) -> 9851616 | C2: =_xlfn.XLOOKUP(A2,'Outdoor original data'!A:A,'Outdoor original data'!G:G) -> 864141 | D2: =C2/B2 -> 0.08771566005
A3: 01001 | B3: =_xlfn.XLOOKUP(A3,'Total covered original data'!A:A,'Total covered original data'!G:G) -> 55533 | C3: =_xlfn.XLOOKUP(A3,'Outdoor original data'!A:A,'Outdoor original data'!G:G) -> 4623 | D3: =C3/B3 -> 0.08324779861
A4: 01003 | B4: =_xlfn.XLOOKUP(A4,'Total covered original data'!A:A,'Total covered original data'!G:G) -> 380075 | C4: =_xlfn.XLOOKUP(A4,'Outdoor original data'!A:A,'Outdoor original data'!G:G) -> 31294 | D4: 0.08233638098
A5: 01005 | B5: =_xlfn.XLOOKUP(A5,'Total covered original data'!A:A,'Total covered original data'!G:G) -> 39829 | C5: =_xlfn.XLOOKUP(A5,'Outdoor original data'!A:A,'Outdoor original data'!G:G) -> 4308 | D5: 0.1081623942
A6: 01007 | B6: =_xlfn.XLOOKUP(A6,'Total covered original data'!A:A,'Total covered original data'!G:G) -> 23062 | C6: =_xlfn.XLOOKUP(A6,'Outdoor original data'!A:A,'Outdoor original data'!G:G) -> 4016 | D6: 0.1741392767
A7: 01009 | B7: =_xlfn.XLOOKUP(A7,'Total covered original data'!A:A,'Total covered original data'!G:G) -> 42849 | C7: =_xlfn.XLOOKUP(A7,'Outdoor original data'!A:A,'Outdoor original data'!G:G) -> 3680 | D7: 0.08588298443
A8: 01011 | B8: =_xlfn.XLOOKUP(A8,'Total covered original data'!A:A,'Total covered original data'!G:G) -> 14360 | C8: =_xlfn.XLOOKUP(A8,'Outdoor original data'!A:A,'Outdoor original data'!G:G) -> 689 | D8: 0.04798050139
A9: 01013 | B9: =_xlfn.XLOOKUP(A9,'Total covered original data'!A:A,'Total covered original data'!G:G) -> 33106 | C9: =_xlfn.XLOOKUP(A9,'Outdoor original data'!A:A,'Outdoor original data'!G:G) -> 2707 | D9: 0.08176765541
A10: 01015 | B10: =_xlfn.XLOOKUP(A10,'Total covered original data'!A:A,'Total covered original data'!G:G) -> 219167 | C10: =_xlfn.XLOOKUP(A10,'Outdoor original data'!A:A,'Outdoor original data'!G:G) -> 10251 | D10: 0.04677255244
A11: 01017 | B11: =_xlfn.XLOOKUP(A11,'Total covered original data'!A:A,'Total covered original data'!G:G) -> 41995 | C11: =_xlfn.XLOOKUP(A11,'Outdoor original data'!A:A,'Outdoor original data'!G:G) -> 2852 | D11: 0.06791284677
A12: 01019 | B12: =_xlfn.XLOOKUP(A12,'Total covered original data'!A:A,'Total covered original data'!G:G) -> 25877 | C12: =_xlfn.XLOOKUP(A12,'Outdoor original data'!A:A,'Outdoor original data'!G:G) -> 1716 | D12: 0.06631371488
A13: 01021 | B13: =_xlfn.XLOOKUP(A13,'Total covered original data'!A:A,'Total covered original data'!G:G) -> 46186 | C13: =_xlfn.XLOOKUP(A13,'Outdoor original data'!A:A,'Outdoor original data'!G:G) -> 3473 | D13: 0.07519594682
A14: 01023 | B14: =_xlfn.XLOOKUP(A14,'Total covered original data'!A:A,'Total covered original data'!G:G) -> 17881 | C14: =_xlfn.XLOOKUP(A14,'Outdoor original data'!A:A,'Outdoor original data'!G:G) -> 1124 | D14: 0.06286001901
A15: 01025 | B15: =_xlfn.XLOOKUP(A15,'Total covered original data'!A:A,'Total covered original data'!G:G) -> 40067 | C15: =_xlfn.XLOOKUP(A15,'Outdoor original data'!A:A,'Outdoor original data'!G:G) -> 3194 | D15: 0.0797164749
A16: 01027 | B16: =_xlfn.XLOOKUP(A16,'Total covered original data'!A:A,'Total covered original data'!G:G) -> 21425 | C16: =_xlfn.XLOOKUP(A16,'Outdoor original data'!A:A,'Outdoor original data'!G:G) -> 963 | D16: 0.04494749125
A17: 01029 | B17: =_xlfn.XLOOKUP(A17,'Total covered original data'!A:A,'Total covered original data'!G:G) -> 10944 | C17: =_xlfn.XLOOKUP(A17,'Outdoor original data'!A:A,'Outdoor original data'!G:G) -> 1512 | D17: 0.1381578947
A18: 01031 | B18: =_xlfn.XLOOKUP(A18,'Total covered original data'!A:A,'Total covered original data'!G:G) -> 81180 | C18: =_xlfn.XLOOKUP(A18,'Outdoor original data'!A:A,'Outdoor original data'!G:G) -> 4938 | D18: 0.0608277901
A19: 01033 | B19: =_xlfn.XLOOKUP(A19,'Total covered original data'!A:A,'Total covered original data'!G:G) -> 118768 | C19: =_xlfn.XLOOKUP(A19,'Outdoor original data'!A:A,'Outdoor original data'!G:G) -> 12346 | D19: 0.1039505591
A20: 01035 | B20: =_xlfn.XLOOKUP(A20,'Total covered original data'!A:A,'Total covered original data'!G:G) -> 16586 | C20: =_xlfn.XLOOKUP(A20,'Outdoor original data'!A:A,'Outdoor original data'!G:G) -> 624 | D20: 0.03762209092
A21: 01037 | B21: =_xlfn.XLOOKUP(A21,'Total covered original data'!A:A,'Total covered original data'!G:G) -> 6919 | C21: =_xlfn.XLOOKUP(A21,'Outdoor original data'!A:A,'Outdoor original data'!G:G) -> 512 | D21: 0.07399913282
A22: 01039 | B22: =_xlfn.XLOOKUP(A22,'Total covered original data'!A:A,'Total covered original data'!G:G) -> 59993 | C22: =_xlfn.XLOOKUP(A22,'Outdoor original data'!A:A,'Outdoor original data'!G:G) -> 5922 | D22: 0.09871151634
A23: 01041 | B23: =_xlfn.XLOOKUP(A23,'Total covered original data'!A:A,'Total covered original data'!G:G) -> 17440 | C23: =_xlfn.XLOOKUP(A23,'Outdoor original data'!A:A,'Outdoor original data'!G:G) -> 1378 | D23: 0.07901376147
A24: 01043 | B24: =_xlfn.XLOOKUP(A24,'Total covered original data'!A:A,'Total covered original data'!G:G) -> 145126 | C24: =_xlfn.XLOOKUP(A24,'Outdoor original data'!A:A,'Outdoor original data'!G:G) -> 8202 | D24: 0.05651640643
A25: 01045 | B25: =_xlfn.XLOOKUP(A25,'Total covered original data'!A:A,'Total covered original data'!G:G) -> 86076 | C25: =_xlfn.XLOOKUP(A25,'Outdoor original data'!A:A,'Outdoor original data'!G:G) -> 3801 | D25: 0.04415865049
A26: 01047 | B26: =_xlfn.XLOOKUP(A26,'Total covered original data'!A:A,'Total covered original data'!G:G) -> 58714 | C26: =_xlfn.XLOOKUP(A26,'Outdoor original data'!A:A,'Outdoor original data'!G:G) -> 3841 | D26: 0.06541880982
A27: 01049 | B27: =_xlfn.XLOOKUP(A27,'Total covered original data'!A:A,'Total covered original data'!G:G) -> 110126 | C27: =_xlfn.XLOOKUP(A27,'Outdoor original data'!A:A,'Outdoor original data'!G:G) -> 4092 | D27: 0.03715743784
A28: 01051 | B28: =_xlfn.XLOOKUP(A28,'Total covered original data'!A:A,'Total covered original data'!G:G) -> 98801 | C28: =_xlfn.XLOOKUP(A28,'Outdoor original data'!A:A,'Outdoor original data'!G:G) -> 9380 | D28: 0.09493831034
A29: 01053 | B29: =_xlfn.XLOOKUP(A29,'Total covered original data'!A:A,'Total covered original data'!G:G) -> 62612 | C29: =_xlfn.XLOOKUP(A29,'Outdoor original data'!A:A,'Outdoor original data'!G:G) -> 6358 | D29: 0.1015460295
A30: 01055 | B30: =_xlfn.XLOOKUP(A30,'Total covered original data'!A:A,'Total covered original data'!G:G) -> 167711 | C30: =_xlfn.XLOOKUP(A30,'Outdoor original data'!A:A,'Outdoor original data'!G:G) -> 6860 | D30: 0.04090369743
A31: 01057 | B31: =_xlfn.XLOOKUP(A31,'Total covered original data'!A:A,'Total covered original data'!G:G) -> 19842 | C31: =_xlfn.XLOOKUP(A31,'Outdoor original data'!A:A,'Outdoor original data'!G:G) -> 1592 | D31: 0.08023384739
A32: 01059 | B32: =_xlfn.XLOOKUP(A32,'Total covered original data'!A:A,'Total covered original data'!G:G) -> 54284 | C32: =_xlfn.XLOOKUP(A32,'Outdoor original data'!A:A,'Outdoor original data'!G:G) -> 2279 | D32: 0.04198290472
A33: 01061 | B33: =_xlfn.XLOOKUP(A33,'Total covered original data'!A:A,'Total covered original data'!G:G) -> 25685 | C33: =_xlfn.XLOOKUP(A33,'Outdoor original data'!A:A,'Outdoor original data'!G:G) -> 2103 | D33: 0.08187658166
A34: 01063 | B34: =_xlfn.XLOOKUP(A34,'Total covered original data'!A:A,'Total covered original data'!G:G) -> 8845 | C34: =_xlfn.XLOOKUP(A34,'Outdoor original data'!A:A,'Outdoor original data'!G:G) -> 441 | D34: 0.04985867722
A35: 01065 | B35: =_xlfn.XLOOKUP(A35,'Total covered original data'!A:A,'Total covered original data'!G:G) -> 13016 | C35: =_xlfn.XLOOKUP(A35,'Outdoor original data'!A:A,'Outdoor original data'!G:G) -> 1358 | D35: 0.1043331285
A36: 01067 | B36: =_xlfn.XLOOKUP(A36,'Total covered original data'!A:A,'Total covered original data'!G:G) -> 17579 | C36: =_xlfn.XLOOKUP(A36,'Outdoor original data'!A:A,'Outdoor original data'!G:G) -> 2971 | D36: 0.169008476
A37: 01069 | B37: =_xlfn.XLOOKUP(A37,'Total covered original data'!A:A,'Total covered original data'!G:G) -> 241941 | C37: =_xlfn.XLOOKUP(A37,'Outdoor original data'!A:A,'Outdoor original data'!G:G) -> 11587 | D37: 0.0478918414
A38: 01071 | B38: =_xlfn.XLOOKUP(A38,'Total covered original data'!A:A,'Total covered original data'!G:G) -> 76346 | C38: =_xlfn.XLOOKUP(A38,'Outdoor original data'!A:A,'Outdoor original data'!G:G) -> 3627 | D38: 0.04750740052
A39: 01073 | B39: =_xlfn.XLOOKUP(A39,'Total covered original data'!A:A,'Total covered original data'!G:G) -> 1745334 | C39: =_xlfn.XLOOKUP(A39,'Outdoor original data'!A:A,'Outdoor original data'!G:G) -> 156912 | D39: 0.08990370897
A40: 01075 | B40: =_xlfn.XLOOKUP(A40,'Total covered original data'!A:A,'Total covered original data'!G:G) -> 16915 | C40: =_xlfn.XLOOKUP(A40,'Outdoor original data'!A:A,'Outdoor original data'!G:G) -> 645 | D40: 0.03813183565
A41: 01077 | B41: =_xlfn.XLOOKUP(A41,'Total covered original data'!A:A,'Total covered original data'!G:G) -> 146286 | C41: =_xlfn.XLOOKUP(A41,'Outdoor original data'!A:A,'Outdoor original data'!G:G) -> 8904 | D41: 0.06086706862
A42: 01079 | B42: =_xlfn.XLOOKUP(A42,'Total covered original data'!A:A,'Total covered original data'!G:G) -> 24841 | C42: =_xlfn.XLOOKUP(A42,'Outdoor original data'!A:A,'Outdoor original data'!G:G) -> 2649 | D42: 0.1066382191
A43: 01081 | B43: =_xlfn.XLOOKUP(A43,'Total covered original data'!A:A,'Total covered original data'!G:G) -> 298039 | C43: =_xlfn.XLOOKUP(A43,'Outdoor original data'!A:A,'Outdoor original data'!G:G) -> 19547 | D43: 0.06558537641
A44: 01083 | B44: =_xlfn.XLOOKUP(A44,'Total covered original data'!A:A,'Total covered original data'!G:G) -> 127087 | C44: =_xlfn.XLOOKUP(A44,'Outdoor original data'!A:A,'Outdoor original data'!G:G) -> 20007 | D44: 0.157427589
A45: 01085 | B45: =_xlfn.XLOOKUP(A45,'Total covered original data'!A:A,'Total covered original data'!G:G) -> 11784 | C45: =_xlfn.XLOOKUP(A45,'Outdoor original data'!A:A,'Outdoor original data'!G:G) -> 609 | D45: 0.0516802444
A46: 01087 | B46: =_xlfn.XLOOKUP(A46,'Total covered original data'!A:A,'Total covered original data'!G:G) -> 22817 | C46: =_xlfn.XLOOKUP(A46,'Outdoor original data'!A:A,'Outdoor original data'!G:G) -> 672 | D46: 0.02945172459
A47: 01089 | B47: =_xlfn.XLOOKUP(A47,'Total covered original data'!A:A,'Total covered original data'!G:G) -> 1036127 | C47: =_xlfn.XLOOKUP(A47,'Outdoor original data'!A:A,'Outdoor original data'!G:G) -> 53761 | D47: 0.05188649654
A48: 01091 | B48: =_xlfn.XLOOKUP(A48,'Total covered original data'!A:A,'Total covered original data'!G:G) -> 35455 | C48: =_xlfn.XLOOKUP(A48,'Outdoor original data'!A:A,'Outdoor original data'!G:G) -> 4188 | D48: 0.1181215625
A49: 01093 | B49: =_xlfn.XLOOKUP(A49,'Total covered original data'!A:A,'Total covered original data'!G:G) -> 51816 | C49: =_xlfn.XLOOKUP(A49,'Outdoor original data'!A:A,'Outdoor original data'!G:G) -> 1846 | D49: 0.03562606145
A50: 01095 | B50: =_xlfn.XLOOKUP(A50,'Total covered original data'!A:A,'Total covered original data'!G:G) -> 189318 | C50: =_xlfn.XLOOKUP(A50,'Outdoor original data'!A:A,'Outdoor original data'!G:G) -> 9239 | D50: 0.04880148744
A51: 01097 | B51: =_xlfn.XLOOKUP(A51,'Total covered original data'!A:A,'Total covered original data'!G:G) -> 849377 | C51: =_xlfn.XLOOKUP(A51,'Outdoor original data'!A:A,'Outdoor original data'!G:G) -> 80931 | D51: 0.09528277785
A52: 01099 | B52: =_xlfn.XLOOKUP(A52,'Total covered original data'!A:A,'Total covered original data'!G:G) -> 30918 | C52: =_xlfn.XLOOKUP(A52,'Outdoor original data'!A:A,'Outdoor original data'!G:G) -> 1994 | D52: 0.0644931755
A53: 01101 | B53: =_xlfn.XLOOKUP(A53,'Total covered original data'!A:A,'Total covered original data'!G:G) -> 641296 | C53: =_xlfn.XLOOKUP(A53,'Outdoor original data'!A:A,'Outdoor original data'!G:G) -> 54902 | D53: 0.0856110127
A54: 01103 | B54: =_xlfn.XLOOKUP(A54,'Total covered original data'!A:A,'Total covered original data'!G:G) -> 247646 | C54: =_xlfn.XLOOKUP(A54,'Outdoor original data'!A:A,'Outdoor original data'!G:G) -> 20373 | D54: 0.08226662252
A55: 01105 | B55: =_xlfn.XLOOKUP(A55,'Total covered original data'!A:A,'Total covered original data'!G:G) -> 9780 | C55: =_xlfn.XLOOKUP(A55,'Outdoor original data'!A:A,'Outdoor original data'!G:G) -> 554 | D55: 0.05664621677
A56: 01107 | B56: =_xlfn.XLOOKUP(A56,'Total covered original data'!A:A,'Total covered original data'!G:G) -> 18335 | C56: =_xlfn.XLOOKUP(A56,'Outdoor original data'!A:A,'Outdoor original data'!G:G) -> 2218 | D56: 0.1209708208
A57: 01109 | B57: =_xlfn.XLOOKUP(A57,'Total covered original data'!A:A,'Total covered original data'!G:G) -> 72953 | C57: =_xlfn.XLOOKUP(A57,'Outdoor original data'!A:A,'Outdoor original data'!G:G) -> 2500 | D57: 0.03426863871
A58: 01111 | B58: =_xlfn.XLOOKUP(A58,'Total covered original data'!A:A,'Total covered original data'!G:G) -> 23748 | C58: =_xlfn.XLOOKUP(A58,'Outdoor original data'!A:A,'Outdoor original data'!G:G) -> 1570 | D58: 0.06611083039
A59: 01113 | B59: =_xlfn.XLOOKUP(A59,'Total covered original data'!A:A,'Total covered original data'!G:G) -> 69105 | C59: =_xlfn.XLOOKUP(A59,'Outdoor original data'!A:A,'Outdoor original data'!G:G) -> 4615 | D59: 0.06678243253
A60: 01115 | B60: =_xlfn.XLOOKUP(A60,'Total covered original data'!A:A,'Total covered original data'!G:G) -> 97921 | C60: =_xlfn.XLOOKUP(A60,'Outdoor original data'!A:A,'Outdoor original data'!G:G) -> 10827 | D60: 0.1105687238
A61: 01117 | B61: =_xlfn.XLOOKUP(A61,'Total covered original data'!A:A,'Total covered original data'!G:G) -> 421082 | C61: =_xlfn.XLOOKUP(A61,'Outdoor original data'!A:A,'Outdoor original data'!G:G) -> 40171 | D61: 0.09539947089
A62: 01119 | B62: =_xlfn.XLOOKUP(A62,'Total covered original data'!A:A,'Total covered original data'!G:G) -> 14457 | C62: =_xlfn.XLOOKUP(A62,'Outdoor original data'!A:A,'Outdoor original data'!G:G) -> 633 | D62: 0.04378501764
A63: 01121 | B63: =_xlfn.XLOOKUP(A63,'Total covered original data'!A:A,'Total covered original data'!G:G) -> 148990 | C63: =_xlfn.XLOOKUP(A63,'Outdoor original data'!A:A,'Outdoor original data'!G:G) -> 10341 | D63: 0.06940734277
A64: 01123 | B64: =_xlfn.XLOOKUP(A64,'Total covered original data'!A:A,'Total covered original data'!G:G) -> 63920 | C64: =_xlfn.XLOOKUP(A64,'Outdoor original data'!A:A,'Outdoor original data'!G:G) -> 3058 | D64: 0.04784105131
A65: 01125 | B65: =_xlfn.XLOOKUP(A65,'Total covered original data'!A:A,'Total covered original data'!G:G) -> 466367 | C65: =_xlfn.XLOOKUP(A65,'Outdoor original data'!A:A,'Outdoor original data'!G:G) -> 34562 | D65: 0.07410901715
A66: 01127 | B66: =_xlfn.XLOOKUP(A66,'Total covered original data'!A:A,'Total covered original data'!G:G) -> 89475 | C66: =_xlfn.XLOOKUP(A66,'Outdoor original data'!A:A,'Outdoor original data'!G:G) -> 7254 | D66: 0.0810729254
A67: 01129 | B67: =_xlfn.XLOOKUP(A67,'Total covered original data'!A:A,'Total covered original data'!G:G) -> 17547 | C67: =_xlfn.XLOOKUP(A67,'Outdoor original data'!A:A,'Outdoor original data'!G:G) -> 1955 | D67: =C67/B67 -> 0.1114150567
A68: 01131 | B68: =_xlfn.XLOOKUP(A68,'Total covered original data'!A:A,'Total covered original data'!G:G) -> 13360 | C68: =_xlfn.XLOOKUP(A68,'Outdoor original data'!A:A,'Outdoor original data'!G:G) -> 1083 | D68: 0.08106287425
A69: 01133 | B69: =_xlfn.XLOOKUP(A69,'Total covered original data'!A:A,'Total covered original data'!G:G) -> 40362 | C69: =_xlfn.XLOOKUP(A69,'Outdoor original data'!A:A,'Outdoor original data'!G:G) -> 1177 | D69: 0.02916109212
A70: 01999 | B70: =_xlfn.XLOOKUP(A70,'Total covered original data'!A:A,'Total covered original data'!G:G) -> 309228 | C70: =_xlfn.XLOOKUP(A70,'Outdoor original data'!A:A,'Outdoor original data'!G:G) -> 30498 | D70: 0.09862625635
A71: 02000 | B71: =_xlfn.XLOOKUP(A71,'Total covered original data'!A:A,'Total covered original data'!G:G) -> 1561306 | C71: =_xlfn.XLOOKUP(A71,'Outdoor original data'!A:A,'Outdoor original data'!G:G) -> 211807 | D71: 0.1356601461
A72: 02013 | B72: =_xlfn.XLOOKUP(A72,'Total covered original data'!A:A,'Total covered original data'!G:G) -> 11318 | C72: =_xlfn.XLOOKUP(A72,'Outdoor original data'!A:A,'Outdoor original data'!G:G) -> 62 | D72: 0.005477999647
A73: 02016 | B73: =_xlfn.XLOOKUP(A73,'Total covered original data'!A:A,'Total covered original data'!G:G) -> 16129 | C73: =_xlfn.XLOOKUP(A73,'Outdoor original data'!A:A,'Outdoor original data'!G:G) -> 268 | D73: 0.01661603323
A74: 02020 | B74: =_xlfn.XLOOKUP(A74,'Total covered original data'!A:A,'Total covered original data'!G:G) -> 712534 | C74: =_xlfn.XLOOKUP(A74,'Outdoor original data'!A:A,'Outdoor original data'!G:G) -> 84016 | D74: 0.1179115663
A75: 02050 | B75: =_xlfn.XLOOKUP(A75,'Total covered original data'!A:A,'Total covered original data'!G:G) -> 33103 | C75: =_xlfn.XLOOKUP(A75,'Outdoor original data'!A:A,'Outdoor original data'!G:G) -> 1827 | D75: 0.05519137238
A76: 02060 | B76: =_xlfn.XLOOKUP(A76,'Total covered original data'!A:A,'Total covered original data'!G:G) -> 6071 | C76: =_xlfn.XLOOKUP(A76,'Outdoor original data'!A:A,'Outdoor original data'!G:G) -> 137 | D76: 0.0225662988
A77: 02063 | B77: =_xlfn.XLOOKUP(A77,'Total covered original data'!A:A,'Total covered original data'!G:G) -> 10416 | C77: =_xlfn.XLOOKUP(A77,'Outdoor original data'!A:A,'Outdoor original data'!G:G) -> 668 | D77: 0.06413210445
A78: 02066 | B78: =_xlfn.XLOOKUP(A78,'Total covered original data'!A:A,'Total covered original data'!G:G) -> 2985 | C78: =_xlfn.XLOOKUP(A78,'Outdoor original data'!A:A,'Outdoor original data'!G:G) -> 83 | D78: 0.02780569514
A79: 02068 | B79: =_xlfn.XLOOKUP(A79,'Total covered original data'!A:A,'Total covered original data'!G:G) -> 8376 | C79: =_xlfn.XLOOKUP(A79,'Outdoor original data'!A:A,'Outdoor original data'!G:G) -> 156 | D79: 0.01862464183
A80: 02070 | B80: =_xlfn.XLOOKUP(A80,'Total covered original data'!A:A,'Total covered original data'!G:G) -> 11166 | C80: =_xlfn.XLOOKUP(A80,'Outdoor original data'!A:A,'Outdoor original data'!G:G) -> 198 | D80: 0.01773240193
A81: 02090 | B81: =_xlfn.XLOOKUP(A81,'Total covered original data'!A:A,'Total covered original data'!G:G) -> 178346 | C81: =_xlfn.XLOOKUP(A81,'Outdoor original data'!A:A,'Outdoor original data'!G:G) -> 23054 | D81: 0.1292655849
A82: 02100 | B82: =_xlfn.XLOOKUP(A82,'Total covered original data'!A:A,'Total covered original data'!G:G) -> 4485 | C82: =_xlfn.XLOOKUP(A82,'Outdoor original data'!A:A,'Outdoor original data'!G:G) -> 521 | D82: 0.1161649944
A83: 02105 | B83: =_xlfn.XLOOKUP(A83,'Total covered original data'!A:A,'Total covered original data'!G:G) -> 4006 | C83: =_xlfn.XLOOKUP(A83,'Outdoor original data'!A:A,'Outdoor original data'!G:G) -> 95 | D83: 0.02371442836
A84: 02110 | B84: =_xlfn.XLOOKUP(A84,'Total covered original data'!A:A,'Total covered original data'!G:G) -> 83407 | C84: =_xlfn.XLOOKUP(A84,'Outdoor original data'!A:A,'Outdoor original data'!G:G) -> 8278 | D84: 0.09924826453
A85: 02122 | B85: =_xlfn.XLOOKUP(A85,'Total covered original data'!A:A,'Total covered original data'!G:G) -> 97956 | C85: =_xlfn.XLOOKUP(A85,'Outdoor original data'!A:A,'Outdoor original data'!G:G) -> 13819 | D85: 0.1410735432
A86: 02130 | B86: =_xlfn.XLOOKUP(A86,'Total covered original data'!A:A,'Total covered original data'!G:G) -> 34066 | C86: =_xlfn.XLOOKUP(A86,'Outdoor original data'!A:A,'Outdoor original data'!G:G) -> 2192 | D86: 0.06434568191
A87: 02150 | B87: =_xlfn.XLOOKUP(A87,'Total covered original data'!A:A,'Total covered original data'!G:G) -> 28240 | C87: =_xlfn.XLOOKUP(A87,'Outdoor original data'!A:A,'Outdoor original data'!G:G) -> 1391 | D87: 0.04925637394
A88: 02158 | B88: =_xlfn.XLOOKUP(A88,'Total covered original data'!A:A,'Total covered original data'!G:G) -> 10463 | C88: =_xlfn.XLOOKUP(A88,'Outdoor original data'!A:A,'Outdoor original data'!G:G) -> 318 | D88: 0.03039281277
A89: 02164 | B89: =_xlfn.XLOOKUP(A89,'Total covered original data'!A:A,'Total covered original data'!G:G) -> 4330 | C89: =_xlfn.XLOOKUP(A89,'Outdoor original data'!A:A,'Outdoor original data'!G:G) -> 192 | D89: 0.04434180139
A90: 02170 | B90: =_xlfn.XLOOKUP(A90,'Total covered original data'!A:A,'Total covered original data'!G:G) -> 125919 | C90: =_xlfn.XLOOKUP(A90,'Outdoor original data'!A:A,'Outdoor original data'!G:G) -> 20375 | D90: 0.1618103702
A91: 02180 | B91: =_xlfn.XLOOKUP(A91,'Total covered original data'!A:A,'Total covered original data'!G:G) -> 18891 | C91: =_xlfn.XLOOKUP(A91,'Outdoor original data'!A:A,'Outdoor original data'!G:G) -> 869 | D91: 0.04600074109
A92: 02185 | B92: =_xlfn.XLOOKUP(A92,'Total covered original data'!A:A,'Total covered original data'!G:G) -> 55082 | C92: =_xlfn.XLOOKUP(A92,'Outdoor original data'!A:A,'Outdoor original data'!G:G) -> 26796 | D92: 0.4864747104
A93: 02188 | B93: =_xlfn.XLOOKUP(A93,'Total covered original data'!A:A,'Total covered original data'!G:G) -> 14073 | C93: =_xlfn.XLOOKUP(A93,'Outdoor original data'!A:A,'Outdoor original data'!G:G) -> 492 | D93: 0.03496056278
A94: 02195 | B94: =_xlfn.XLOOKUP(A94,'Total covered original data'!A:A,'Total covered original data'!G:G) -> 6249 | C94: =_xlfn.XLOOKUP(A94,'Outdoor original data'!A:A,'Outdoor original data'!G:G) -> 229 | D94: 0.03664586334
A95: 02198 | B95: =_xlfn.XLOOKUP(A95,'Total covered original data'!A:A,'Total covered original data'!G:G) -> 10739 | C95: =_xlfn.XLOOKUP(A95,'Outdoor original data'!A:A,'Outdoor original data'!G:G) -> 393 | D95: 0.03659558618
A96: 02220 | B96: =_xlfn.XLOOKUP(A96,'Total covered original data'!A:A,'Total covered original data'!G:G) -> 20334 | C96: =_xlfn.XLOOKUP(A96,'Outdoor original data'!A:A,'Outdoor original data'!G:G) -> 1350 | D96: 0.06639126586
A97: 02230 | B97: =_xlfn.XLOOKUP(A97,'Total covered original data'!A:A,'Total covered original data'!G:G) -> 3615 | C97: =_xlfn.XLOOKUP(A97,'Outdoor original data'!A:A,'Outdoor original data'!G:G) -> 85 | D97: 0.0235131397
A98: 02240 | B98: =_xlfn.XLOOKUP(A98,'Total covered original data'!A:A,'Total covered original data'!G:G) -> 12852 | C98: =_xlfn.XLOOKUP(A98,'Outdoor original data'!A:A,'Outdoor original data'!G:G) -> 2658 | D98: 0.2068160598
A99: 02261 | B99: =_xlfn.XLOOKUP(A99,'Total covered original data'!A:A,'Total covered original data'!G:G) -> 9807 | C99: =_xlfn.XLOOKUP(A99,'Outdoor original data'!A:A,'Outdoor original data'!G:G) -> 700 | D99: 0.07137758744
A100: 02275 | B100: =_xlfn.XLOOKUP(A100,'Total covered original data'!A:A,'Total covered original data'!G:G) -> 3786 | C100: =_xlfn.XLOOKUP(A100,'Outdoor original data'!A:A,'Outdoor original data'!G:G) -> 149 | D100: 0.03935552034
A101: 02282 | B101: =_xlfn.XLOOKUP(A101,'Total covered original data'!A:A,'Total covered original data'!G:G) -> 1509 | C101: =_xlfn.XLOOKUP(A101,'Outdoor original data'!A:A,'Outdoor original data'!G:G) -> 14 | D101: 0.009277667329
A102: 02290 | B102: =_xlfn.XLOOKUP(A102,'Total covered original data'!A:A,'Total covered original data'!G:G) -> 10953 | C102: =_xlfn.XLOOKUP(A102,'Outdoor original data'!A:A,'Outdoor original data'!G:G) -> 530 | D102: 0.04838856934
A103: 02999 | B103: =_xlfn.XLOOKUP(A103,'Total covered original data'!A:A,'Total covered original data'!G:G) -> 10108 | C103: =_xlfn.XLOOKUP(A103,'Outdoor original data'!A:A,'Outdoor original data'!G:G) -> 444 | D103: 0.04392560348
A104: 04000 | B104: =_xlfn.XLOOKUP(A104,'Total covered original data'!A:A,'Total covered original data'!G:G) -> 14569258 | C104: =_xlfn.XLOOKUP(A104,'Outdoor original data'!A:A,'Outdoor original data'!G:G) -> 1623209 | D104: 0.1114132923
A105: 04001 | B105: =_xlfn.XLOOKUP(A105,'Total covered original data'!A:A,'Total covered original data'!G:G) -> 86302 | C105: =_xlfn.XLOOKUP(A105,'Outdoor original data'!A:A,'Outdoor original data'!G:G) -> 8842 | D105: 0.1024541726
A106: 04003 | B106: =_xlfn.XLOOKUP(A106,'Total covered original data'!A:A,'Total covered original data'!G:G) -> 171084 | C106: =_xlfn.XLOOKUP(A106,'Outdoor original data'!A:A,'Outdoor original data'!G:G) -> 28618 | D106: 0.1672745552
A107: 04005 | B107: =_xlfn.XLOOKUP(A107,'Total covered original data'!A:A,'Total covered original data'!G:G) -> 303374 | C107: =_xlfn.XLOOKUP(A107,'Outdoor original data'!A:A,'Outdoor original data'!G:G) -> 22449 | D107: 0.07399777173
A108: 04007 | B108: =_xlfn.XLOOKUP(A108,'Total covered original data'!A:A,'Total covered original data'!G:G) -> 72998 | C108: =_xlfn.XLOOKUP(A108,'Outdoor original data'!A:A,'Outdoor original data'!G:G) -> 9143 | D108: 0.1252500068
A109: 04009 | B109: =_xlfn.XLOOKUP(A109,'Total covered original data'!A:A,'Total covered original data'!G:G) -> 47985 | C109: =_xlfn.XLOOKUP(A109,'Outdoor original data'!A:A,'Outdoor original data'!G:G) -> 4665 | D109: 0.09721788059
A110: 04011 | B110: =_xlfn.XLOOKUP(A110,'Total covered original data'!A:A,'Total covered original data'!G:G) -> 25606 | C110: =_xlfn.XLOOKUP(A110,'Outdoor original data'!A:A,'Outdoor original data'!G:G) -> 1012 | D110: 0.03952198703
A111: 04012 | B111: =_xlfn.XLOOKUP(A111,'Total covered original data'!A:A,'Total covered original data'!G:G) -> 29576 | C111: =_xlfn.XLOOKUP(A111,'Outdoor original data'!A:A,'Outdoor original data'!G:G) -> 4023 | D111: 0.1360224506
A112: 04013 | B112: =_xlfn.XLOOKUP(A112,'Total covered original data'!A:A,'Total covered original data'!G:G) -> 10316143 | C112: =_xlfn.XLOOKUP(A112,'Outdoor original data'!A:A,'Outdoor original data'!G:G) -> 1051357 | D112: 0.1019137676
A113: 04015 | B113: =_xlfn.XLOOKUP(A113,'Total covered original data'!A:A,'Total covered original data'!G:G) -> 260844 | C113: =_xlfn.XLOOKUP(A113,'Outdoor original data'!A:A,'Outdoor original data'!G:G) -> 27156 | D113: 0.1041082026
A114: 04017 | B114: =_xlfn.XLOOKUP(A114,'Total covered original data'!A:A,'Total covered original data'!G:G) -> 134086 | C114: =_xlfn.XLOOKUP(A114,'Outdoor original data'!A:A,'Outdoor original data'!G:G) -> 13837 | D114: 0.1031949644
A115: 04019 | B115: =_xlfn.XLOOKUP(A115,'Total covered original data'!A:A,'Total covered original data'!G:G) -> 1851850 | C115: =_xlfn.XLOOKUP(A115,'Outdoor original data'!A:A,'Outdoor original data'!G:G) -> 182921 | D115: 0.09877743878
A116: 04021 | B116: =_xlfn.XLOOKUP(A116,'Total covered original data'!A:A,'Total covered original data'!G:G) -> 321850 | C116: =_xlfn.XLOOKUP(A116,'Outdoor original data'!A:A,'Outdoor original data'!G:G) -> 41102 | D116: 0.1277054529
A117: 04023 | B117: =_xlfn.XLOOKUP(A117,'Total covered original data'!A:A,'Total covered original data'!G:G) -> 66493 | C117: =_xlfn.XLOOKUP(A117,'Outdoor original data'!A:A,'Outdoor original data'!G:G) -> 10010 | D117: 0.1505421623
A118: 04025 | B118: =_xlfn.XLOOKUP(A118,'Total covered original data'!A:A,'Total covered original data'!G:G) -> 326106 | C118: =_xlfn.XLOOKUP(A118,'Outdoor original data'!A:A,'Outdoor original data'!G:G) -> 49201 | D118: 0.1508742556
A119: 04027 | B119: =_xlfn.XLOOKUP(A119,'Total covered original data'!A:A,'Total covered original data'!G:G) -> 340581 | C119: =_xlfn.XLOOKUP(A119,'Outdoor original data'!A:A,'Outdoor original data'!G:G) -> 76822 | D119: 0.2255616138
A120: 04999 | B120: =_xlfn.XLOOKUP(A120,'Total covered original data'!A:A,'Total covered original data'!G:G) -> 214386 | C120: =_xlfn.XLOOKUP(A120,'Outdoor original data'!A:A,'Outdoor original data'!G:G) -> 8747 | D120: 0.04080023882
A121: 05000 | B121: =_xlfn.XLOOKUP(A121,'Total covered original data'!A:A,'Total covered original data'!G:G) -> 6056035 | C121: =_xlfn.XLOOKUP(A121,'Outdoor original data'!A:A,'Outdoor original data'!G:G) -> 610651 | D121: 0.1008334661
A122: 05001 | B122: =_xlfn.XLOOKUP(A122,'Total covered original data'!A:A,'Total covered original data'!G:G) -> 50971 | C122: =_xlfn.XLOOKUP(A122,'Outdoor original data'!A:A,'Outdoor original data'!G:G) -> 2638 | D122: 0.05175491946
A123: 05003 | B123: =_xlfn.XLOOKUP(A123,'Total covered original data'!A:A,'Total covered original data'!G:G) -> 30495 | C123: =_xlfn.XLOOKUP(A123,'Outdoor original data'!A:A,'Outdoor original data'!G:G) -> 3445 | D123: 0.1129693392
A124: 05005 | B124: =_xlfn.XLOOKUP(A124,'Total covered original data'!A:A,'Total covered original data'!G:G) -> 75265 | C124: =_xlfn.XLOOKUP(A124,'Outdoor original data'!A:A,'Outdoor original data'!G:G) -> 4548 | D124: 0.06042649306
A125: 05007 | B125: =_xlfn.XLOOKUP(A125,'Total covered original data'!A:A,'Total covered original data'!G:G) -> 626389 | C125: =_xlfn.XLOOKUP(A125,'Outdoor original data'!A:A,'Outdoor original data'!G:G) -> 44708 | D125: 0.07137417803
A126: 05009 | B126: =_xlfn.XLOOKUP(A126,'Total covered original data'!A:A,'Total covered original data'!G:G) -> 70558 | C126: =_xlfn.XLOOKUP(A126,'Outdoor original data'!A:A,'Outdoor original data'!G:G) -> 3607 | D126: 0.05112106352
A127: 05011 | B127: =_xlfn.XLOOKUP(A127,'Total covered original data'!A:A,'Total covered original data'!G:G) -> 18360 | C127: =_xlfn.XLOOKUP(A127,'Outdoor original data'!A:A,'Outdoor original data'!G:G) -> 639 | D127: 0.03480392157
A128: 05013 | B128: =_xlfn.XLOOKUP(A128,'Total covered original data'!A:A,'Total covered original data'!G:G) -> 15039 | C128: =_xlfn.XLOOKUP(A128,'Outdoor original data'!A:A,'Outdoor original data'!G:G) -> 651 | D128: 0.04328745262
A129: 05015 | B129: =_xlfn.XLOOKUP(A129,'Total covered original data'!A:A,'Total covered original data'!G:G) -> 53866 | C129: =_xlfn.XLOOKUP(A129,'Outdoor original data'!A:A,'Outdoor original data'!G:G) -> 3476 | D129: 0.06453050162
A130: 05017 | B130: =_xlfn.XLOOKUP(A130,'Total covered original data'!A:A,'Total covered original data'!G:G) -> 14441 | C130: =_xlfn.XLOOKUP(A130,'Outdoor original data'!A:A,'Outdoor original data'!G:G) -> 1869 | D130: 0.1294231701
A131: 05019 | B131: =_xlfn.XLOOKUP(A131,'Total covered original data'!A:A,'Total covered original data'!G:G) -> 43918 | C131: =_xlfn.XLOOKUP(A131,'Outdoor original data'!A:A,'Outdoor original data'!G:G) -> 1592 | D131: =C131/B131 -> 0.03624937383
A132: 05021 | B132: =_xlfn.XLOOKUP(A132,'Total covered original data'!A:A,'Total covered original data'!G:G) -> 15638 | C132: =_xlfn.XLOOKUP(A132,'Outdoor original data'!A:A,'Outdoor original data'!G:G) -> 2020 | D132: 0.1291725285
A133: 05023 | B133: =_xlfn.XLOOKUP(A133,'Total covered original data'!A:A,'Total covered original data'!G:G) -> 31431 | C133: =_xlfn.XLOOKUP(A133,'Outdoor original data'!A:A,'Outdoor original data'!G:G) -> 3116 | D133: 0.0991377939
A134: 05025 | B134: =_xlfn.XLOOKUP(A134,'Total covered original data'!A:A,'Total covered original data'!G:G) -> 5062 | C134: =_xlfn.XLOOKUP(A134,'Outdoor original data'!A:A,'Outdoor original data'!G:G) -> 927 | D134: 0.1831291979
A135: 05027 | B135: =_xlfn.XLOOKUP(A135,'Total covered original data'!A:A,'Total covered original data'!G:G) -> 39507 | C135: =_xlfn.XLOOKUP(A135,'Outdoor original data'!A:A,'Outdoor original data'!G:G) -> 3302 | D135: 0.08358012504
A136: 05029 | B136: =_xlfn.XLOOKUP(A136,'Total covered original data'!A:A,'Total covered original data'!G:G) -> 33105 | C136: =_xlfn.XLOOKUP(A136,'Outdoor original data'!A:A,'Outdoor original data'!G:G) -> 4683 | D136: 0.1414589941
A137: 05031 | B137: =_xlfn.XLOOKUP(A137,'Total covered original data'!A:A,'Total covered original data'!G:G) -> 258910 | C137: =_xlfn.XLOOKUP(A137,'Outdoor original data'!A:A,'Outdoor original data'!G:G) -> 16778 | D137: 0.064802441
A138: 05033 | B138: =_xlfn.XLOOKUP(A138,'Total covered original data'!A:A,'Total covered original data'!G:G) -> 97064 | C138: =_xlfn.XLOOKUP(A138,'Outdoor original data'!A:A,'Outdoor original data'!G:G) -> 8548 | D138: 0.0880656062
A139: 05035 | B139: =_xlfn.XLOOKUP(A139,'Total covered original data'!A:A,'Total covered original data'!G:G) -> 78473 | C139: =_xlfn.XLOOKUP(A139,'Outdoor original data'!A:A,'Outdoor original data'!G:G) -> 4930 | D139: 0.06282415608
A140: 05037 | B140: =_xlfn.XLOOKUP(A140,'Total covered original data'!A:A,'Total covered original data'!G:G) -> 23500 | C140: =_xlfn.XLOOKUP(A140,'Outdoor original data'!A:A,'Outdoor original data'!G:G) -> 2292 | D140: 0.09753191489
A141: 05039 | B141: =_xlfn.XLOOKUP(A141,'Total covered original data'!A:A,'Total covered original data'!G:G) -> 13312 | C141: =_xlfn.XLOOKUP(A141,'Outdoor original data'!A:A,'Outdoor original data'!G:G) -> 1032 | D141: 0.07752403846
A142: 05041 | B142: =_xlfn.XLOOKUP(A142,'Total covered original data'!A:A,'Total covered original data'!G:G) -> 22476 | C142: =_xlfn.XLOOKUP(A142,'Outdoor original data'!A:A,'Outdoor original data'!G:G) -> 2004 | D142: 0.08916177256
A143: 05043 | B143: =_xlfn.XLOOKUP(A143,'Total covered original data'!A:A,'Total covered original data'!G:G) -> 31631 | C143: =_xlfn.XLOOKUP(A143,'Outdoor original data'!A:A,'Outdoor original data'!G:G) -> 3279 | D143: 0.103664127
A144: 05045 | B144: =_xlfn.XLOOKUP(A144,'Total covered original data'!A:A,'Total covered original data'!G:G) -> 205485 | C144: =_xlfn.XLOOKUP(A144,'Outdoor original data'!A:A,'Outdoor original data'!G:G) -> 21236 | D144: 0.103345743
A145: 05047 | B145: =_xlfn.XLOOKUP(A145,'Total covered original data'!A:A,'Total covered original data'!G:G) -> 23623 | C145: =_xlfn.XLOOKUP(A145,'Outdoor original data'!A:A,'Outdoor original data'!G:G) -> 2999 | D145: 0.1269525462
A146: 05049 | B146: =_xlfn.XLOOKUP(A146,'Total covered original data'!A:A,'Total covered original data'!G:G) -> 10364 | C146: =_xlfn.XLOOKUP(A146,'Outdoor original data'!A:A,'Outdoor original data'!G:G) -> 1199 | D146: 0.1156889232
A147: 05051 | B147: =_xlfn.XLOOKUP(A147,'Total covered original data'!A:A,'Total covered original data'!G:G) -> 184963 | C147: =_xlfn.XLOOKUP(A147,'Outdoor original data'!A:A,'Outdoor original data'!G:G) -> 16248 | D147: 0.08784459595
A148: 05053 | B148: =_xlfn.XLOOKUP(A148,'Total covered original data'!A:A,'Total covered original data'!G:G) -> 20910 | C148: =_xlfn.XLOOKUP(A148,'Outdoor original data'!A:A,'Outdoor original data'!G:G) -> 1454 | D148: 0.06953610713
A149: 05055 | B149: =_xlfn.XLOOKUP(A149,'Total covered original data'!A:A,'Total covered original data'!G:G) -> 76551 | C149: =_xlfn.XLOOKUP(A149,'Outdoor original data'!A:A,'Outdoor original data'!G:G) -> 3741 | D149: 0.0488693812
A150: 05057 | B150: =_xlfn.XLOOKUP(A150,'Total covered original data'!A:A,'Total covered original data'!G:G) -> 38241 | C150: =_xlfn.XLOOKUP(A150,'Outdoor original data'!A:A,'Outdoor original data'!G:G) -> 2260 | D150: 0.05909887294
A151: 05059 | B151: =_xlfn.XLOOKUP(A151,'Total covered original data'!A:A,'Total covered original data'!G:G) -> 41072 | C151: =_xlfn.XLOOKUP(A151,'Outdoor original data'!A:A,'Outdoor original data'!G:G) -> 3813 | D151: 0.09283696922
A152: 05061 | B152: =_xlfn.XLOOKUP(A152,'Total covered original data'!A:A,'Total covered original data'!G:G) -> 32899 | C152: =_xlfn.XLOOKUP(A152,'Outdoor original data'!A:A,'Outdoor original data'!G:G) -> 865 | D152: 0.02629259248
A153: 05063 | B153: =_xlfn.XLOOKUP(A153,'Total covered original data'!A:A,'Total covered original data'!G:G) -> 81298 | C153: =_xlfn.XLOOKUP(A153,'Outdoor original data'!A:A,'Outdoor original data'!G:G) -> 5519 | D153: 0.06788604886
A154: 05065 | B154: =_xlfn.XLOOKUP(A154,'Total covered original data'!A:A,'Total covered original data'!G:G) -> 14444 | C154: =_xlfn.XLOOKUP(A154,'Outdoor original data'!A:A,'Outdoor original data'!G:G) -> 681 | D154: 0.04714760454
A155: 05067 | B155: =_xlfn.XLOOKUP(A155,'Total covered original data'!A:A,'Total covered original data'!G:G) -> 25771 | C155: =_xlfn.XLOOKUP(A155,'Outdoor original data'!A:A,'Outdoor original data'!G:G) -> 5620 | D155: 0.21807458
A156: 05069 | B156: =_xlfn.XLOOKUP(A156,'Total covered original data'!A:A,'Total covered original data'!G:G) -> 132740 | C156: =_xlfn.XLOOKUP(A156,'Outdoor original data'!A:A,'Outdoor original data'!G:G) -> 14924 | D156: 0.1124303149
A157: 05071 | B157: =_xlfn.XLOOKUP(A157,'Total covered original data'!A:A,'Total covered original data'!G:G) -> 41806 | C157: =_xlfn.XLOOKUP(A157,'Outdoor original data'!A:A,'Outdoor original data'!G:G) -> 1340 | D157: 0.03205281539
A158: 05073 | B158: =_xlfn.XLOOKUP(A158,'Total covered original data'!A:A,'Total covered original data'!G:G) -> 5576 | C158: =_xlfn.XLOOKUP(A158,'Outdoor original data'!A:A,'Outdoor original data'!G:G) -> 906 | D158: 0.162482066
A159: 05075 | B159: =_xlfn.XLOOKUP(A159,'Total covered original data'!A:A,'Total covered original data'!G:G) -> 19465 | C159: =_xlfn.XLOOKUP(A159,'Outdoor original data'!A:A,'Outdoor original data'!G:G) -> 2141 | D159: 0.1099922939
A160: 05077 | B160: =_xlfn.XLOOKUP(A160,'Total covered original data'!A:A,'Total covered original data'!G:G) -> 8856 | C160: =_xlfn.XLOOKUP(A160,'Outdoor original data'!A:A,'Outdoor original data'!G:G) -> 1675 | D160: 0.189137308
A161: 05079 | B161: =_xlfn.XLOOKUP(A161,'Total covered original data'!A:A,'Total covered original data'!G:G) -> 13661 | C161: =_xlfn.XLOOKUP(A161,'Outdoor original data'!A:A,'Outdoor original data'!G:G) -> 4946 | D161: 0.3620525584
A162: 05081 | B162: =_xlfn.XLOOKUP(A162,'Total covered original data'!A:A,'Total covered original data'!G:G) -> 16026 | C162: =_xlfn.XLOOKUP(A162,'Outdoor original data'!A:A,'Outdoor original data'!G:G) -> 791 | D162: 0.0493572944
A163: 05083 | B163: =_xlfn.XLOOKUP(A163,'Total covered original data'!A:A,'Total covered original data'!G:G) -> 25869 | C163: =_xlfn.XLOOKUP(A163,'Outdoor original data'!A:A,'Outdoor original data'!G:G) -> 1888 | D163: 0.07298310719
A164: 05085 | B164: =_xlfn.XLOOKUP(A164,'Total covered original data'!A:A,'Total covered original data'!G:G) -> 70789 | C164: =_xlfn.XLOOKUP(A164,'Outdoor original data'!A:A,'Outdoor original data'!G:G) -> 6582 | D164: 0.09298054783
A165: 05087 | B165: =_xlfn.XLOOKUP(A165,'Total covered original data'!A:A,'Total covered original data'!G:G) -> 17111 | C165: =_xlfn.XLOOKUP(A165,'Outdoor original data'!A:A,'Outdoor original data'!G:G) -> 1037 | D165: 0.06060428964
A166: 05089 | B166: =_xlfn.XLOOKUP(A166,'Total covered original data'!A:A,'Total covered original data'!G:G) -> 18059 | C166: =_xlfn.XLOOKUP(A166,'Outdoor original data'!A:A,'Outdoor original data'!G:G) -> 360 | D166: 0.01993465862
A167: 05091 | B167: =_xlfn.XLOOKUP(A167,'Total covered original data'!A:A,'Total covered original data'!G:G) -> 62683 | C167: =_xlfn.XLOOKUP(A167,'Outdoor original data'!A:A,'Outdoor original data'!G:G) -> 7183 | D167: 0.1145924732
A168: 05093 | B168: =_xlfn.XLOOKUP(A168,'Total covered original data'!A:A,'Total covered original data'!G:G) -> 86213 | C168: =_xlfn.XLOOKUP(A168,'Outdoor original data'!A:A,'Outdoor original data'!G:G) -> 7702 | D168: 0.08933687495
A169: 05095 | B169: =_xlfn.XLOOKUP(A169,'Total covered original data'!A:A,'Total covered original data'!G:G) -> 9756 | C169: =_xlfn.XLOOKUP(A169,'Outdoor original data'!A:A,'Outdoor original data'!G:G) -> 977 | D169: 0.1001435014
A170: 05097 | B170: =_xlfn.XLOOKUP(A170,'Total covered original data'!A:A,'Total covered original data'!G:G) -> 6261 | C170: =_xlfn.XLOOKUP(A170,'Outdoor original data'!A:A,'Outdoor original data'!G:G) -> 402 | D170: 0.06420699569
A171: 05099 | B171: =_xlfn.XLOOKUP(A171,'Total covered original data'!A:A,'Total covered original data'!G:G) -> 11732 | C171: =_xlfn.XLOOKUP(A171,'Outdoor original data'!A:A,'Outdoor original data'!G:G) -> 919 | D171: 0.07833276509
A172: 05101 | B172: =_xlfn.XLOOKUP(A172,'Total covered original data'!A:A,'Total covered original data'!G:G) -> 5100 | C172: =_xlfn.XLOOKUP(A172,'Outdoor original data'!A:A,'Outdoor original data'!G:G) -> 339 | D172: 0.06647058824
A173: 05103 | B173: =_xlfn.XLOOKUP(A173,'Total covered original data'!A:A,'Total covered original data'!G:G) -> 35056 | C173: =_xlfn.XLOOKUP(A173,'Outdoor original data'!A:A,'Outdoor original data'!G:G) -> 3632 | D173: 0.1036056595
A174: 05105 | B174: =_xlfn.XLOOKUP(A174,'Total covered original data'!A:A,'Total covered original data'!G:G) -> 5577 | C174: =_xlfn.XLOOKUP(A174,'Outdoor original data'!A:A,'Outdoor original data'!G:G) -> 498 | D174: 0.08929532006
A175: 05107 | B175: =_xlfn.XLOOKUP(A175,'Total covered original data'!A:A,'Total covered original data'!G:G) -> 25510 | C175: =_xlfn.XLOOKUP(A175,'Outdoor original data'!A:A,'Outdoor original data'!G:G) -> 2940 | D175: 0.115248922
A176: 05109 | B176: =_xlfn.XLOOKUP(A176,'Total covered original data'!A:A,'Total covered original data'!G:G) -> 13068 | C176: =_xlfn.XLOOKUP(A176,'Outdoor original data'!A:A,'Outdoor original data'!G:G) -> 387 | D176: 0.02961432507
A177: 05111 | B177: =_xlfn.XLOOKUP(A177,'Total covered original data'!A:A,'Total covered original data'!G:G) -> 26051 | C177: =_xlfn.XLOOKUP(A177,'Outdoor original data'!A:A,'Outdoor original data'!G:G) -> 1060 | D177: 0.04068941691
A178: 05113 | B178: =_xlfn.XLOOKUP(A178,'Total covered original data'!A:A,'Total covered original data'!G:G) -> 29025 | C178: =_xlfn.XLOOKUP(A178,'Outdoor original data'!A:A,'Outdoor original data'!G:G) -> 1535 | D178: 0.05288544358
A179: 05115 | B179: =_xlfn.XLOOKUP(A179,'Total covered original data'!A:A,'Total covered original data'!G:G) -> 125509 | C179: =_xlfn.XLOOKUP(A179,'Outdoor original data'!A:A,'Outdoor original data'!G:G) -> 12720 | D179: 0.1013473137
A180: 05117 | B180: =_xlfn.XLOOKUP(A180,'Total covered original data'!A:A,'Total covered original data'!G:G) -> 7413 | C180: =_xlfn.XLOOKUP(A180,'Outdoor original data'!A:A,'Outdoor original data'!G:G) -> 1182 | D180: 0.1594496155
A181: 05119 | B181: =_xlfn.XLOOKUP(A181,'Total covered original data'!A:A,'Total covered original data'!G:G) -> 1235716 | C181: =_xlfn.XLOOKUP(A181,'Outdoor original data'!A:A,'Outdoor original data'!G:G) -> 109382 | D181: 0.08851710264
A182: 05121 | B182: =_xlfn.XLOOKUP(A182,'Total covered original data'!A:A,'Total covered original data'!G:G) -> 29316 | C182: =_xlfn.XLOOKUP(A182,'Outdoor original data'!A:A,'Outdoor original data'!G:G) -> 1703 | D182: 0.05809114477
A183: 05123 | B183: =_xlfn.XLOOKUP(A183,'Total covered original data'!A:A,'Total covered original data'!G:G) -> 35003 | C183: =_xlfn.XLOOKUP(A183,'Outdoor original data'!A:A,'Outdoor original data'!G:G) -> 4688 | D183: 0.1339313773
A184: 05125 | B184: =_xlfn.XLOOKUP(A184,'Total covered original data'!A:A,'Total covered original data'!G:G) -> 125360 | C184: =_xlfn.XLOOKUP(A184,'Outdoor original data'!A:A,'Outdoor original data'!G:G) -> 14252 | D184: 0.1136885769
A185: 05127 | B185: =_xlfn.XLOOKUP(A185,'Total covered original data'!A:A,'Total covered original data'!G:G) -> 15112 | C185: =_xlfn.XLOOKUP(A185,'Outdoor original data'!A:A,'Outdoor original data'!G:G) -> 278 | D185: 0.01839597671
A186: 05129 | B186: =_xlfn.XLOOKUP(A186,'Total covered original data'!A:A,'Total covered original data'!G:G) -> 7517 | C186: =_xlfn.XLOOKUP(A186,'Outdoor original data'!A:A,'Outdoor original data'!G:G) -> 95 | D186: 0.01263802049
A187: 05131 | B187: =_xlfn.XLOOKUP(A187,'Total covered original data'!A:A,'Total covered original data'!G:G) -> 319466 | C187: =_xlfn.XLOOKUP(A187,'Outdoor original data'!A:A,'Outdoor original data'!G:G) -> 22384 | D187: 0.07006692418
A188: 05133 | B188: =_xlfn.XLOOKUP(A188,'Total covered original data'!A:A,'Total covered original data'!G:G) -> 23799 | C188: =_xlfn.XLOOKUP(A188,'Outdoor original data'!A:A,'Outdoor original data'!G:G) -> 861 | D188: 0.03617799067
A189: 05135 | B189: =_xlfn.XLOOKUP(A189,'Total covered original data'!A:A,'Total covered original data'!G:G) -> 17649 | C189: =_xlfn.XLOOKUP(A189,'Outdoor original data'!A:A,'Outdoor original data'!G:G) -> 1082 | D189: 0.06130658961
A190: 05137 | B190: =_xlfn.XLOOKUP(A190,'Total covered original data'!A:A,'Total covered original data'!G:G) -> 12857 | C190: =_xlfn.XLOOKUP(A190,'Outdoor original data'!A:A,'Outdoor original data'!G:G) -> 377 | D190: 0.02932254803
A191: 05139 | B191: =_xlfn.XLOOKUP(A191,'Total covered original data'!A:A,'Total covered original data'!G:G) -> 83976 | C191: =_xlfn.XLOOKUP(A191,'Outdoor original data'!A:A,'Outdoor original data'!G:G) -> 12528 | D191: 0.1491854816
A192: 05141 | B192: =_xlfn.XLOOKUP(A192,'Total covered original data'!A:A,'Total covered original data'!G:G) -> 17593 | C192: =_xlfn.XLOOKUP(A192,'Outdoor original data'!A:A,'Outdoor original data'!G:G) -> 1363 | D192: 0.07747399534
A193: 05143 | B193: =_xlfn.XLOOKUP(A193,'Total covered original data'!A:A,'Total covered original data'!G:G) -> 550900 | C193: =_xlfn.XLOOKUP(A193,'Outdoor original data'!A:A,'Outdoor original data'!G:G) -> 47888 | D193: 0.08692684698
A194: 05145 | B194: =_xlfn.XLOOKUP(A194,'Total covered original data'!A:A,'Total covered original data'!G:G) -> 121102 | C194: =_xlfn.XLOOKUP(A194,'Outdoor original data'!A:A,'Outdoor original data'!G:G) -> 10817 | D194: 0.08932139849
A195: 05147 | B195: =_xlfn.XLOOKUP(A195,'Total covered original data'!A:A,'Total covered original data'!G:G) -> 8909 | C195: =_xlfn.XLOOKUP(A195,'Outdoor original data'!A:A,'Outdoor original data'!G:G) -> 289 | D195: =C195/B195 -> 0.03243910652
A196: 05149 | B196: =_xlfn.XLOOKUP(A196,'Total covered original data'!A:A,'Total covered original data'!G:G) -> 32209 | C196: =_xlfn.XLOOKUP(A196,'Outdoor original data'!A:A,'Outdoor original data'!G:G) -> 1520 | D196: 0.0471917787
A197: 05999 | B197: =_xlfn.XLOOKUP(A197,'Total covered original data'!A:A,'Total covered original data'!G:G) -> 195623 | C197: =_xlfn.XLOOKUP(A197,'Outdoor original data'!A:A,'Outdoor original data'!G:G) -> 23026 | D197: 0.1177059957
A198: 06000 | B198: =_xlfn.XLOOKUP(A198,'Total covered original data'!A:A,'Total covered original data'!G:G) -> 86243812 | C198: =_xlfn.XLOOKUP(A198,'Outdoor original data'!A:A,'Outdoor original data'!G:G) -> 9868333 | D198: 0.1144236644
A199: 06001 | B199: =_xlfn.XLOOKUP(A199,'Total covered original data'!A:A,'Total covered original data'!G:G) -> 3852538 | C199: =_xlfn.XLOOKUP(A199,'Outdoor original data'!A:A,'Outdoor original data'!G:G) -> 397349 | D199: 0.1031395407
A200: 06003 | B200: =_xlfn.XLOOKUP(A200,'Total covered original data'!A:A,'Total covered original data'!G:G) -> 3564 | C200: =_xlfn.XLOOKUP(A200,'Outdoor original data'!A:A,'Outdoor original data'!G:G) -> 191 | D200: 0.05359147026
... 4231 more rows

Sheet Total summed original data
A1: area_fips | B1: 2018 | C1: 2019 | D1: 2020 | E1: 2021 | F1: 2022 | G1: SumOfAllIndust
A2: 01000 | B2: 2325122 | C2: 2356650 | D2: 2271166 | E2: 2327395 | F2: 2392049 | G2: 11672382
A3: 01001 | B3: 10973 | C3: 11107 | D3: 10795 | E3: 11123 | F3: 11536 | G3: 55534
A4: 01003 | B4: 74052 | C4: 76419 | D4: 73088 | E4: 76546 | F4: 79973 | G4: 380078
A5: 01005 | B5: 8114 | C5: 8239 | D5: 7935 | E5: 7720 | F5: 7823 | G5: 39831
A6: 01007 | B6: 4215 | C6: 4603 | D6: 4653 | E6: 4756 | F6: 4836 | G6: 23063
A7: 01009 | B7: 8536 | C7: 8713 | D7: 8381 | E7: 8496 | F7: 8725 | G7: 42851
A8: 01011 | B8: 2972 | C8: 2951 | D8: 2913 | E8: 2812 | F8: 2713 | G8: 14361
A9: 01013 | B9: 6748 | C9: 6922 | D9: 6382 | E9: 6420 | F9: 6634 | G9: 33106
A10: 01015 | B10: 44435 | C10: 44563 | D10: 42803 | E10: 43521 | F10: 43845 | G10: 219167
A11: 01017 | B11: 8352 | C11: 8480 | D11: 8266 | E11: 8365 | F11: 8534 | G11: 41997
A12: 01019 | B12: 5269 | C12: 5217 | D12: 4955 | E12: 5202 | F12: 5234 | G12: 25877
A13: 01021 | B13: 9511 | C13: 9552 | D13: 9007 | E13: 9069 | F13: 9047 | G13: 46186
A14: 01023 | B14: 3761 | C14: 3653 | D14: 3515 | E14: 3553 | F14: 3401 | G14: 17883
A15: 01025 | B15: 8018 | C15: 7968 | D15: 7841 | E15: 8063 | F15: 8181 | G15: 40071
A16: 01027 | B16: 4275 | C16: 4297 | D16: 4251 | E16: 4243 | F16: 4359 | G16: 21425
A17: 01029 | B17: 2123 | C17: 2051 | D17: 2104 | E17: 2225 | F17: 2440 | G17: 10943
A18: 01031 | B18: 15881 | C18: 16404 | D18: 15899 | E18: 16430 | F18: 16566 | G18: 81180
A19: 01033 | B19: 23829 | C19: 24253 | D19: 23146 | E19: 23435 | F19: 24107 | G19: 118770
A20: 01035 | B20: 3476 | C20: 3431 | D20: 3291 | E20: 3239 | F20: 3151 | G20: 16588
A21: 01037 | B21: 1406 | C21: 1441 | D21: 1307 | E21: 1317 | F21: 1448 | G21: 6919
A22: 01039 | B22: 12373 | C22: 12241 | D22: 11588 | E22: 11867 | F22: 11926 | G22: 59995
A23: 01041 | B23: 3685 | C23: 3743 | D23: 3427 | E23: 3343 | F23: 3244 | G23: 17442
A24: 01043 | B24: 28849 | C24: 28982 | D24: 28129 | E24: 29111 | F24: 30055 | G24: 145126
A25: 01045 | B25: 16978 | C25: 17230 | D25: 16925 | E25: 17324 | F25: 17619 | G25: 86076
A26: 01047 | B26: 12459 | C26: 12202 | D26: 11316 | E26: 11258 | F26: 11480 | G26: 58715
A27: 01049 | B27: 21797 | C27: 22382 | D27: 21501 | E27: 22099 | F27: 22347 | G27: 110126
A28: 01051 | B28: 19848 | C28: 19892 | D28: 19290 | E28: 19794 | F28: 19977 | G28: 98801
A29: 01053 | B29: 12775 | C29: 12875 | D29: 12271 | E29: 12184 | F29: 12510 | G29: 62615
A30: 01055 | B30: 36277 | C30: 35618 | D30: 32042 | E30: 31692 | F30: 32085 | G30: 167714
A31: 01057 | B31: 4019 | C31: 4003 | D31: 3892 | E31: 4003 | F31: 3924 | G31: 19841
A32: 01059 | B32: 10811 | C32: 11092 | D32: 10678 | E32: 10702 | F32: 11001 | G32: 54284
A33: 01061 | B33: 5012 | C33: 5111 | D33: 5093 | E33: 5114 | F33: 5357 | G33: 25687
A34: 01063 | B34: 1770 | C34: 1774 | D34: 1834 | E34: 1793 | F34: 1673 | G34: 8844
A35: 01065 | B35: 2733 | C35: 2674 | D35: 2529 | E35: 2532 | F35: 2547 | G35: 13015
A36: 01067 | B36: 3340 | C36: 3382 | D36: 3535 | E36: 3601 | F36: 3722 | G36: 17580
A37: 01069 | B37: 48045 | C37: 49036 | D37: 47226 | E37: 48139 | F37: 49495 | G37: 241941
A38: 01071 | B38: 15894 | C38: 15596 | D38: 14599 | E38: 15027 | F38: 15231 | G38: 76347
A39: 01073 | B39: 349955 | C39: 354286 | D39: 337153 | E39: 347199 | F39: 356742 | G39: 1745335
A40: 01075 | B40: 3457 | C40: 3472 | D40: 3322 | E40: 3325 | F40: 3341 | G40: 16917
A41: 01077 | B41: 29738 | C41: 29715 | D41: 28295 | E41: 28908 | F41: 29629 | G41: 146285
A42: 01079 | B42: 4902 | C42: 5033 | D42: 4887 | E42: 4970 | F42: 5053 | G42: 24845
A43: 01081 | B43: 58998 | C43: 60301 | D43: 57378 | E43: 59363 | F43: 62001 | G43: 298041
A44: 01083 | B44: 23979 | C44: 24368 | D44: 24016 | E44: 25780 | F44: 28946 | G44: 127089
A45: 01085 | B45: 2353 | C45: 2320 | D45: 2192 | E45: 2164 | F45: 2752 | G45: 11781
A46: 01087 | B46: 4750 | C46: 4628 | D46: 4482 | E46: 4490 | F46: 4467 | G46: 22817
A47: 01089 | B47: 200339 | C47: 206134 | D47: 202530 | E47: 210051 | F47: 217075 | G47: 1036129
A48: 01091 | B48: 7084 | C48: 7180 | D48: 6926 | E48: 7059 | F48: 7207 | G48: 35456
A49: 01093 | B49: 9990 | C49: 10076 | D49: 10157 | E49: 10571 | F49: 11023 | G49: 51817
A50: 01095 | B50: 37024 | C50: 38054 | D50: 37252 | E50: 38005 | F50: 38984 | G50: 189319
A51: 01097 | B51: 171076 | C51: 171826 | D51: 164350 | E51: 169918 | F51: 172206 | G51: 849376
A52: 01099 | B52: 6125 | C52: 6241 | D52: 6135 | E52: 6169 | F52: 6248 | G52: 30918
A53: 01101 | B53: 131024 | C53: 130781 | D53: 124285 | E53: 126809 | F53: 128398 | G53: 641297
A54: 01103 | B54: 48358 | C54: 49921 | D54: 49045 | E54: 49574 | F54: 50750 | G54: 247648
A55: 01105 | B55: 2121 | C55: 2094 | D55: 1919 | E55: 1845 | F55: 1800 | G55: 9779
A56: 01107 | B56: 3815 | C56: 3746 | D56: 3561 | E56: 3569 | F56: 3645 | G56: 18336
A57: 01109 | B57: 14255 | C57: 11248 | D57: 11228 | E57: 11886 | F57: 15090 | G57: 63707
A58: 01111 | B58: 4824 | C58: 4762 | D58: 4661 | E58: 4689 | F58: 4811 | G58: 23747
A59: 01113 | B59: 14064 | C59: 14181 | D59: 13623 | E59: 13557 | F59: 13682 | G59: 69107
A60: 01115 | B60: 19780 | C60: 20062 | D60: 18835 | E60: 19273 | F60: 19971 | G60: 97921
A61: 01117 | B61: 85040 | C61: 84905 | D61: 81126 | E61: 83680 | F61: 86332 | G61: 421083
A62: 01119 | B62: 2920 | C62: 2979 | D62: 2866 | E62: 2807 | F62: 2887 | G62: 14459
A63: 01121 | B63: 29683 | C63: 30079 | D63: 28951 | E63: 29562 | F63: 30716 | G63: 148991
A64: 01123 | B64: 12961 | C64: 13381 | D64: 12352 | E64: 12640 | F64: 12586 | G64: 63920
A65: 01125 | B65: 94506 | C65: 97251 | D65: 90085 | E65: 90584 | F65: 93941 | G65: 466367
A66: 01127 | B66: 18311 | C66: 18415 | D66: 17326 | E66: 17634 | F66: 17790 | G66: 89476
A67: 01129 | B67: 3585 | C67: 3594 | D67: 3454 | E67: 3432 | F67: 3482 | G67: 17547
A68: 01131 | B68: 2815 | C68: 2794 | D68: 2679 | E68: 2543 | F68: 2532 | G68: 13363
A69: 01133 | B69: 7877 | C69: 8157 | D69: 8017 | E69: 8099 | F69: 8211 | G69: 40361
A70: 01999 | B70: 53318 | C70: 56061 | D70: 56156 | E70: 65403 | F70: 77068 | G70: 308006
A71: 02000 | B71: 395837 | C71: 398092 | D71: 369782 | E71: 377780 | F71: 386889 | G71: 1928380
A72: 02013 | B72: 2183 | C72: 2405 | D72: 2290 | E72: 2228 | F72: 2212 | G72: 11318
A73: 02016 | B73: 3327 | C73: 3342 | D73: 3391 | E73: 3071 | F73: 2998 | G73: 16129
A74: 02020 | B74: 129755 | C74: 129819 | D74: 118504 | E74: 121267 | F74: 141686 | G74: 641031
A75: 02050 | B75: 6967 | C75: 6896 | D75: 6606 | E75: 6302 | F75: 6331 | G75: 33102
A76: 02060 | B76: 1300 | C76: 1288 | D76: 1071 | E76: 1241 | F76: 1172 | G76: 6072
A77: 02063 | D77: 3298 | E77: 3481 | F77: 3636 | G77: 10415
A78: 02066 | D78: 967 | E78: 973 | F78: 1046 | G78: 2986
A79: 02068 | B79: 2067 | C79: 2097 | D79: 984 | E79: 1388 | F79: 1843 | G79: 8379
A80: 02070 | B80: 2561 | C80: 2498 | D80: 2082 | E80: 2006 | F80: 2020 | G80: 11167
A81: 02090 | B81: 36722 | C81: 36836 | D81: 34583 | E81: 34983 | F81: 35224 | G81: 178348
A82: 02100 | B82: 996 | C82: 1019 | D82: 764 | E82: 803 | F82: 905 | G82: 4487
A83: 02105 | B83: 795 | C83: 838 | D83: 674 | E83: 787 | F83: 916 | G83: 4010
A84: 02110 | B84: 17309 | C84: 17551 | D84: 15499 | E84: 16084 | F84: 16965 | G84: 83408
A85: 02122 | B85: 19493 | C85: 19694 | D85: 18499 | E85: 19766 | F85: 20506 | G85: 97958
A86: 02130 | B86: 7326 | C86: 7298 | D86: 6187 | E86: 6390 | F86: 6866 | G86: 34067
A87: 02150 | B87: 5880 | C87: 5782 | D87: 5583 | E87: 5463 | F87: 5528 | G87: 28236
A88: 02158 | B88: 2261 | C88: 2391 | D88: 1888 | E88: 1940 | F88: 1980 | G88: 10460
A89: 02164 | B89: 601 | C89: 579 | D89: 400 | E89: 491 | F89: 839 | G89: 2910
A90: 02170 | B90: 23312 | C90: 24486 | D90: 24326 | E90: 26235 | F90: 27560 | G90: 125919
A91: 02180 | B91: 3850 | C91: 3865 | D91: 3607 | E91: 3701 | F91: 3871 | G91: 18894
A92: 02185 | B92: 11896 | C92: 12649 | D92: 10824 | E92: 9705 | F92: 10008 | G92: 55082
A93: 02188 | B93: 2878 | C93: 2898 | D93: 2853 | E93: 2763 | F93: 2680 | G93: 14072
A94: 02195 | B94: 1209 | C94: 1246 | D94: 1201 | E94: 1382 | F94: 1211 | G94: 6249
A95: 02198 | B95: 2215 | C95: 2254 | D95: 2130 | E95: 2091 | F95: 2052 | G95: 10742
A96: 02220 | B96: 4170 | C96: 4231 | D96: 3675 | E96: 4061 | F96: 4199 | G96: 20336
A97: 02230 | B97: 839 | C97: 837 | D97: 320 | E97: 379 | F97: 757 | G97: 3132
A98: 02240 | B98: 2486 | C98: 2430 | D98: 2479 | E98: 2715 | F98: 2740 | G98: 12850
A99: 02261 | B99: 4890 | C99: 4917 | G99: 9807
A100: 02275 | B100: 852 | C100: 823 | D100: 725 | E100: 712 | F100: 673 | G100: 3785
A101: 02282 | B101: 268 | C101: 276 | D101: 293 | E101: 248 | F101: 340 | G101: 1425
A102: 02290 | B102: 2297 | C102: 2250 | D102: 2093 | E102: 2166 | F102: 2150 | G102: 10956
A103: 02999 | B103: 1483 | C103: 1576 | D103: 1694 | E103: 2309 | F103: 3046 | G103: 10108
A104: 04000 | B104: 3215598 | C104: 3304615 | D104: 3210706 | E104: 3316673 | F104: 3461183 | G104: 16508775
A105: 04001 | B105: 18029 | C105: 17742 | D105: 16936 | E105: 16918 | F105: 16678 | G105: 86303
A106: 04003 | B106: 33993 | C106: 34174 | D106: 34834 | E106: 34085 | F106: 33997 | G106: 171083
A107: 04005 | B107: 62682 | C107: 62378 | D107: 56883 | E107: 59432 | F107: 62000 | G107: 303375
A108: 04007 | B108: 14868 | C108: 14849 | D108: 14190 | E108: 14452 | F108: 14640 | G108: 72999
A109: 04009 | B109: 9148 | C109: 9420 | D109: 9583 | E109: 9746 | F109: 10088 | G109: 47985
A110: 04011 | B110: 4890 | C110: 5138 | D110: 5013 | E110: 5054 | F110: 5511 | G110: 25606
A111: 04012 | B111: 5815 | C111: 6045 | D111: 5862 | E111: 5867 | F111: 5987 | G111: 29576
A112: 04013 | B112: 1993417 | C112: 2062383 | D112: 2005867 | E112: 2083731 | F112: 2170745 | G112: 10316143
A113: 04015 | B113: 50290 | C113: 51174 | D113: 50365 | E113: 54261 | F113: 54757 | G113: 260847
A114: 04017 | B114: 26678 | C114: 26819 | D114: 26046 | E114: 27014 | F114: 27528 | G114: 134085
A115: 04019 | B115: 368438 | C115: 375906 | D115: 361323 | E115: 368322 | F115: 377864 | G115: 1851853
A116: 04021 | B116: 62137 | C116: 63102 | D116: 62740 | E116: 64920 | F116: 68954 | G116: 321853
A117: 04023 | B117: 13305 | C117: 13609 | D117: 13092 | E117: 13152 | F117: 13336 | G117: 66494
A118: 04025 | B118: 64684 | C118: 65202 | D118: 63198 | E118: 65496 | F118: 67528 | G118: 326108
A119: 04027 | B119: 67639 | C119: 68456 | D119: 65964 | E119: 67876 | F119: 70648 | G119: 340583
A120: 04999 | B120: 30085 | C120: 32431 | D120: 31870 | E120: 44828 | F120: 75174 | G120: 214388
A121: 05000 | B121: 1407928 | C121: 1414159 | D121: 1367217 | E121: 1394232 | F121: 1441302 | G121: 7024838
A122: 05001 | B122: 9783 | C122: 10300 | D122: 10161 | E122: 10383 | F122: 10342 | G122: 50969
A123: 05003 | B123: 6680 | C123: 6563 | D123: 5771 | E123: 5680 | F123: 5801 | G123: 30495
A124: 05005 | B124: 14973 | C124: 14824 | D124: 14754 | E124: 15154 | F124: 15560 | G124: 75265
A125: 05007 | B125: 119781 | C125: 122478 | D125: 123031 | E125: 126275 | F125: 134826 | G125: 626391
A126: 05009 | B126: 14063 | C126: 14208 | D126: 13595 | E126: 14239 | F126: 14453 | G126: 70558
A127: 05011 | B127: 3816 | C127: 3809 | D127: 3625 | E127: 3561 | F127: 3551 | G127: 18362
A128: 05013 | B128: 2768 | C128: 2875 | D128: 3373 | E128: 3533 | F128: 1969 | G128: 14518
A129: 05015 | B129: 10658 | C129: 10844 | D129: 10529 | E129: 10947 | F129: 10888 | G129: 53866
A130: 05017 | B130: 3051 | C130: 2979 | D130: 2806 | E130: 2778 | F130: 2826 | G130: 14440
A131: 05019 | B131: 9383 | C131: 9303 | D131: 8617 | E131: 8420 | F131: 8196 | G131: 43919
A132: 05021 | B132: 3306 | C132: 3141 | D132: 3050 | E132: 3073 | F132: 3070 | G132: 15640
A133: 05023 | B133: 6325 | C133: 6393 | D133: 6124 | E133: 6264 | F133: 6325 | G133: 31431
A134: 05025 | B134: 1065 | C134: 1034 | D134: 1006 | E134: 969 | F134: 989 | G134: 5063
A135: 05027 | B135: 7948 | C135: 8118 | D135: 7736 | E135: 7789 | F135: 7918 | G135: 39509
A136: 05029 | B136: 6384 | C136: 6526 | D136: 6625 | E136: 6744 | F136: 6826 | G136: 33105
A137: 05031 | B137: 51051 | C137: 52105 | D137: 50501 | E137: 51936 | F137: 53318 | G137: 258911
A138: 05033 | B138: 19530 | C138: 19693 | D138: 19351 | E138: 19221 | F138: 19269 | G138: 97064
A139: 05035 | B139: 16113 | C139: 16347 | D139: 15187 | E139: 15076 | F139: 15750 | G139: 78473
A140: 05037 | B140: 4823 | C140: 4798 | D140: 4622 | E140: 4615 | F140: 4643 | G140: 23501
A141: 05039 | B141: 2691 | C141: 2663 | D141: 2641 | E141: 2679 | F141: 2639 | G141: 13313
A142: 05041 | B142: 4700 | C142: 4677 | D142: 4489 | E142: 4277 | F142: 4333 | G142: 22476
A143: 05043 | B143: 6445 | C143: 6438 | D143: 6222 | E143: 6243 | F143: 6284 | G143: 31632
A144: 05045 | B144: 40540 | C144: 41159 | D144: 39916 | E144: 41143 | F144: 42731 | G144: 205489
A145: 05047 | B145: 4670 | C145: 4805 | D145: 4638 | E145: 4681 | F145: 4830 | G145: 23624
A146: 05049 | B146: 1981 | C146: 2082 | D146: 2047 | E146: 2099 | F146: 2154 | G146: 10363
A147: 05051 | B147: 37201 | C147: 37763 | D147: 35679 | E147: 36548 | F147: 37774 | G147: 184965
A148: 05053 | B148: 4167 | C148: 4235 | D148: 4040 | E148: 4180 | F148: 4286 | G148: 20908
A149: 05055 | B149: 15506 | C149: 15607 | D149: 14673 | E149: 15145 | F149: 15620 | G149: 76551
A150: 05057 | B150: 7874 | C150: 7783 | D150: 7412 | E150: 7367 | F150: 7805 | G150: 38241
A151: 05059 | B151: 8248 | C151: 8221 | D151: 8196 | E151: 8287 | F151: 8123 | G151: 41075
A152: 05061 | B152: 6936 | C152: 6653 | D152: 6363 | E152: 6516 | F152: 6431 | G152: 32899
A153: 05063 | B153: 15920 | C153: 16199 | D153: 16048 | E153: 16355 | F153: 16777 | G153: 81299
A154: 05065 | B154: 3078 | C154: 3094 | D154: 2757 | E154: 2717 | F154: 2797 | G154: 14443
A155: 05067 | B155: 5158 | C155: 5154 | D155: 5189 | E155: 5156 | F155: 5115 | G155: 25772
A156: 05069 | B156: 27608 | C156: 27065 | D156: 26255 | E156: 25975 | F156: 25838 | G156: 132741
A157: 05071 | B157: 8561 | C157: 8433 | D157: 8128 | E157: 8173 | F157: 8512 | G157: 41807
A158: 05073 | B158: 1194 | C158: 1163 | D158: 1080 | E158: 1065 | F158: 1075 | G158: 5577
A159: 05075 | B159: 3968 | C159: 3912 | D159: 3780 | E159: 3837 | F159: 3967 | G159: 19464
A160: 05077 | B160: 1231 | C160: 1199 | D160: 1127 | E160: 1071 | F160: 1708 | G160: 6336
A161: 05079 | B161: 2820 | C161: 2823 | D161: 2707 | E161: 2628 | F161: 2685 | G161: 13663
A162: 05081 | B162: 3358 | C162: 3444 | D162: 3151 | E162: 2989 | F162: 3083 | G162: 16025
A163: 05083 | B163: 5323 | C163: 5114 | D163: 5116 | E163: 5165 | F163: 5154 | G163: 25872
A164: 05085 | B164: 14013 | C164: 13974 | D164: 13573 | E164: 14306 | F164: 14924 | G164: 70790
A165: 05087 | B165: 3339 | C165: 3392 | D165: 3389 | E165: 3447 | F165: 3546 | G165: 17113
A166: 05089 | B166: 3755 | C166: 3909 | D166: 3398 | E166: 3400 | F166: 3599 | G166: 18061
A167: 05091 | B167: 12918 | C167: 13213 | D167: 12083 | E167: 12208 | F167: 12260 | G167: 62682
A168: 05093 | B168: 17707 | C168: 17815 | D168: 16903 | E168: 16615 | F168: 17176 | G168: 86216
A169: 05095 | B169: 2045 | C169: 2029 | D169: 1935 | E169: 1895 | F169: 1852 | G169: 9756
A170: 05097 | B170: 1343 | C170: 1275 | D170: 1217 | E170: 1208 | F170: 1219 | G170: 6262
A171: 05099 | B171: 2472 | C171: 2510 | D171: 2373 | E171: 2234 | F171: 2143 | G171: 11732
A172: 05101 | B172: 79 | C172: 77 | D172: 1016 | E172: 989 | F172: 985 | G172: 3146
A173: 05103 | B173: 6903 | C173: 6788 | D173: 6486 | E173: 6648 | F173: 8231 | G173: 35056
A174: 05105 | B174: 1152 | C174: 1112 | D174: 1130 | E174: 1124 | F174: 1060 | G174: 5578
A175: 05107 | B175: 5494 | C175: 5337 | D175: 5110 | E175: 4872 | F175: 4697 | G175: 25510
A176: 05109 | B176: 2623 | C176: 2623 | D176: 2598 | E176: 2652 | F176: 2571 | G176: 13067
A177: 05111 | B177: 5254 | C177: 5232 | D177: 5057 | E177: 5226 | F177: 5283 | G177: 26052
A178: 05113 | B178: 5883 | C178: 5892 | D178: 5660 | E178: 5693 | F178: 5897 | G178: 29025
A179: 05115 | B179: 25993 | C179: 25904 | D179: 23903 | E179: 24481 | F179: 25226 | G179: 125507
A180: 05117 | B180: 1468 | C180: 1464 | D180: 1491 | E180: 1492 | F180: 1497 | G180: 7412
A181: 05119 | B181: 251108 | C181: 251743 | D181: 238459 | E181: 243041 | F181: 251363 | G181: 1235714
A182: 05121 | B182: 5707 | C182: 5860 | D182: 5867 | E182: 5949 | F182: 5935 | G182: 29318
A183: 05123 | B183: 7377 | C183: 7236 | D183: 6837 | E183: 6716 | F183: 6837 | G183: 35003
A184: 05125 | B184: 24697 | C184: 24732 | D184: 24628 | E184: 25058 | F184: 26247 | G184: 125362
A185: 05127 | B185: 3060 | C185: 3028 | D185: 3032 | E185: 2971 | F185: 3022 | G185: 15113
A186: 05129 | B186: 1532 | C186: 1526 | D186: 1465 | E186: 1544 | F186: 1451 | G186: 7518
A187: 05131 | B187: 65428 | C187: 64510 | D187: 61303 | E187: 62967 | F187: 65261 | G187: 319469
A188: 05133 | B188: 4857 | C188: 4756 | D188: 4723 | E188: 4668 | F188: 4798 | G188: 23802
A189: 05135 | B189: 3598 | C189: 3512 | D189: 3363 | E189: 3471 | F189: 3707 | G189: 17651
A190: 05137 | B190: 2677 | C190: 2629 | D190: 2468 | E190: 2506 | F190: 2574 | G190: 12854
A191: 05139 | B191: 17408 | C191: 17186 | D191: 16361 | E191: 16438 | F191: 16583 | G191: 83976
A192: 05141 | B192: 3533 | C192: 3413 | D192: 3330 | E192: 3548 | F192: 3770 | G192: 17594
A193: 05143 | B193: 107947 | C193: 109670 | D193: 106463 | E193: 110641 | F193: 116180 | G193: 550901
A194: 05145 | B194: 23889 | C194: 23913 | D194: 23652 | E194: 24526 | F194: 25121 | G194: 121101
A195: 05147 | B195: 1713 | C195: 1718 | D195: 1761 | E195: 1814 | F195: 1903 | G195: 8909
A196: 05149 | B196: 6543 | C196: 6507 | D196: 6415 | E196: 6350 | F196: 6395 | G196: 32210
A197: 05999 | B197: 123 | C197: 118 | D197: 33771 | E197: 40418 | F197: 49427 | G197: 123857
A198: 06000 | B198: 19835701 | C198: 20135400 | D198: 18789404 | E198: 19374434 | F198: 20368524 | G198: 98503463
A199: 06001 | B199: 786038 | C199: 793214 | D199: 731316 | E199: 754951 | F199: 787020 | G199: 3852539
A200: 06003 | B200: 520 | C200: 498 | D200: 412 | E200: 459 | F200: 667 | G200: 2556
... 3518 more rows

Sheet Total covered original data
A1: area_fips | B1: 2018 | C1: 2019 | D1: 2020 | E1: 2021 | F1: 2022 | G1: SumOfAllIndust
A2: 01000 | B2: 1961625 | C2: 1989555 | D2: 1909145 | E2: 1965189 | F2: 2026102 | G2: 9851616
A3: 01001 | B3: 10974 | C3: 11107 | D3: 10794 | E3: 11123 | F3: 11535 | G3: 55533
A4: 01003 | B4: 74051 | C4: 76419 | D4: 73087 | E4: 76546 | F4: 79972 | G4: 380075
A5: 01005 | B5: 8113 | C5: 8239 | D5: 7935 | E5: 7719 | F5: 7823 | G5: 39829
A6: 01007 | B6: 4215 | C6: 4602 | D6: 4653 | E6: 4756 | F6: 4836 | G6: 23062
A7: 01009 | B7: 8535 | C7: 8712 | D7: 8380 | E7: 8496 | F7: 8726 | G7: 42849
A8: 01011 | B8: 2972 | C8: 2950 | D8: 2913 | E8: 2812 | F8: 2713 | G8: 14360
A9: 01013 | B9: 6748 | C9: 6922 | D9: 6382 | E9: 6421 | F9: 6633 | G9: 33106
A10: 01015 | B10: 44436 | C10: 44563 | D10: 42802 | E10: 43520 | F10: 43846 | G10: 219167
A11: 01017 | B11: 8351 | C11: 8480 | D11: 8267 | E11: 8364 | F11: 8533 | G11: 41995
A12: 01019 | B12: 5268 | C12: 5218 | D12: 4956 | E12: 5202 | F12: 5233 | G12: 25877
A13: 01021 | B13: 9511 | C13: 9551 | D13: 9007 | E13: 9070 | F13: 9047 | G13: 46186
A14: 01023 | B14: 3761 | C14: 3653 | D14: 3514 | E14: 3552 | F14: 3401 | G14: 17881
A15: 01025 | B15: 8016 | C15: 7967 | D15: 7841 | E15: 8063 | F15: 8180 | G15: 40067
A16: 01027 | B16: 4275 | C16: 4297 | D16: 4251 | E16: 4243 | F16: 4359 | G16: 21425
A17: 01029 | B17: 2124 | C17: 2051 | D17: 2104 | E17: 2225 | F17: 2440 | G17: 10944
A18: 01031 | B18: 15881 | C18: 16404 | D18: 15899 | E18: 16430 | F18: 16566 | G18: 81180
A19: 01033 | B19: 23830 | C19: 24252 | D19: 23145 | E19: 23434 | F19: 24107 | G19: 118768
A20: 01035 | B20: 3475 | C20: 3431 | D20: 3291 | E20: 3239 | F20: 3150 | G20: 16586
A21: 01037 | B21: 1406 | C21: 1441 | D21: 1307 | E21: 1317 | F21: 1448 | G21: 6919
A22: 01039 | B22: 12373 | C22: 12240 | D22: 11587 | E22: 11868 | F22: 11925 | G22: 59993
A23: 01041 | B23: 3685 | C23: 3742 | D23: 3426 | E23: 3343 | F23: 3244 | G23: 17440
A24: 01043 | B24: 28849 | C24: 28982 | D24: 28128 | E24: 29111 | F24: 30056 | G24: 145126
A25: 01045 | B25: 16978 | C25: 17230 | D25: 16925 | E25: 17324 | F25: 17619 | G25: 86076
A26: 01047 | B26: 12460 | C26: 12201 | D26: 11316 | E26: 11258 | F26: 11479 | G26: 58714
A27: 01049 | B27: 21797 | C27: 22382 | D27: 21501 | E27: 22099 | F27: 22347 | G27: 110126
A28: 01051 | B28: 19848 | C28: 19892 | D28: 19290 | E28: 19794 | F28: 19977 | G28: 98801
A29: 01053 | B29: 12774 | C29: 12875 | D29: 12270 | E29: 12183 | F29: 12510 | G29: 62612
A30: 01055 | B30: 36276 | C30: 35617 | D30: 32042 | E30: 31692 | F30: 32084 | G30: 167711
A31: 01057 | B31: 4020 | C31: 4003 | D31: 3892 | E31: 4003 | F31: 3924 | G31: 19842
A32: 01059 | B32: 10811 | C32: 11092 | D32: 10678 | E32: 10701 | F32: 11002 | G32: 54284
A33: 01061 | B33: 5012 | C33: 5110 | D33: 5092 | E33: 5115 | F33: 5356 | G33: 25685
A34: 01063 | B34: 1770 | C34: 1774 | D34: 1834 | E34: 1793 | F34: 1674 | G34: 8845
A35: 01065 | B35: 2732 | C35: 2675 | D35: 2530 | E35: 2532 | F35: 2547 | G35: 13016
A36: 01067 | B36: 3339 | C36: 3382 | D36: 3536 | E36: 3600 | F36: 3722 | G36: 17579
A37: 01069 | B37: 48045 | C37: 49036 | D37: 47226 | E37: 48139 | F37: 49495 | G37: 241941
A38: 01071 | B38: 15893 | C38: 15596 | D38: 14600 | E38: 15026 | F38: 15231 | G38: 76346
A39: 01073 | B39: 349955 | C39: 354285 | D39: 337153 | E39: 347199 | F39: 356742 | G39: 1745334
A40: 01075 | B40: 3457 | C40: 3472 | D40: 3321 | E40: 3324 | F40: 3341 | G40: 16915
A41: 01077 | B41: 29738 | C41: 29715 | D41: 28295 | E41: 28908 | F41: 29630 | G41: 146286
A42: 01079 | B42: 4901 | C42: 5033 | D42: 4886 | E42: 4970 | F42: 5051 | G42: 24841
A43: 01081 | B43: 58997 | C43: 60300 | D43: 57378 | E43: 59363 | F43: 62001 | G43: 298039
A44: 01083 | B44: 23979 | C44: 24368 | D44: 24015 | E44: 25779 | F44: 28946 | G44: 127087
A45: 01085 | B45: 2354 | C45: 2320 | D45: 2192 | E45: 2165 | F45: 2753 | G45: 11784
A46: 01087 | B46: 4750 | C46: 4628 | D46: 4482 | E46: 4490 | F46: 4467 | G46: 22817
A47: 01089 | B47: 200339 | C47: 206133 | D47: 202530 | E47: 210051 | F47: 217074 | G47: 1036127
A48: 01091 | B48: 7084 | C48: 7180 | D48: 6926 | E48: 7058 | F48: 7207 | G48: 35455
A49: 01093 | B49: 9990 | C49: 10075 | D49: 10157 | E49: 10571 | F49: 11023 | G49: 51816
A50: 01095 | B50: 37023 | C50: 38054 | D50: 37252 | E50: 38005 | F50: 38984 | G50: 189318
A51: 01097 | B51: 171077 | C51: 171826 | D51: 164350 | E51: 169918 | F51: 172206 | G51: 849377
A52: 01099 | B52: 6126 | C52: 6241 | D52: 6135 | E52: 6168 | F52: 6248 | G52: 30918
A53: 01101 | B53: 131023 | C53: 130780 | D53: 124286 | E53: 126809 | F53: 128398 | G53: 641296
A54: 01103 | B54: 48357 | C54: 49920 | D54: 49045 | E54: 49574 | F54: 50750 | G54: 247646
A55: 01105 | B55: 2121 | C55: 2094 | D55: 1920 | E55: 1845 | F55: 1800 | G55: 9780
A56: 01107 | B56: 3814 | C56: 3745 | D56: 3561 | E56: 3570 | F56: 3645 | G56: 18335
A57: 01109 | B57: 14255 | C57: 14329 | D57: 14334 | E57: 14945 | F57: 15090 | G57: 72953
A58: 01111 | B58: 4824 | C58: 4762 | D58: 4662 | E58: 4690 | F58: 4810 | G58: 23748
A59: 01113 | B59: 14063 | C59: 14181 | D59: 13623 | E59: 13556 | F59: 13682 | G59: 69105
A60: 01115 | B60: 19780 | C60: 20062 | D60: 18836 | E60: 19273 | F60: 19970 | G60: 97921
A61: 01117 | B61: 85040 | C61: 84905 | D61: 81126 | E61: 83679 | F61: 86332 | G61: 421082
A62: 01119 | B62: 2919 | C62: 2978 | D62: 2866 | E62: 2807 | F62: 2887 | G62: 14457
A63: 01121 | B63: 29683 | C63: 30078 | D63: 28951 | E63: 29562 | F63: 30716 | G63: 148990
A64: 01123 | B64: 12961 | C64: 13381 | D64: 12352 | E64: 12640 | F64: 12586 | G64: 63920
A65: 01125 | B65: 94506 | C65: 97250 | D65: 90085 | E65: 90584 | F65: 93942 | G65: 466367
A66: 01127 | B66: 18311 | C66: 18415 | D66: 17326 | E66: 17633 | F66: 17790 | G66: 89475
A67: 01129 | B67: 3585 | C67: 3594 | D67: 3454 | E67: 3432 | F67: 3482 | G67: 17547
A68: 01131 | B68: 2815 | C68: 2793 | D68: 2679 | E68: 2542 | F68: 2531 | G68: 13360
A69: 01133 | B69: 7878 | C69: 8157 | D69: 8017 | E69: 8099 | F69: 8211 | G69: 40362
A70: 01999 | B70: 53319 | C70: 56417 | D70: 56554 | E70: 65870 | F70: 77068 | G70: 309228
A71: 02000 | B71: 321078 | C71: 323695 | D71: 297429 | E71: 305145 | F71: 313959 | G71: 1561306
A72: 02013 | B72: 2183 | C72: 2405 | D72: 2290 | E72: 2228 | F72: 2212 | G72: 11318
A73: 02016 | B73: 3328 | C73: 3342 | D73: 3390 | E73: 3071 | F73: 2998 | G73: 16129
A74: 02020 | B74: 148160 | C74: 147964 | D74: 135969 | E74: 138754 | F74: 141687 | G74: 712534
A75: 02050 | B75: 6967 | C75: 6896 | D75: 6607 | E75: 6303 | F75: 6330 | G75: 33103
A76: 02060 | B76: 1300 | C76: 1287 | D76: 1071 | E76: 1240 | F76: 1173 | G76: 6071
A77: 02063 | D77: 3299 | E77: 3480 | F77: 3637 | G77: 10416
A78: 02066 | D78: 967 | E78: 972 | F78: 1046 | G78: 2985
A79: 02068 | B79: 2066 | C79: 2096 | D79: 983 | E79: 1388 | F79: 1843 | G79: 8376
A80: 02070 | B80: 2561 | C80: 2498 | D80: 2082 | E80: 2005 | F80: 2020 | G80: 11166
A81: 02090 | B81: 36722 | C81: 36835 | D81: 34582 | E81: 34983 | F81: 35224 | G81: 178346
A82: 02100 | B82: 996 | C82: 1019 | D82: 763 | E82: 802 | F82: 905 | G82: 4485
A83: 02105 | B83: 794 | C83: 837 | D83: 674 | E83: 786 | F83: 915 | G83: 4006
A84: 02110 | B84: 17308 | C84: 17552 | D84: 15499 | E84: 16083 | F84: 16965 | G84: 83407
A85: 02122 | B85: 19492 | C85: 19694 | D85: 18499 | E85: 19766 | F85: 20505 | G85: 97956
A86: 02130 | B86: 7325 | C86: 7298 | D86: 6187 | E86: 6391 | F86: 6865 | G86: 34066
A87: 02150 | B87: 5881 | C87: 5783 | D87: 5584 | E87: 5463 | F87: 5529 | G87: 28240
A88: 02158 | B88: 2262 | C88: 2391 | D88: 1888 | E88: 1941 | F88: 1981 | G88: 10463
A89: 02164 | B89: 973 | C89: 940 | D89: 757 | E89: 821 | F89: 839 | G89: 4330
A90: 02170 | B90: 23312 | C90: 24486 | D90: 24327 | E90: 26234 | F90: 27560 | G90: 125919
A91: 02180 | B91: 3849 | C91: 3864 | D91: 3607 | E91: 3700 | F91: 3871 | G91: 18891
A92: 02185 | B92: 11897 | C92: 12648 | D92: 10824 | E92: 9705 | F92: 10008 | G92: 55082
A93: 02188 | B93: 2878 | C93: 2898 | D93: 2853 | E93: 2764 | F93: 2680 | G93: 14073
A94: 02195 | B94: 1209 | C94: 1246 | D94: 1200 | E94: 1383 | F94: 1211 | G94: 6249
A95: 02198 | B95: 2215 | C95: 2253 | D95: 2128 | E95: 2091 | F95: 2052 | G95: 10739
A96: 02220 | B96: 4170 | C96: 4231 | D96: 3675 | E96: 4060 | F96: 4198 | G96: 20334
A97: 02230 | B97: 957 | C97: 960 | D97: 440 | E97: 500 | F97: 758 | G97: 3615
A98: 02240 | B98: 2486 | C98: 2431 | D98: 2479 | E98: 2716 | F98: 2740 | G98: 12852
A99: 02261 | B99: 4890 | C99: 4917 | G99: 9807
A100: 02275 | B100: 852 | C100: 824 | D100: 725 | E100: 712 | F100: 673 | G100: 3786
A101: 02282 | B101: 268 | C101: 276 | D101: 294 | E101: 331 | F101: 340 | G101: 1509
A102: 02290 | B102: 2296 | C102: 2249 | D102: 2093 | E102: 2166 | F102: 2149 | G102: 10953
A103: 02999 | B103: 1483 | C103: 1576 | D103: 1694 | E103: 2309 | F103: 3046 | G103: 10108
A104: 04000 | B104: 2826095 | C104: 2908826 | D104: 2823760 | E104: 2935150 | F104: 3075427 | G104: 14569258
A105: 04001 | B105: 18029 | C105: 17742 | D105: 16936 | E105: 16918 | F105: 16677 | G105: 86302
A106: 04003 | B106: 33994 | C106: 34175 | D106: 34833 | E106: 34085 | F106: 33997 | G106: 171084
A107: 04005 | B107: 62682 | C107: 62378 | D107: 56883 | E107: 59432 | F107: 61999 | G107: 303374
A108: 04007 | B108: 14868 | C108: 14848 | D108: 14190 | E108: 14452 | F108: 14640 | G108: 72998
A109: 04009 | B109: 9148 | C109: 9420 | D109: 9583 | E109: 9746 | F109: 10088 | G109: 47985
A110: 04011 | B110: 4890 | C110: 5138 | D110: 5013 | E110: 5054 | F110: 5511 | G110: 25606
A111: 04012 | B111: 5816 | C111: 6045 | D111: 5860 | E111: 5868 | F111: 5987 | G111: 29576
A112: 04013 | B112: 1993417 | C112: 2062384 | D112: 2005867 | E112: 2083731 | F112: 2170744 | G112: 10316143
A113: 04015 | B113: 50290 | C113: 51173 | D113: 50365 | E113: 54260 | F113: 54756 | G113: 260844
A114: 04017 | B114: 26677 | C114: 26820 | D114: 26047 | E114: 27014 | F114: 27528 | G114: 134086
A115: 04019 | B115: 368438 | C115: 375906 | D115: 361323 | E115: 368320 | F115: 377863 | G115: 1851850
A116: 04021 | B116: 62137 | C116: 63101 | D116: 62739 | E116: 64920 | F116: 68953 | G116: 321850
A117: 04023 | B117: 13305 | C117: 13608 | D117: 13093 | E117: 13151 | F117: 13336 | G117: 66493
A118: 04025 | B118: 64683 | C118: 65202 | D118: 63197 | E118: 65496 | F118: 67528 | G118: 326106
A119: 04027 | B119: 67639 | C119: 68455 | D119: 65963 | E119: 67876 | F119: 70648 | G119: 340581
A120: 04999 | B120: 30085 | C120: 32431 | D120: 31869 | E120: 44827 | F120: 75174 | G120: 214386
A121: 05000 | B121: 1211021 | C121: 1218106 | D121: 1174632 | E121: 1203304 | F121: 1248972 | G121: 6056035
A122: 05001 | B122: 9784 | C122: 10300 | D122: 10162 | E122: 10383 | F122: 10342 | G122: 50971
A123: 05003 | B123: 6680 | C123: 6562 | D123: 5772 | E123: 5680 | F123: 5801 | G123: 30495
A124: 05005 | B124: 14974 | C124: 14824 | D124: 14753 | E124: 15153 | F124: 15561 | G124: 75265
A125: 05007 | B125: 119780 | C125: 122478 | D125: 123031 | E125: 126275 | F125: 134825 | G125: 626389
A126: 05009 | B126: 14063 | C126: 14208 | D126: 13595 | E126: 14239 | F126: 14453 | G126: 70558
A127: 05011 | B127: 3816 | C127: 3809 | D127: 3625 | E127: 3560 | F127: 3550 | G127: 18360
A128: 05013 | B128: 3030 | C128: 3134 | D128: 3373 | E128: 3532 | F128: 1970 | G128: 15039
A129: 05015 | B129: 10658 | C129: 10843 | D129: 10529 | E129: 10947 | F129: 10889 | G129: 53866
A130: 05017 | B130: 3051 | C130: 2979 | D130: 2807 | E130: 2778 | F130: 2826 | G130: 14441
A131: 05019 | B131: 9383 | C131: 9302 | D131: 8617 | E131: 8421 | F131: 8195 | G131: 43918
A132: 05021 | B132: 3306 | C132: 3141 | D132: 3049 | E132: 3072 | F132: 3070 | G132: 15638
A133: 05023 | B133: 6325 | C133: 6392 | D133: 6124 | E133: 6265 | F133: 6325 | G133: 31431
A134: 05025 | B134: 1066 | C134: 1033 | D134: 1006 | E134: 968 | F134: 989 | G134: 5062
A135: 05027 | B135: 7948 | C135: 8118 | D135: 7735 | E135: 7789 | F135: 7917 | G135: 39507
A136: 05029 | B136: 6384 | C136: 6526 | D136: 6624 | E136: 6745 | F136: 6826 | G136: 33105
A137: 05031 | B137: 51051 | C137: 52105 | D137: 50501 | E137: 51936 | F137: 53317 | G137: 258910
A138: 05033 | B138: 19530 | C138: 19692 | D138: 19352 | E138: 19221 | F138: 19269 | G138: 97064
A139: 05035 | B139: 16113 | C139: 16347 | D139: 15187 | E139: 15076 | F139: 15750 | G139: 78473
A140: 05037 | B140: 4823 | C140: 4798 | D140: 4622 | E140: 4614 | F140: 4643 | G140: 23500
A141: 05039 | B141: 2690 | C141: 2664 | D141: 2640 | E141: 2679 | F141: 2639 | G141: 13312
A142: 05041 | B142: 4700 | C142: 4677 | D142: 4489 | E142: 4277 | F142: 4333 | G142: 22476
A143: 05043 | B143: 6445 | C143: 6438 | D143: 6222 | E143: 6242 | F143: 6284 | G143: 31631
A144: 05045 | B144: 40539 | C144: 41158 | D144: 39916 | E144: 41142 | F144: 42730 | G144: 205485
A145: 05047 | B145: 4670 | C145: 4805 | D145: 4638 | E145: 4681 | F145: 4829 | G145: 23623
A146: 05049 | B146: 1981 | C146: 2082 | D146: 2047 | E146: 2100 | F146: 2154 | G146: 10364
A147: 05051 | B147: 37201 | C147: 37761 | D147: 35679 | E147: 36547 | F147: 37775 | G147: 184963
A148: 05053 | B148: 4168 | C148: 4235 | D148: 4040 | E148: 4180 | F148: 4287 | G148: 20910
A149: 05055 | B149: 15506 | C149: 15607 | D149: 14674 | E149: 15145 | F149: 15619 | G149: 76551
A150: 05057 | B150: 7875 | C150: 7783 | D150: 7411 | E150: 7367 | F150: 7805 | G150: 38241
A151: 05059 | B151: 8248 | C151: 8220 | D151: 8196 | E151: 8286 | F151: 8122 | G151: 41072
A152: 05061 | B152: 6937 | C152: 6653 | D152: 6363 | E152: 6515 | F152: 6431 | G152: 32899
A153: 05063 | B153: 15919 | C153: 16200 | D153: 16047 | E153: 16355 | F153: 16777 | G153: 81298
A154: 05065 | B154: 3078 | C154: 3095 | D154: 2757 | E154: 2717 | F154: 2797 | G154: 14444
A155: 05067 | B155: 5159 | C155: 5153 | D155: 5188 | E155: 5156 | F155: 5115 | G155: 25771
A156: 05069 | B156: 27608 | C156: 27065 | D156: 26254 | E156: 25975 | F156: 25838 | G156: 132740
A157: 05071 | B157: 8561 | C157: 8433 | D157: 8127 | E157: 8173 | F157: 8512 | G157: 41806
A158: 05073 | B158: 1193 | C158: 1162 | D158: 1081 | E158: 1065 | F158: 1075 | G158: 5576
A159: 05075 | B159: 3968 | C159: 3912 | D159: 3780 | E159: 3837 | F159: 3968 | G159: 19465
A160: 05077 | B160: 1920 | C160: 1848 | D160: 1736 | E160: 1644 | F160: 1708 | G160: 8856
A161: 05079 | B161: 2820 | C161: 2823 | D161: 2706 | E161: 2628 | F161: 2684 | G161: 13661
A162: 05081 | B162: 3359 | C162: 3444 | D162: 3151 | E162: 2989 | F162: 3083 | G162: 16026
A163: 05083 | B163: 5322 | C163: 5114 | D163: 5116 | E163: 5164 | F163: 5153 | G163: 25869
A164: 05085 | B164: 14013 | C164: 13975 | D164: 13572 | E164: 14305 | F164: 14924 | G164: 70789
A165: 05087 | B165: 3339 | C165: 3391 | D165: 3389 | E165: 3446 | F165: 3546 | G165: 17111
A166: 05089 | B166: 3754 | C166: 3908 | D166: 3398 | E166: 3400 | F166: 3599 | G166: 18059
A167: 05091 | B167: 12918 | C167: 13213 | D167: 12084 | E167: 12208 | F167: 12260 | G167: 62683
A168: 05093 | B168: 17706 | C168: 17814 | D168: 16902 | E168: 16615 | F168: 17176 | G168: 86213
A169: 05095 | B169: 2045 | C169: 2029 | D169: 1935 | E169: 1895 | F169: 1852 | G169: 9756
A170: 05097 | B170: 1343 | C170: 1274 | D170: 1217 | E170: 1209 | F170: 1218 | G170: 6261
A171: 05099 | B171: 2472 | C171: 2509 | D171: 2374 | E171: 2234 | F171: 2143 | G171: 11732
A172: 05101 | B172: 1056 | C172: 1054 | D172: 1016 | E172: 989 | F172: 985 | G172: 5100
A173: 05103 | B173: 6903 | C173: 6788 | D173: 6486 | E173: 6649 | F173: 8230 | G173: 35056
A174: 05105 | B174: 1152 | C174: 1112 | D174: 1130 | E174: 1123 | F174: 1060 | G174: 5577
A175: 05107 | B175: 5494 | C175: 5337 | D175: 5110 | E175: 4872 | F175: 4697 | G175: 25510
A176: 05109 | B176: 2623 | C176: 2623 | D176: 2599 | E176: 2651 | F176: 2572 | G176: 13068
A177: 05111 | B177: 5254 | C177: 5232 | D177: 5057 | E177: 5225 | F177: 5283 | G177: 26051
A178: 05113 | B178: 5884 | C178: 5892 | D178: 5660 | E178: 5693 | F178: 5896 | G178: 29025
A179: 05115 | B179: 25993 | C179: 25904 | D179: 23903 | E179: 24482 | F179: 25227 | G179: 125509
A180: 05117 | B180: 1468 | C180: 1465 | D180: 1491 | E180: 1491 | F180: 1498 | G180: 7413
A181: 05119 | B181: 251108 | C181: 251743 | D181: 238460 | E181: 243041 | F181: 251364 | G181: 1235716
A182: 05121 | B182: 5707 | C182: 5859 | D182: 5866 | E182: 5950 | F182: 5934 | G182: 29316
A183: 05123 | B183: 7377 | C183: 7236 | D183: 6837 | E183: 6716 | F183: 6837 | G183: 35003
A184: 05125 | B184: 24697 | C184: 24731 | D184: 24628 | E184: 25057 | F184: 26247 | G184: 125360
A185: 05127 | B185: 3060 | C185: 3028 | D185: 3032 | E185: 2970 | F185: 3022 | G185: 15112
A186: 05129 | B186: 1531 | C186: 1525 | D186: 1465 | E186: 1544 | F186: 1452 | G186: 7517
A187: 05131 | B187: 65429 | C187: 64509 | D187: 61302 | E187: 62966 | F187: 65260 | G187: 319466
A188: 05133 | B188: 4856 | C188: 4756 | D188: 4722 | E188: 4668 | F188: 4797 | G188: 23799
A189: 05135 | B189: 3598 | C189: 3511 | D189: 3363 | E189: 3471 | F189: 3706 | G189: 17649
A190: 05137 | B190: 2677 | C190: 2630 | D190: 2468 | E190: 2507 | F190: 2575 | G190: 12857
A191: 05139 | B191: 17409 | C191: 17187 | D191: 16360 | E191: 16437 | F191: 16583 | G191: 83976
A192: 05141 | B192: 3534 | C192: 3412 | D192: 3329 | E192: 3548 | F192: 3770 | G192: 17593
A193: 05143 | B193: 107947 | C193: 109670 | D193: 106463 | E193: 110640 | F193: 116180 | G193: 550900
A194: 05145 | B194: 23889 | C194: 23914 | D194: 23652 | E194: 24527 | F194: 25120 | G194: 121102
A195: 05147 | B195: 1712 | C195: 1718 | D195: 1762 | E195: 1813 | F195: 1904 | G195: 8909
A196: 05149 | B196: 6543 | C196: 6506 | D196: 6415 | E196: 6350 | F196: 6395 | G196: 32209
A197: 05999 | B197: 34904 | C197: 35733 | D197: 34468 | E197: 41092 | F197: 49426 | G197: 195623
A198: 06000 | B198: 17355855 | C198: 17631489 | D198: 16378059 | E198: 16974870 | F198: 17903539 | G198: 86243812
A199: 06001 | B199: 786038 | C199: 793213 | D199: 731316 | E199: 754951 | F199: 787020 | G199: 3852538
A200: 06003 | B200: 783 | C200: 763 | D200: 657 | E200: 693 | F200: 668 | G200: 3564
... 4231 more rows

Sheet Suppression comparison
A1: area_fips | B1: Outdoor | C1: Total_covered | D1: Sum_all_industries | E1: percent (outdoor/ total covered) | F1: percent (outdoor/ all industries) | G1: difference
A2: =_xlfn.UNIQUE('Outdoor original data'!A2:A3717) -> 01000 | B2: =_xlfn.XLOOKUP(A2,'Outdoor original data'!$A$2:$A$3717,'Outdoor original data'!$G$2:$G$3717) -> 864141 | C2: =_xlfn.XLOOKUP(A2,'Total covered original data'!$A$2:$A$4431,'Total covered original data'!$G$2:$G$4431) -> 9851616 | D2: =_xlfn.XLOOKUP(A2,'Total summed original data'!$A$2:$A$3718,'Total summed original data'!$G$2:$G$3718) -> 11672382 | E2: =(B2/C2)*100 -> 8.771566005 | F2: =(B2/D2)*100 -> 7.403296088 | G2: =F2-E2 -> -1.368269917
A3: 01001 | B3: =_xlfn.XLOOKUP(A3,'Outdoor original data'!$A$2:$A$3717,'Outdoor original data'!$G$2:$G$3717) -> 4623 | C3: =_xlfn.XLOOKUP(A3,'Total covered original data'!$A$2:$A$4431,'Total covered original data'!$G$2:$G$4431) -> 55533 | D3: =_xlfn.XLOOKUP(A3,'Total summed original data'!$A$2:$A$3718,'Total summed original data'!$G$2:$G$3718) -> 55534 | E3: =(B3/C3)*100 -> 8.324779861 | F3: =(B3/D3)*100 -> 8.324629956 | G3: =F3-E3 -> -0.0001499042003
A4: 01003 | B4: =_xlfn.XLOOKUP(A4,'Outdoor original data'!$A$2:$A$3717,'Outdoor original data'!$G$2:$G$3717) -> 31294 | C4: =_xlfn.XLOOKUP(A4,'Total covered original data'!$A$2:$A$4431,'Total covered original data'!$G$2:$G$4431) -> 380075 | D4: =_xlfn.XLOOKUP(A4,'Total summed original data'!$A$2:$A$3718,'Total summed original data'!$G$2:$G$3718) -> 380078 | E4: 8.233638098 | F4: 8.233573109 | G4: -6.498906617e-05
A5: 01005 | B5: =_xlfn.XLOOKUP(A5,'Outdoor original data'!$A$2:$A$3717,'Outdoor original data'!$G$2:$G$3717) -> 4308 | C5: =_xlfn.XLOOKUP(A5,'Total covered original data'!$A$2:$A$4431,'Total covered original data'!$G$2:$G$4431) -> 39829 | D5: =_xlfn.XLOOKUP(A5,'Total summed original data'!$A$2:$A$3718,'Total summed original data'!$G$2:$G$3718) -> 39831 | E5: 10.81623942 | F5: 10.81569632 | G5: -0.0005431065965
A6: 01007 | B6: =_xlfn.XLOOKUP(A6,'Outdoor original data'!$A$2:$A$3717,'Outdoor original data'!$G$2:$G$3717) -> 4016 | C6: =_xlfn.XLOOKUP(A6,'Total covered original data'!$A$2:$A$4431,'Total covered original data'!$G$2:$G$4431) -> 23062 | D6: =_xlfn.XLOOKUP(A6,'Total summed original data'!$A$2:$A$3718,'Total summed original data'!$G$2:$G$3718) -> 23063 | E6: 17.41392767 | F6: 17.41317261 | G6: -0.0007550590848
A7: 01009 | B7: =_xlfn.XLOOKUP(A7,'Outdoor original data'!$A$2:$A$3717,'Outdoor original data'!$G$2:$G$3717) -> 3680 | C7: =_xlfn.XLOOKUP(A7,'Total covered original data'!$A$2:$A$4431,'Total covered original data'!$G$2:$G$4431) -> 42849 | D7: =_xlfn.XLOOKUP(A7,'Total summed original data'!$A$2:$A$3718,'Total summed original data'!$G$2:$G$3718) -> 42851 | E7: 8.588298443 | F7: 8.587897599 | G7: -0.0004008447151
A8: 01011 | B8: =_xlfn.XLOOKUP(A8,'Outdoor original data'!$A$2:$A$3717,'Outdoor original data'!$G$2:$G$3717) -> 689 | C8: =_xlfn.XLOOKUP(A8,'Total covered original data'!$A$2:$A$4431,'Total covered original data'!$G$2:$G$4431) -> 14360 | D8: =_xlfn.XLOOKUP(A8,'Total summed original data'!$A$2:$A$3718,'Total summed original data'!$G$2:$G$3718) -> 14361 | E8: 4.798050139 | F8: 4.797716036 | G8: -0.0003341027881
A9: 01013 | B9: =_xlfn.XLOOKUP(A9,'Outdoor original data'!$A$2:$A$3717,'Outdoor original data'!$G$2:$G$3717) -> 2707 | C9: =_xlfn.XLOOKUP(A9,'Total covered original data'!$A$2:$A$4431,'Total covered original data'!$G$2:$G$4431) -> 33106 | D9: =_xlfn.XLOOKUP(A9,'Total summed original data'!$A$2:$A$3718,'Total summed original data'!$G$2:$G$3718) -> 33106 | E9: 8.176765541 | F9: 8.176765541 | G9: 0
A10: 01015 | B10: =_xlfn.XLOOKUP(A10,'Outdoor original data'!$A$2:$A$3717,'Outdoor original data'!$G$2:$G$3717) -> 10251 | C10: =_xlfn.XLOOKUP(A10,'Total covered original data'!$A$2:$A$4431,'Total covered original data'!$G$2:$G$4431) -> 219167 | D10: =_xlfn.XLOOKUP(A10,'Total summed original data'!$A$2:$A$3718,'Total summed original data'!$G$2:$G$3718) -> 219167 | E10: 4.677255244 | F10: 4.677255244 | G10: 0
A11: 01017 | B11: =_xlfn.XLOOKUP(A11,'Outdoor original data'!$A$2:$A$3717,'Outdoor original data'!$G$2:$G$3717) -> 2852 | C11: =_xlfn.XLOOKUP(A11,'Total covered original data'!$A$2:$A$4431,'Total covered original data'!$G$2:$G$4431) -> 41995 | D11: =_xlfn.XLOOKUP(A11,'Total summed original data'!$A$2:$A$3718,'Total summed original data'!$G$2:$G$3718) -> 41997 | E11: 6.791284677 | F11: 6.790961259 | G11: -0.0003234176097
A12: 01019 | B12: =_xlfn.XLOOKUP(A12,'Outdoor original data'!$A$2:$A$3717,'Outdoor original data'!$G$2:$G$3717) -> 1716 | C12: =_xlfn.XLOOKUP(A12,'Total covered original data'!$A$2:$A$4431,'Total covered original data'!$G$2:$G$4431) -> 25877 | D12: =_xlfn.XLOOKUP(A12,'Total summed original data'!$A$2:$A$3718,'Total summed original data'!$G$2:$G$3718) -> 25877 | E12: 6.631371488 | F12: 6.631371488 | G12: 0
A13: 01021 | B13: =_xlfn.XLOOKUP(A13,'Outdoor original data'!$A$2:$A$3717,'Outdoor original data'!$G$2:$G$3717) -> 3473 | C13: =_xlfn.XLOOKUP(A13,'Total covered original data'!$A$2:$A$4431,'Total covered original data'!$G$2:$G$4431) -> 46186 | D13: =_xlfn.XLOOKUP(A13,'Total summed original data'!$A$2:$A$3718,'Total summed original data'!$G$2:$G$3718) -> 46186 | E13: 7.519594682 | F13: 7.519594682 | G13: 0
A14: 01023 | B14: =_xlfn.XLOOKUP(A14,'Outdoor original data'!$A$2:$A$3717,'Outdoor original data'!$G$2:$G$3717) -> 1124 | C14: =_xlfn.XLOOKUP(A14,'Total covered original data'!$A$2:$A$4431,'Total covered original data'!$G$2:$G$4431) -> 17881 | D14: =_xlfn.XLOOKUP(A14,'Total summed original data'!$A$2:$A$3718,'Total summed original data'!$G$2:$G$3718) -> 17883 | E14: 6.286001901 | F14: 6.285298887 | G14: -0.0007030142483
A15: 01025 | B15: =_xlfn.XLOOKUP(A15,'Outdoor original data'!$A$2:$A$3717,'Outdoor original data'!$G$2:$G$3717) -> 3194 | C15: =_xlfn.XLOOKUP(A15,'Total covered original data'!$A$2:$A$4431,'Total covered original data'!$G$2:$G$4431) -> 40067 | D15: =_xlfn.XLOOKUP(A15,'Total summed original data'!$A$2:$A$3718,'Total summed original data'!$G$2:$G$3718) -> 40071 | E15: 7.97164749 | F15: 7.970851738 | G15: -0.0007957522887
A16: 01027 | B16: =_xlfn.XLOOKUP(A16,'Outdoor original data'!$A$2:$A$3717,'Outdoor original data'!$G$2:$G$3717) -> 963 | C16: =_xlfn.XLOOKUP(A16,'Total covered original data'!$A$2:$A$4431,'Total covered original data'!$G$2:$G$4431) -> 21425 | D16: =_xlfn.XLOOKUP(A16,'Total summed original data'!$A$2:$A$3718,'Total summed original data'!$G$2:$G$3718) -> 21425 | E16: 4.494749125 | F16: 4.494749125 | G16: 0
A17: 01029 | B17: =_xlfn.XLOOKUP(A17,'Outdoor original data'!$A$2:$A$3717,'Outdoor original data'!$G$2:$G$3717) -> 1512 | C17: =_xlfn.XLOOKUP(A17,'Total covered original data'!$A$2:$A$4431,'Total covered original data'!$G$2:$G$4431) -> 10944 | D17: =_xlfn.XLOOKUP(A17,'Total summed original data'!$A$2:$A$3718,'Total summed original data'!$G$2:$G$3718) -> 10943 | E17: 13.81578947 | F17: 13.817052 | G17: 0.001262523026
A18: 01031 | B18: =_xlfn.XLOOKUP(A18,'Outdoor original data'!$A$2:$A$3717,'Outdoor original data'!$G$2:$G$3717) -> 4938 | C18: =_xlfn.XLOOKUP(A18,'Total covered original data'!$A$2:$A$4431,'Total covered original data'!$G$2:$G$4431) -> 81180 | D18: =_xlfn.XLOOKUP(A18,'Total summed original data'!$A$2:$A$3718,'Total summed original data'!$G$2:$G$3718) -> 81180 | E18: 6.08277901 | F18: 6.08277901 | G18: 0
A19: 01033 | B19: =_xlfn.XLOOKUP(A19,'Outdoor original data'!$A$2:$A$3717,'Outdoor original data'!$G$2:$G$3717) -> 12346 | C19: =_xlfn.XLOOKUP(A19,'Total covered original data'!$A$2:$A$4431,'Total covered original data'!$G$2:$G$4431) -> 118768 | D19: =_xlfn.XLOOKUP(A19,'Total summed original data'!$A$2:$A$3718,'Total summed original data'!$G$2:$G$3718) -> 118770 | E19: 10.39505591 | F19: 10.39488086 | G19: -0.0001750451445
A20: 01035 | B20: =_xlfn.XLOOKUP(A20,'Outdoor original data'!$A$2:$A$3717,'Outdoor original data'!$G$2:$G$3717) -> 624 | C20: =_xlfn.XLOOKUP(A20,'Total covered original data'!$A$2:$A$4431,'Total covered original data'!$G$2:$G$4431) -> 16586 | D20: =_xlfn.XLOOKUP(A20,'Total summed original data'!$A$2:$A$3718,'Total summed original data'!$G$2:$G$3718) -> 16588 | E20: 3.762209092 | F20: 3.761755486 | G20: -0.0004536061119
A21: 01037 | B21: =_xlfn.XLOOKUP(A21,'Outdoor original data'!$A$2:$A$3717,'Outdoor original data'!$G$2:$G$3717) -> 512 | C21: =_xlfn.XLOOKUP(A21,'Total covered original data'!$A$2:$A$4431,'Total covered original data'!$G$2:$G$4431) -> 6919 | D21: =_xlfn.XLOOKUP(A21,'Total summed original data'!$A$2:$A$3718,'Total summed original data'!$G$2:$G$3718) -> 6919 | E21: 7.399913282 | F21: 7.399913282 | G21: 0
A22: 01039 | B22: =_xlfn.XLOOKUP(A22,'Outdoor original data'!$A$2:$A$3717,'Outdoor original data'!$G$2:$G$3717) -> 5922 | C22: =_xlfn.XLOOKUP(A22,'Total covered original data'!$A$2:$A$4431,'Total covered original data'!$G$2:$G$4431) -> 59993 | D22: =_xlfn.XLOOKUP(A22,'Total summed original data'!$A$2:$A$3718,'Total summed original data'!$G$2:$G$3718) -> 59995 | E22: 9.871151634 | F22: 9.870822569 | G22: -0.00032906581
A23: 01041 | B23: =_xlfn.XLOOKUP(A23,'Outdoor original data'!$A$2:$A$3717,'Outdoor original data'!$G$2:$G$3717) -> 1378 | C23: =_xlfn.XLOOKUP(A23,'Total covered original data'!$A$2:$A$4431,'Total covered original data'!$G$2:$G$4431) -> 17440 | D23: =_xlfn.XLOOKUP(A23,'Total summed original data'!$A$2:$A$3718,'Total summed original data'!$G$2:$G$3718) -> 17442 | E23: 7.901376147 | F23: 7.90047013 | G23: -0.0009060172167
A24: 01043 | B24: =_xlfn.XLOOKUP(A24,'Outdoor original data'!$A$2:$A$3717,'Outdoor original data'!$G$2:$G$3717) -> 8202 | C24: =_xlfn.XLOOKUP(A24,'Total covered original data'!$A$2:$A$4431,'Total covered original data'!$G$2:$G$4431) -> 145126 | D24: =_xlfn.XLOOKUP(A24,'Total summed original data'!$A$2:$A$3718,'Total summed original data'!$G$2:$G$3718) -> 145126 | E24: 5.651640643 | F24: 5.651640643 | G24: 0
A25: 01045 | B25: =_xlfn.XLOOKUP(A25,'Outdoor original data'!$A$2:$A$3717,'Outdoor original data'!$G$2:$G$3717) -> 3801 | C25: =_xlfn.XLOOKUP(A25,'Total covered original data'!$A$2:$A$4431,'Total covered original data'!$G$2:$G$4431) -> 86076 | D25: =_xlfn.XLOOKUP(A25,'Total summed original data'!$A$2:$A$3718,'Total summed original data'!$G$2:$G$3718) -> 86076 | E25: 4.415865049 | F25: 4.415865049 | G25: 0
A26: 01047 | B26: =_xlfn.XLOOKUP(A26,'Outdoor original data'!$A$2:$A$3717,'Outdoor original data'!$G$2:$G$3717) -> 3841 | C26: =_xlfn.XLOOKUP(A26,'Total covered original data'!$A$2:$A$4431,'Total covered original data'!$G$2:$G$4431) -> 58714 | D26: =_xlfn.XLOOKUP(A26,'Total summed original data'!$A$2:$A$3718,'Total summed original data'!$G$2:$G$3718) -> 58715 | E26: 6.541880982 | F26: 6.541769565 | G26: -0.0001114175421
A27: 01049 | B27: =_xlfn.XLOOKUP(A27,'Outdoor original data'!$A$2:$A$3717,'Outdoor original data'!$G$2:$G$3717) -> 4092 | C27: =_xlfn.XLOOKUP(A27,'Total covered original data'!$A$2:$A$4431,'Total covered original data'!$G$2:$G$4431) -> 110126 | D27: =_xlfn.XLOOKUP(A27,'Total summed original data'!$A$2:$A$3718,'Total summed original data'!$G$2:$G$3718) -> 110126 | E27: 3.715743784 | F27: 3.715743784 | G27: 0
A28: 01051 | B28: =_xlfn.XLOOKUP(A28,'Outdoor original data'!$A$2:$A$3717,'Outdoor original data'!$G$2:$G$3717) -> 9380 | C28: =_xlfn.XLOOKUP(A28,'Total covered original data'!$A$2:$A$4431,'Total covered original data'!$G$2:$G$4431) -> 98801 | D28: =_xlfn.XLOOKUP(A28,'Total summed original data'!$A$2:$A$3718,'Total summed original data'!$G$2:$G$3718) -> 98801 | E28: 9.493831034 | F28: 9.493831034 | G28: 0
A29: 01053 | B29: =_xlfn.XLOOKUP(A29,'Outdoor original data'!$A$2:$A$3717,'Outdoor original data'!$G$2:$G$3717) -> 6358 | C29: =_xlfn.XLOOKUP(A29,'Total covered original data'!$A$2:$A$4431,'Total covered original data'!$G$2:$G$4431) -> 62612 | D29: =_xlfn.XLOOKUP(A29,'Total summed original data'!$A$2:$A$3718,'Total summed original data'!$G$2:$G$3718) -> 62615 | E29: 10.15460295 | F29: 10.15411643 | G29: -0.0004865257343
A30: 01055 | B30: =_xlfn.XLOOKUP(A30,'Outdoor original data'!$A$2:$A$3717,'Outdoor original data'!$G$2:$G$3717) -> 6860 | C30: =_xlfn.XLOOKUP(A30,'Total covered original data'!$A$2:$A$4431,'Total covered original data'!$G$2:$G$4431) -> 167711 | D30: =_xlfn.XLOOKUP(A30,'Total summed original data'!$A$2:$A$3718,'Total summed original data'!$G$2:$G$3718) -> 167714 | E30: 4.090369743 | F30: 4.090296576 | G30: -7.316687474e-05
A31: 01057 | B31: =_xlfn.XLOOKUP(A31,'Outdoor original data'!$A$2:$A$3717,'Outdoor original data'!$G$2:$G$3717) -> 1592 | C31: =_xlfn.XLOOKUP(A31,'Total covered original data'!$A$2:$A$4431,'Total covered original data'!$G$2:$G$4431) -> 19842 | D31: =_xlfn.XLOOKUP(A31,'Total summed original data'!$A$2:$A$3718,'Total summed original data'!$G$2:$G$3718) -> 19841 | E31: 8.023384739 | F31: 8.023789124 | G31: 0.0004043840905
A32: 01059 | B32: =_xlfn.XLOOKUP(A32,'Outdoor original data'!$A$2:$A$3717,'Outdoor original data'!$G$2:$G$3717) -> 2279 | C32: =_xlfn.XLOOKUP(A32,'Total covered original data'!$A$2:$A$4431,'Total covered original data'!$G$2:$G$4431) -> 54284 | D32: =_xlfn.XLOOKUP(A32,'Total summed original data'!$A$2:$A$3718,'Total summed original data'!$G$2:$G$3718) -> 54284 | E32: 4.198290472 | F32: 4.198290472 | G32: 0
A33: 01061 | B33: =_xlfn.XLOOKUP(A33,'Outdoor original data'!$A$2:$A$3717,'Outdoor original data'!$G$2:$G$3717) -> 2103 | C33: =_xlfn.XLOOKUP(A33,'Total covered original data'!$A$2:$A$4431,'Total covered original data'!$G$2:$G$4431) -> 25685 | D33: =_xlfn.XLOOKUP(A33,'Total summed original data'!$A$2:$A$3718,'Total summed original data'!$G$2:$G$3718) -> 25687 | E33: 8.187658166 | F33: 8.187020672 | G33: -0.0006374943097
A34: 01063 | B34: =_xlfn.XLOOKUP(A34,'Outdoor original data'!$A$2:$A$3717,'Outdoor original data'!$G$2:$G$3717) -> 441 | C34: =_xlfn.XLOOKUP(A34,'Total covered original data'!$A$2:$A$4431,'Total covered original data'!$G$2:$G$4431) -> 8845 | D34: =_xlfn.XLOOKUP(A34,'Total summed original data'!$A$2:$A$3718,'Total summed original data'!$G$2:$G$3718) -> 8844 | E34: 4.985867722 | F34: 4.986431479 | G34: 0.000563757092
A35: 01065 | B35: =_xlfn.XLOOKUP(A35,'Outdoor original data'!$A$2:$A$3717,'Outdoor original data'!$G$2:$G$3717) -> 1358 | C35: =_xlfn.XLOOKUP(A35,'Total covered original data'!$A$2:$A$4431,'Total covered original data'!$G$2:$G$4431) -> 13016 | D35: =_xlfn.XLOOKUP(A35,'Total summed original data'!$A$2:$A$3718,'Total summed original data'!$G$2:$G$3718) -> 13015 | E35: 10.43331285 | F35: 10.43411448 | G35: 0.0008016375602
A36: 01067 | B36: =_xlfn.XLOOKUP(A36,'Outdoor original data'!$A$2:$A$3717,'Outdoor original data'!$G$2:$G$3717) -> 2971 | C36: =_xlfn.XLOOKUP(A36,'Total covered original data'!$A$2:$A$4431,'Total covered original data'!$G$2:$G$4431) -> 17579 | D36: =_xlfn.XLOOKUP(A36,'Total summed original data'!$A$2:$A$3718,'Total summed original data'!$G$2:$G$3718) -> 17580 | E36: 16.9008476 | F36: 16.89988623 | G36: -0.0009613678955
A37: 01069 | B37: =_xlfn.XLOOKUP(A37,'Outdoor original data'!$A$2:$A$3717,'Outdoor original data'!$G$2:$G$3717) -> 11587 | C37: =_xlfn.XLOOKUP(A37,'Total covered original data'!$A$2:$A$4431,'Total covered original data'!$G$2:$G$4431) -> 241941 | D37: =_xlfn.XLOOKUP(A37,'Total summed original data'!$A$2:$A$3718,'Total summed original data'!$G$2:$G$3718) -> 241941 | E37: 4.78918414 | F37: 4.78918414 | G37: 0
A38: 01071 | B38: =_xlfn.XLOOKUP(A38,'Outdoor original data'!$A$2:$A$3717,'Outdoor original data'!$G$2:$G$3717) -> 3627 | C38: =_xlfn.XLOOKUP(A38,'Total covered original data'!$A$2:$A$4431,'Total covered original data'!$G$2:$G$4431) -> 76346 | D38: =_xlfn.XLOOKUP(A38,'Total summed original data'!$A$2:$A$3718,'Total summed original data'!$G$2:$G$3718) -> 76347 | E38: 4.750740052 | F38: 4.750677826 | G38: -6.222562841e-05
A39: 01073 | B39: =_xlfn.XLOOKUP(A39,'Outdoor original data'!$A$2:$A$3717,'Outdoor original data'!$G$2:$G$3717) -> 156912 | C39: =_xlfn.XLOOKUP(A39,'Total covered original data'!$A$2:$A$4431,'Total covered original data'!$G$2:$G$4431) -> 1745334 | D39: =_xlfn.XLOOKUP(A39,'Total summed original data'!$A$2:$A$3718,'Total summed original data'!$G$2:$G$3718) -> 1745335 | E39: 8.990370897 | F39: 8.990365746 | G39: -5.151086121e-06
A40: 01075 | B40: =_xlfn.XLOOKUP(A40,'Outdoor original data'!$A$2:$A$3717,'Outdoor original data'!$G$2:$G$3717) -> 645 | C40: =_xlfn.XLOOKUP(A40,'Total covered original data'!$A$2:$A$4431,'Total covered original data'!$G$2:$G$4431) -> 16915 | D40: =_xlfn.XLOOKUP(A40,'Total summed original data'!$A$2:$A$3718,'Total summed original data'!$G$2:$G$3718) -> 16917 | E40: 3.813183565 | F40: 3.812732754 | G40: -0.0004508108488
A41: 01077 | B41: =_xlfn.XLOOKUP(A41,'Outdoor original data'!$A$2:$A$3717,'Outdoor original data'!$G$2:$G$3717) -> 8904 | C41: =_xlfn.XLOOKUP(A41,'Total covered original data'!$A$2:$A$4431,'Total covered original data'!$G$2:$G$4431) -> 146286 | D41: =_xlfn.XLOOKUP(A41,'Total summed original data'!$A$2:$A$3718,'Total summed original data'!$G$2:$G$3718) -> 146285 | E41: 6.086706862 | F41: 6.08674847 | G41: 4.160855086e-05
A42: 01079 | B42: =_xlfn.XLOOKUP(A42,'Outdoor original data'!$A$2:$A$3717,'Outdoor original data'!$G$2:$G$3717) -> 2649 | C42: =_xlfn.XLOOKUP(A42,'Total covered original data'!$A$2:$A$4431,'Total covered original data'!$G$2:$G$4431) -> 24841 | D42: =_xlfn.XLOOKUP(A42,'Total summed original data'!$A$2:$A$3718,'Total summed original data'!$G$2:$G$3718) -> 24845 | E42: 10.66382191 | F42: 10.66210505 | G42: -0.001716856012
A43: 01081 | B43: =_xlfn.XLOOKUP(A43,'Outdoor original data'!$A$2:$A$3717,'Outdoor original data'!$G$2:$G$3717) -> 19547 | C43: =_xlfn.XLOOKUP(A43,'Total covered original data'!$A$2:$A$4431,'Total covered original data'!$G$2:$G$4431) -> 298039 | D43: =_xlfn.XLOOKUP(A43,'Total summed original data'!$A$2:$A$3718,'Total summed original data'!$G$2:$G$3718) -> 298041 | E43: 6.558537641 | F43: 6.55849363 | G43: -4.401097595e-05
A44: 01083 | B44: =_xlfn.XLOOKUP(A44,'Outdoor original data'!$A$2:$A$3717,'Outdoor original data'!$G$2:$G$3717) -> 20007 | C44: =_xlfn.XLOOKUP(A44,'Total covered original data'!$A$2:$A$4431,'Total covered original data'!$G$2:$G$4431) -> 127087 | D44: =_xlfn.XLOOKUP(A44,'Total summed original data'!$A$2:$A$3718,'Total summed original data'!$G$2:$G$3718) -> 127089 | E44: 15.7427589 | F44: 15.74251115 | G44: -0.0002477438472
A45: 01085 | B45: =_xlfn.XLOOKUP(A45,'Outdoor original data'!$A$2:$A$3717,'Outdoor original data'!$G$2:$G$3717) -> 609 | C45: =_xlfn.XLOOKUP(A45,'Total covered original data'!$A$2:$A$4431,'Total covered original data'!$G$2:$G$4431) -> 11784 | D45: =_xlfn.XLOOKUP(A45,'Total summed original data'!$A$2:$A$3718,'Total summed original data'!$G$2:$G$3718) -> 11781 | E45: 5.16802444 | F45: 5.169340463 | G45: 0.00131602354
A46: 01087 | B46: =_xlfn.XLOOKUP(A46,'Outdoor original data'!$A$2:$A$3717,'Outdoor original data'!$G$2:$G$3717) -> 672 | C46: =_xlfn.XLOOKUP(A46,'Total covered original data'!$A$2:$A$4431,'Total covered original data'!$G$2:$G$4431) -> 22817 | D46: =_xlfn.XLOOKUP(A46,'Total summed original data'!$A$2:$A$3718,'Total summed original data'!$G$2:$G$3718) -> 22817 | E46: 2.945172459 | F46: 2.945172459 | G46: 0
A47: 01089 | B47: =_xlfn.XLOOKUP(A47,'Outdoor original data'!$A$2:$A$3717,'Outdoor original data'!$G$2:$G$3717) -> 53761 | C47: =_xlfn.XLOOKUP(A47,'Total covered original data'!$A$2:$A$4431,'Total covered original data'!$G$2:$G$4431) -> 1036127 | D47: =_xlfn.XLOOKUP(A47,'Total summed original data'!$A$2:$A$3718,'Total summed original data'!$G$2:$G$3718) -> 1036129 | E47: 5.188649654 | F47: 5.188639639 | G47: -1.001545108e-05
A48: 01091 | B48: =_xlfn.XLOOKUP(A48,'Outdoor original data'!$A$2:$A$3717,'Outdoor original data'!$G$2:$G$3717) -> 4188 | C48: =_xlfn.XLOOKUP(A48,'Total covered original data'!$A$2:$A$4431,'Total covered original data'!$G$2:$G$4431) -> 35455 | D48: =_xlfn.XLOOKUP(A48,'Total summed original data'!$A$2:$A$3718,'Total summed original data'!$G$2:$G$3718) -> 35456 | E48: 11.81215625 | F48: 11.8118231 | G48: -0.0003331497139
A49: 01093 | B49: =_xlfn.XLOOKUP(A49,'Outdoor original data'!$A$2:$A$3717,'Outdoor original data'!$G$2:$G$3717) -> 1846 | C49: =_xlfn.XLOOKUP(A49,'Total covered original data'!$A$2:$A$4431,'Total covered original data'!$G$2:$G$4431) -> 51816 | D49: =_xlfn.XLOOKUP(A49,'Total summed original data'!$A$2:$A$3718,'Total summed original data'!$G$2:$G$3718) -> 51817 | E49: 3.562606145 | F49: 3.562537391 | G49: -6.875361647e-05
A50: 01095 | B50: =_xlfn.XLOOKUP(A50,'Outdoor original data'!$A$2:$A$3717,'Outdoor original data'!$G$2:$G$3717) -> 9239 | C50: =_xlfn.XLOOKUP(A50,'Total covered original data'!$A$2:$A$4431,'Total covered original data'!$G$2:$G$4431) -> 189318 | D50: =_xlfn.XLOOKUP(A50,'Total summed original data'!$A$2:$A$3718,'Total summed original data'!$G$2:$G$3718) -> 189319 | E50: 4.880148744 | F50: 4.880122967 | G50: -2.577738497e-05
A51: 01097 | B51: =_xlfn.XLOOKUP(A51,'Outdoor original data'!$A$2:$A$3717,'Outdoor original data'!$G$2:$G$3717) -> 80931 | C51: =_xlfn.XLOOKUP(A51,'Total covered original data'!$A$2:$A$4431,'Total covered original data'!$G$2:$G$4431) -> 849377 | D51: =_xlfn.XLOOKUP(A51,'Total summed original data'!$A$2:$A$3718,'Total summed original data'!$G$2:$G$3718) -> 849376 | E51: 9.528277785 | F51: 9.528289003 | G51: 1.121797388e-05
A52: 01099 | B52: =_xlfn.XLOOKUP(A52,'Outdoor original data'!$A$2:$A$3717,'Outdoor original data'!$G$2:$G$3717) -> 1994 | C52: =_xlfn.XLOOKUP(A52,'Total covered original data'!$A$2:$A$4431,'Total covered original data'!$G$2:$G$4431) -> 30918 | D52: =_xlfn.XLOOKUP(A52,'Total summed original data'!$A$2:$A$3718,'Total summed original data'!$G$2:$G$3718) -> 30918 | E52: 6.44931755 | F52: 6.44931755 | G52: 0
A53: 01101 | B53: =_xlfn.XLOOKUP(A53,'Outdoor original data'!$A$2:$A$3717,'Outdoor original data'!$G$2:$G$3717) -> 54902 | C53: =_xlfn.XLOOKUP(A53,'Total covered original data'!$A$2:$A$4431,'Total covered original data'!$G$2:$G$4431) -> 641296 | D53: =_xlfn.XLOOKUP(A53,'Total summed original data'!$A$2:$A$3718,'Total summed original data'!$G$2:$G$3718) -> 641297 | E53: 8.56110127 | F53: 8.56108792 | G53: -1.33496668e-05
A54: 01103 | B54: =_xlfn.XLOOKUP(A54,'Outdoor original data'!$A$2:$A$3717,'Outdoor original data'!$G$2:$G$3717) -> 20373 | C54: =_xlfn.XLOOKUP(A54,'Total covered original data'!$A$2:$A$4431,'Total covered original data'!$G$2:$G$4431) -> 247646 | D54: =_xlfn.XLOOKUP(A54,'Total summed original data'!$A$2:$A$3718,'Total summed original data'!$G$2:$G$3718) -> 247648 | E54: 8.226662252 | F54: 8.226595813 | G54: -6.643835001e-05
A55: 01105 | B55: =_xlfn.XLOOKUP(A55,'Outdoor original data'!$A$2:$A$3717,'Outdoor original data'!$G$2:$G$3717) -> 554 | C55: =_xlfn.XLOOKUP(A55,'Total covered original data'!$A$2:$A$4431,'Total covered original data'!$G$2:$G$4431) -> 9780 | D55: =_xlfn.XLOOKUP(A55,'Total summed original data'!$A$2:$A$3718,'Total summed original data'!$G$2:$G$3718) -> 9779 | E55: 5.664621677 | F55: 5.665200941 | G55: 0.0005792638999
A56: 01107 | B56: =_xlfn.XLOOKUP(A56,'Outdoor original data'!$A$2:$A$3717,'Outdoor original data'!$G$2:$G$3717) -> 2218 | C56: =_xlfn.XLOOKUP(A56,'Total covered original data'!$A$2:$A$4431,'Total covered original data'!$G$2:$G$4431) -> 18335 | D56: =_xlfn.XLOOKUP(A56,'Total summed original data'!$A$2:$A$3718,'Total summed original data'!$G$2:$G$3718) -> 18336 | E56: 12.09708208 | F56: 12.09642234 | G56: -0.000659744878
A57: 01109 | B57: =_xlfn.XLOOKUP(A57,'Outdoor original data'!$A$2:$A$3717,'Outdoor original data'!$G$2:$G$3717) -> 2500 | C57: =_xlfn.XLOOKUP(A57,'Total covered original data'!$A$2:$A$4431,'Total covered original data'!$G$2:$G$4431) -> 72953 | D57: =_xlfn.XLOOKUP(A57,'Total summed original data'!$A$2:$A$3718,'Total summed original data'!$G$2:$G$3718) -> 63707 | E57: 3.426863871 | F57: 3.924215549 | G57: 0.4973516781
A58: 01111 | B58: =_xlfn.XLOOKUP(A58,'Outdoor original data'!$A$2:$A$3717,'Outdoor original data'!$G$2:$G$3717) -> 1570 | C58: =_xlfn.XLOOKUP(A58,'Total covered original data'!$A$2:$A$4431,'Total covered original data'!$G$2:$G$4431) -> 23748 | D58: =_xlfn.XLOOKUP(A58,'Total summed original data'!$A$2:$A$3718,'Total summed original data'!$G$2:$G$3718) -> 23747 | E58: 6.611083039 | F58: 6.611361435 | G58: 0.000278396557
A59: 01113 | B59: =_xlfn.XLOOKUP(A59,'Outdoor original data'!$A$2:$A$3717,'Outdoor original data'!$G$2:$G$3717) -> 4615 | C59: =_xlfn.XLOOKUP(A59,'Total covered original data'!$A$2:$A$4431,'Total covered original data'!$G$2:$G$4431) -> 69105 | D59: =_xlfn.XLOOKUP(A59,'Total summed original data'!$A$2:$A$3718,'Total summed original data'!$G$2:$G$3718) -> 69107 | E59: 6.678243253 | F59: 6.67804998 | G59: -0.0001932725557
A60: 01115 | B60: =_xlfn.XLOOKUP(A60,'Outdoor original data'!$A$2:$A$3717,'Outdoor original data'!$G$2:$G$3717) -> 10827 | C60: =_xlfn.XLOOKUP(A60,'Total covered original data'!$A$2:$A$4431,'Total covered original data'!$G$2:$G$4431) -> 97921 | D60: =_xlfn.XLOOKUP(A60,'Total summed original data'!$A$2:$A$3718,'Total summed original data'!$G$2:$G$3718) -> 97921 | E60: 11.05687238 | F60: 11.05687238 | G60: 0
A61: 01117 | B61: =_xlfn.XLOOKUP(A61,'Outdoor original data'!$A$2:$A$3717,'Outdoor original data'!$G$2:$G$3717) -> 40171 | C61: =_xlfn.XLOOKUP(A61,'Total covered original data'!$A$2:$A$4431,'Total covered original data'!$G$2:$G$4431) -> 421082 | D61: =_xlfn.XLOOKUP(A61,'Total summed original data'!$A$2:$A$3718,'Total summed original data'!$G$2:$G$3718) -> 421083 | E61: 9.539947089 | F61: 9.539924433 | G61: -2.265574029e-05
A62: 01119 | B62: =_xlfn.XLOOKUP(A62,'Outdoor original data'!$A$2:$A$3717,'Outdoor original data'!$G$2:$G$3717) -> 633 | C62: =_xlfn.XLOOKUP(A62,'Total covered original data'!$A$2:$A$4431,'Total covered original data'!$G$2:$G$4431) -> 14457 | D62: =_xlfn.XLOOKUP(A62,'Total summed original data'!$A$2:$A$3718,'Total summed original data'!$G$2:$G$3718) -> 14459 | E62: 4.378501764 | F62: 4.37789612 | G62: -0.0006056437878
A63: 01121 | B63: =_xlfn.XLOOKUP(A63,'Outdoor original data'!$A$2:$A$3717,'Outdoor original data'!$G$2:$G$3717) -> 10341 | C63: =_xlfn.XLOOKUP(A63,'Total covered original data'!$A$2:$A$4431,'Total covered original data'!$G$2:$G$4431) -> 148990 | D63: =_xlfn.XLOOKUP(A63,'Total summed original data'!$A$2:$A$3718,'Total summed original data'!$G$2:$G$3718) -> 148991 | E63: 6.940734277 | F63: 6.940687693 | G63: -4.65849231e-05
A64: 01123 | B64: =_xlfn.XLOOKUP(A64,'Outdoor original data'!$A$2:$A$3717,'Outdoor original data'!$G$2:$G$3717) -> 3058 | C64: =_xlfn.XLOOKUP(A64,'Total covered original data'!$A$2:$A$4431,'Total covered original data'!$G$2:$G$4431) -> 63920 | D64: =_xlfn.XLOOKUP(A64,'Total summed original data'!$A$2:$A$3718,'Total summed original data'!$G$2:$G$3718) -> 63920 | E64: 4.784105131 | F64: 4.784105131 | G64: 0
A65: 01125 | B65: =_xlfn.XLOOKUP(A65,'Outdoor original data'!$A$2:$A$3717,'Outdoor original data'!$G$2:$G$3717) -> 34562 | C65: =_xlfn.XLOOKUP(A65,'Total covered original data'!$A$2:$A$4431,'Total covered original data'!$G$2:$G$4431) -> 466367 | D65: =_xlfn.XLOOKUP(A65,'Total summed original data'!$A$2:$A$3718,'Total summed original data'!$G$2:$G$3718) -> 466367 | E65: 7.410901715 | F65: 7.410901715 | G65: 0
A66: 01127 | B66: =_xlfn.XLOOKUP(A66,'Outdoor original data'!$A$2:$A$3717,'Outdoor original data'!$G$2:$G$3717) -> 7254 | C66: =_xlfn.XLOOKUP(A66,'Total covered original data'!$A$2:$A$4431,'Total covered original data'!$G$2:$G$4431) -> 89475 | D66: =_xlfn.XLOOKUP(A66,'Total summed original data'!$A$2:$A$3718,'Total summed original data'!$G$2:$G$3718) -> 89476 | E66: 8.10729254 | F66: 8.107201931 | G66: -9.060857146e-05
A67: 01129 | B67: =_xlfn.XLOOKUP(A67,'Outdoor original data'!$A$2:$A$3717,'Outdoor original data'!$G$2:$G$3717) -> 1955 | C67: =_xlfn.XLOOKUP(A67,'Total covered original data'!$A$2:$A$4431,'Total covered original data'!$G$2:$G$4431) -> 17547 | D67: =_xlfn.XLOOKUP(A67,'Total summed original data'!$A$2:$A$3718,'Total summed original data'!$G$2:$G$3718) -> 17547 | E67: =(B67/C67)*100 -> 11.14150567 | F67: =(B67/D67)*100 -> 11.14150567 | G67: =F67-E67 -> 0
A68: 01131 | B68: =_xlfn.XLOOKUP(A68,'Outdoor original data'!$A$2:$A$3717,'Outdoor original data'!$G$2:$G$3717) -> 1083 | C68: =_xlfn.XLOOKUP(A68,'Total covered original data'!$A$2:$A$4431,'Total covered original data'!$G$2:$G$4431) -> 13360 | D68: =_xlfn.XLOOKUP(A68,'Total summed original data'!$A$2:$A$3718,'Total summed original data'!$G$2:$G$3718) -> 13363 | E68: 8.106287425 | F68: 8.10446756 | G68: -0.00181986547
A69: 01133 | B69: =_xlfn.XLOOKUP(A69,'Outdoor original data'!$A$2:$A$3717,'Outdoor original data'!$G$2:$G$3717) -> 1177 | C69: =_xlfn.XLOOKUP(A69,'Total covered original data'!$A$2:$A$4431,'Total covered original data'!$G$2:$G$4431) -> 40362 | D69: =_xlfn.XLOOKUP(A69,'Total summed original data'!$A$2:$A$3718,'Total summed original data'!$G$2:$G$3718) -> 40361 | E69: 2.916109212 | F69: 2.916181462 | G69: 7.225066801e-05
A70: 01999 | B70: =_xlfn.XLOOKUP(A70,'Outdoor original data'!$A$2:$A$3717,'Outdoor original data'!$G$2:$G$3717) -> 30498 | C70: =_xlfn.XLOOKUP(A70,'Total covered original data'!$A$2:$A$4431,'Total covered original data'!$G$2:$G$4431) -> 309228 | D70: =_xlfn.XLOOKUP(A70,'Total summed original data'!$A$2:$A$3718,'Total summed original data'!$G$2:$G$3718) -> 308006 | E70: 9.862625635 | F70: 9.901755161 | G70: 0.03912952516
A71: 02000 | B71: =_xlfn.XLOOKUP(A71,'Outdoor original data'!$A$2:$A$3717,'Outdoor original data'!$G$2:$G$3717) -> 211807 | C71: =_xlfn.XLOOKUP(A71,'Total covered original data'!$A$2:$A$4431,'Total covered original data'!$G$2:$G$4431) -> 1561306 | D71: =_xlfn.XLOOKUP(A71,'Total summed original data'!$A$2:$A$3718,'Total summed original data'!$G$2:$G$3718) -> 1928380 | E71: 13.56601461 | F71: 10.98367542 | G71: -2.582339189
A72: 02013 | B72: =_xlfn.XLOOKUP(A72,'Outdoor original data'!$A$2:$A$3717,'Outdoor original data'!$G$2:$G$3717) -> 62 | C72: =_xlfn.XLOOKUP(A72,'Total covered original data'!$A$2:$A$4431,'Total covered original data'!$G$2:$G$4431) -> 11318 | D72: =_xlfn.XLOOKUP(A72,'Total summed original data'!$A$2:$A$3718,'Total summed original data'!$G$2:$G$3718) -> 11318 | E72: 0.5477999647 | F72: 0.5477999647 | G72: 0
A73: 02016 | B73: =_xlfn.XLOOKUP(A73,'Outdoor original data'!$A$2:$A$3717,'Outdoor original data'!$G$2:$G$3717) -> 268 | C73: =_xlfn.XLOOKUP(A73,'Total covered original data'!$A$2:$A$4431,'Total covered original data'!$G$2:$G$4431) -> 16129 | D73: =_xlfn.XLOOKUP(A73,'Total summed original data'!$A$2:$A$3718,'Total summed original data'!$G$2:$G$3718) -> 16129 | E73: 1.661603323 | F73: 1.661603323 | G73: 0
A74: 02020 | B74: =_xlfn.XLOOKUP(A74,'Outdoor original data'!$A$2:$A$3717,'Outdoor original data'!$G$2:$G$3717) -> 84016 | C74: =_xlfn.XLOOKUP(A74,'Total covered original data'!$A$2:$A$4431,'Total covered original data'!$G$2:$G$4431) -> 712534 | D74: =_xlfn.XLOOKUP(A74,'Total summed original data'!$A$2:$A$3718,'Total summed original data'!$G$2:$G$3718) -> 641031 | E74: 11.79115663 | F74: 13.10638643 | G74: 1.315229798
A75: 02050 | B75: =_xlfn.XLOOKUP(A75,'Outdoor original data'!$A$2:$A$3717,'Outdoor original data'!$G$2:$G$3717) -> 1827 | C75: =_xlfn.XLOOKUP(A75,'Total covered original data'!$A$2:$A$4431,'Total covered original data'!$G$2:$G$4431) -> 33103 | D75: =_xlfn.XLOOKUP(A75,'Total summed original data'!$A$2:$A$3718,'Total summed original data'!$G$2:$G$3718) -> 33102 | E75: 5.519137238 | F75: 5.51930397 | G75: 0.0001667312319
A76: 02060 | B76: =_xlfn.XLOOKUP(A76,'Outdoor original data'!$A$2:$A$3717,'Outdoor original data'!$G$2:$G$3717) -> 137 | C76: =_xlfn.XLOOKUP(A76,'Total covered original data'!$A$2:$A$4431,'Total covered original data'!$G$2:$G$4431) -> 6071 | D76: =_xlfn.XLOOKUP(A76,'Total summed original data'!$A$2:$A$3718,'Total summed original data'!$G$2:$G$3718) -> 6072 | E76: 2.25662988 | F76: 2.256258235 | G76: -0.0003716452371
A77: 02063 | B77: =_xlfn.XLOOKUP(A77,'Outdoor original data'!$A$2:$A$3717,'Outdoor original data'!$G$2:$G$3717) -> 668 | C77: =_xlfn.XLOOKUP(A77,'Total covered original data'!$A$2:$A$4431,'Total covered original data'!$G$2:$G$4431) -> 10416 | D77: =_xlfn.XLOOKUP(A77,'Total summed original data'!$A$2:$A$3718,'Total summed original data'!$G$2:$G$3718) -> 10415 | E77: 6.413210445 | F77: 6.413826212 | G77: 0.0006157667254
A78: 02066 | B78: =_xlfn.XLOOKUP(A78,'Outdoor original data'!$A$2:$A$3717,'Outdoor original data'!$G$2:$G$3717) -> 83 | C78: =_xlfn.XLOOKUP(A78,'Total covered original data'!$A$2:$A$4431,'Total covered original data'!$G$2:$G$4431) -> 2985 | D78: =_xlfn.XLOOKUP(A78,'Total summed original data'!$A$2:$A$3718,'Total summed original data'!$G$2:$G$3718) -> 2986 | E78: 2.780569514 | F78: 2.779638312 | G78: -0.0009312021146
A79: 02068 | B79: =_xlfn.XLOOKUP(A79,'Outdoor original data'!$A$2:$A$3717,'Outdoor original data'!$G$2:$G$3717) -> 156 | C79: =_xlfn.XLOOKUP(A79,'Total covered original data'!$A$2:$A$4431,'Total covered original data'!$G$2:$G$4431) -> 8376 | D79: =_xlfn.XLOOKUP(A79,'Total summed original data'!$A$2:$A$3718,'Total summed original data'!$G$2:$G$3718) -> 8379 | E79: 1.862464183 | F79: 1.861797351 | G79: -0.0006668328619
A80: 02070 | B80: =_xlfn.XLOOKUP(A80,'Outdoor original data'!$A$2:$A$3717,'Outdoor original data'!$G$2:$G$3717) -> 198 | C80: =_xlfn.XLOOKUP(A80,'Total covered original data'!$A$2:$A$4431,'Total covered original data'!$G$2:$G$4431) -> 11166 | D80: =_xlfn.XLOOKUP(A80,'Total summed original data'!$A$2:$A$3718,'Total summed original data'!$G$2:$G$3718) -> 11167 | E80: 1.773240193 | F80: 1.773081401 | G80: -0.0001587928892
A81: 02090 | B81: =_xlfn.XLOOKUP(A81,'Outdoor original data'!$A$2:$A$3717,'Outdoor original data'!$G$2:$G$3717) -> 23054 | C81: =_xlfn.XLOOKUP(A81,'Total covered original data'!$A$2:$A$4431,'Total covered original data'!$G$2:$G$4431) -> 178346 | D81: =_xlfn.XLOOKUP(A81,'Total summed original data'!$A$2:$A$3718,'Total summed original data'!$G$2:$G$3718) -> 178348 | E81: 12.92655849 | F81: 12.92641353 | G81: -0.0001449588275
A82: 02100 | B82: =_xlfn.XLOOKUP(A82,'Outdoor original data'!$A$2:$A$3717,'Outdoor original data'!$G$2:$G$3717) -> 521 | C82: =_xlfn.XLOOKUP(A82,'Total covered original data'!$A$2:$A$4431,'Total covered original data'!$G$2:$G$4431) -> 4485 | D82: =_xlfn.XLOOKUP(A82,'Total summed original data'!$A$2:$A$3718,'Total summed original data'!$G$2:$G$3718) -> 4487 | E82: 11.61649944 | F82: 11.6113216 | G82: -0.005177846865
A83: 02105 | B83: =_xlfn.XLOOKUP(A83,'Outdoor original data'!$A$2:$A$3717,'Outdoor original data'!$G$2:$G$3717) -> 95 | C83: =_xlfn.XLOOKUP(A83,'Total covered original data'!$A$2:$A$4431,'Total covered original data'!$G$2:$G$4431) -> 4006 | D83: =_xlfn.XLOOKUP(A83,'Total summed original data'!$A$2:$A$3718,'Total summed original data'!$G$2:$G$3718) -> 4010 | E83: 2.371442836 | F83: 2.369077307 | G83: -0.002365529013
A84: 02110 | B84: =_xlfn.XLOOKUP(A84,'Outdoor original data'!$A$2:$A$3717,'Outdoor original data'!$G$2:$G$3717) -> 8278 | C84: =_xlfn.XLOOKUP(A84,'Total covered original data'!$A$2:$A$4431,'Total covered original data'!$G$2:$G$4431) -> 83407 | D84: =_xlfn.XLOOKUP(A84,'Total summed original data'!$A$2:$A$3718,'Total summed original data'!$G$2:$G$3718) -> 83408 | E84: 9.924826453 | F84: 9.924707462 | G84: -0.0001189913012
A85: 02122 | B85: =_xlfn.XLOOKUP(A85,'Outdoor original data'!$A$2:$A$3717,'Outdoor original data'!$G$2:$G$3717) -> 13819 | C85: =_xlfn.XLOOKUP(A85,'Total covered original data'!$A$2:$A$4431,'Total covered original data'!$G$2:$G$4431) -> 97956 | D85: =_xlfn.XLOOKUP(A85,'Total summed original data'!$A$2:$A$3718,'Total summed original data'!$G$2:$G$3718) -> 97958 | E85: 14.10735432 | F85: 14.10706629 | G85: -0.0002880286311
A86: 02130 | B86: =_xlfn.XLOOKUP(A86,'Outdoor original data'!$A$2:$A$3717,'Outdoor original data'!$G$2:$G$3717) -> 2192 | C86: =_xlfn.XLOOKUP(A86,'Total covered original data'!$A$2:$A$4431,'Total covered original data'!$G$2:$G$4431) -> 34066 | D86: =_xlfn.XLOOKUP(A86,'Total summed original data'!$A$2:$A$3718,'Total summed original data'!$G$2:$G$3718) -> 34067 | E86: 6.434568191 | F86: 6.434379311 | G86: -0.0001888798013
A87: 02150 | B87: =_xlfn.XLOOKUP(A87,'Outdoor original data'!$A$2:$A$3717,'Outdoor original data'!$G$2:$G$3717) -> 1391 | C87: =_xlfn.XLOOKUP(A87,'Total covered original data'!$A$2:$A$4431,'Total covered original data'!$G$2:$G$4431) -> 28240 | D87: =_xlfn.XLOOKUP(A87,'Total summed original data'!$A$2:$A$3718,'Total summed original data'!$G$2:$G$3718) -> 28236 | E87: 4.925637394 | F87: 4.926335175 | G87: 0.0006977811863
A88: 02158 | B88: =_xlfn.XLOOKUP(A88,'Outdoor original data'!$A$2:$A$3717,'Outdoor original data'!$G$2:$G$3717) -> 318 | C88: =_xlfn.XLOOKUP(A88,'Total covered original data'!$A$2:$A$4431,'Total covered original data'!$G$2:$G$4431) -> 10463 | D88: =_xlfn.XLOOKUP(A88,'Total summed original data'!$A$2:$A$3718,'Total summed original data'!$G$2:$G$3718) -> 10460 | E88: 3.039281277 | F88: 3.040152964 | G88: 0.0008716867907
A89: 02164 | B89: =_xlfn.XLOOKUP(A89,'Outdoor original data'!$A$2:$A$3717,'Outdoor original data'!$G$2:$G$3717) -> 192 | C89: =_xlfn.XLOOKUP(A89,'Total covered original data'!$A$2:$A$4431,'Total covered original data'!$G$2:$G$4431) -> 4330 | D89: =_xlfn.XLOOKUP(A89,'Total summed original data'!$A$2:$A$3718,'Total summed original data'!$G$2:$G$3718) -> 2910 | E89: 4.434180139 | F89: 6.597938144 | G89: 2.163758006
A90: 02170 | B90: =_xlfn.XLOOKUP(A90,'Outdoor original data'!$A$2:$A$3717,'Outdoor original data'!$G$2:$G$3717) -> 20375 | C90: =_xlfn.XLOOKUP(A90,'Total covered original data'!$A$2:$A$4431,'Total covered original data'!$G$2:$G$4431) -> 125919 | D90: =_xlfn.XLOOKUP(A90,'Total summed original data'!$A$2:$A$3718,'Total summed original data'!$G$2:$G$3718) -> 125919 | E90: 16.18103702 | F90: 16.18103702 | G90: 0
A91: 02180 | B91: =_xlfn.XLOOKUP(A91,'Outdoor original data'!$A$2:$A$3717,'Outdoor original data'!$G$2:$G$3717) -> 869 | C91: =_xlfn.XLOOKUP(A91,'Total covered original data'!$A$2:$A$4431,'Total covered original data'!$G$2:$G$4431) -> 18891 | D91: =_xlfn.XLOOKUP(A91,'Total summed original data'!$A$2:$A$3718,'Total summed original data'!$G$2:$G$3718) -> 18894 | E91: 4.600074109 | F91: 4.599343707 | G91: -0.0007304023673
A92: 02185 | B92: =_xlfn.XLOOKUP(A92,'Outdoor original data'!$A$2:$A$3717,'Outdoor original data'!$G$2:$G$3717) -> 26796 | C92: =_xlfn.XLOOKUP(A92,'Total covered original data'!$A$2:$A$4431,'Total covered original data'!$G$2:$G$4431) -> 55082 | D92: =_xlfn.XLOOKUP(A92,'Total summed original data'!$A$2:$A$3718,'Total summed original data'!$G$2:$G$3718) -> 55082 | E92: 48.64747104 | F92: 48.64747104 | G92: 0
A93: 02188 | B93: =_xlfn.XLOOKUP(A93,'Outdoor original data'!$A$2:$A$3717,'Outdoor original data'!$G$2:$G$3717) -> 492 | C93: =_xlfn.XLOOKUP(A93,'Total covered original data'!$A$2:$A$4431,'Total covered original data'!$G$2:$G$4431) -> 14073 | D93: =_xlfn.XLOOKUP(A93,'Total summed original data'!$A$2:$A$3718,'Total summed original data'!$G$2:$G$3718) -> 14072 | E93: 3.496056278 | F93: 3.496304719 | G93: 0.000248440611
A94: 02195 | B94: =_xlfn.XLOOKUP(A94,'Outdoor original data'!$A$2:$A$3717,'Outdoor original data'!$G$2:$G$3717) -> 229 | C94: =_xlfn.XLOOKUP(A94,'Total covered original data'!$A$2:$A$4431,'Total covered original data'!$G$2:$G$4431) -> 6249 | D94: =_xlfn.XLOOKUP(A94,'Total summed original data'!$A$2:$A$3718,'Total summed original data'!$G$2:$G$3718) -> 6249 | E94: 3.664586334 | F94: 3.664586334 | G94: 0
A95: 02198 | B95: =_xlfn.XLOOKUP(A95,'Outdoor original data'!$A$2:$A$3717,'Outdoor original data'!$G$2:$G$3717) -> 393 | C95: =_xlfn.XLOOKUP(A95,'Total covered original data'!$A$2:$A$4431,'Total covered original data'!$G$2:$G$4431) -> 10739 | D95: =_xlfn.XLOOKUP(A95,'Total summed original data'!$A$2:$A$3718,'Total summed original data'!$G$2:$G$3718) -> 10742 | E95: 3.659558618 | F95: 3.658536585 | G95: -0.001022032755
A96: 02220 | B96: =_xlfn.XLOOKUP(A96,'Outdoor original data'!$A$2:$A$3717,'Outdoor original data'!$G$2:$G$3717) -> 1350 | C96: =_xlfn.XLOOKUP(A96,'Total covered original data'!$A$2:$A$4431,'Total covered original data'!$G$2:$G$4431) -> 20334 | D96: =_xlfn.XLOOKUP(A96,'Total summed original data'!$A$2:$A$3718,'Total summed original data'!$G$2:$G$3718) -> 20336 | E96: 6.639126586 | F96: 6.638473643 | G96: -0.0006529432126
A97: 02230 | B97: =_xlfn.XLOOKUP(A97,'Outdoor original data'!$A$2:$A$3717,'Outdoor original data'!$G$2:$G$3717) -> 85 | C97: =_xlfn.XLOOKUP(A97,'Total covered original data'!$A$2:$A$4431,'Total covered original data'!$G$2:$G$4431) -> 3615 | D97: =_xlfn.XLOOKUP(A97,'Total summed original data'!$A$2:$A$3718,'Total summed original data'!$G$2:$G$3718) -> 3132 | E97: 2.35131397 | F97: 2.713920817 | G97: 0.3626068478
A98: 02240 | B98: =_xlfn.XLOOKUP(A98,'Outdoor original data'!$A$2:$A$3717,'Outdoor original data'!$G$2:$G$3717) -> 2658 | C98: =_xlfn.XLOOKUP(A98,'Total covered original data'!$A$2:$A$4431,'Total covered original data'!$G$2:$G$4431) -> 12852 | D98: =_xlfn.XLOOKUP(A98,'Total summed original data'!$A$2:$A$3718,'Total summed original data'!$G$2:$G$3718) -> 12850 | E98: 20.68160598 | F98: 20.6848249 | G98: 0.003218927
A99: 02261 | B99: =_xlfn.XLOOKUP(A99,'Outdoor original data'!$A$2:$A$3717,'Outdoor original data'!$G$2:$G$3717) -> 700 | C99: =_xlfn.XLOOKUP(A99,'Total covered original data'!$A$2:$A$4431,'Total covered original data'!$G$2:$G$4431) -> 9807 | D99: =_xlfn.XLOOKUP(A99,'Total summed original data'!$A$2:$A$3718,'Total summed original data'!$G$2:$G$3718) -> 9807 | E99: 7.137758744 | F99: 7.137758744 | G99: 0
A100: 02275 | B100: =_xlfn.XLOOKUP(A100,'Outdoor original data'!$A$2:$A$3717,'Outdoor original data'!$G$2:$G$3717) -> 149 | C100: =_xlfn.XLOOKUP(A100,'Total covered original data'!$A$2:$A$4431,'Total covered original data'!$G$2:$G$4431) -> 3786 | D100: =_xlfn.XLOOKUP(A100,'Total summed original data'!$A$2:$A$3718,'Total summed original data'!$G$2:$G$3718) -> 3785 | E100: 3.935552034 | F100: 3.93659181 | G100: 0.001039775967
A101: 02282 | B101: =_xlfn.XLOOKUP(A101,'Outdoor original data'!$A$2:$A$3717,'Outdoor original data'!$G$2:$G$3717) -> 14 | C101: =_xlfn.XLOOKUP(A101,'Total covered original data'!$A$2:$A$4431,'Total covered original data'!$G$2:$G$4431) -> 1509 | D101: =_xlfn.XLOOKUP(A101,'Total summed original data'!$A$2:$A$3718,'Total summed original data'!$G$2:$G$3718) -> 1425 | E101: 0.9277667329 | F101: 0.9824561404 | G101: 0.05468940742
A102: 02290 | B102: =_xlfn.XLOOKUP(A102,'Outdoor original data'!$A$2:$A$3717,'Outdoor original data'!$G$2:$G$3717) -> 530 | C102: =_xlfn.XLOOKUP(A102,'Total covered original data'!$A$2:$A$4431,'Total covered original data'!$G$2:$G$4431) -> 10953 | D102: =_xlfn.XLOOKUP(A102,'Total summed original data'!$A$2:$A$3718,'Total summed original data'!$G$2:$G$3718) -> 10956 | E102: 4.838856934 | F102: 4.837531946 | G102: -0.001324988208
A103: 02999 | B103: =_xlfn.XLOOKUP(A103,'Outdoor original data'!$A$2:$A$3717,'Outdoor original data'!$G$2:$G$3717) -> 444 | C103: =_xlfn.XLOOKUP(A103,'Total covered original data'!$A$2:$A$4431,'Total covered original data'!$G$2:$G$4431) -> 10108 | D103: =_xlfn.XLOOKUP(A103,'Total summed original data'!$A$2:$A$3718,'Total summed original data'!$G$2:$G$3718) -> 10108 | E103: 4.392560348 | F103: 4.392560348 | G103: 0
A104: 04000 | B104: =_xlfn.XLOOKUP(A104,'Outdoor original data'!$A$2:$A$3717,'Outdoor original data'!$G$2:$G$3717) -> 1623209 | C104: =_xlfn.XLOOKUP(A104,'Total covered original data'!$A$2:$A$4431,'Total covered original data'!$G$2:$G$4431) -> 14569258 | D104: =_xlfn.XLOOKUP(A104,'Total summed original data'!$A$2:$A$3718,'Total summed original data'!$G$2:$G$3718) -> 16508775 | E104: 11.14132923 | F104: 9.832401253 | G104: -1.308927976
A105: 04001 | B105: =_xlfn.XLOOKUP(A105,'Outdoor original data'!$A$2:$A$3717,'Outdoor original data'!$G$2:$G$3717) -> 8842 | C105: =_xlfn.XLOOKUP(A105,'Total covered original data'!$A$2:$A$4431,'Total covered original data'!$G$2:$G$4431) -> 86302 | D105: =_xlfn.XLOOKUP(A105,'Total summed original data'!$A$2:$A$3718,'Total summed original data'!$G$2:$G$3718) -> 86303 | E105: 10.24541726 | F105: 10.24529854 | G105: -0.0001187144972
A106: 04003 | B106: =_xlfn.XLOOKUP(A106,'Outdoor original data'!$A$2:$A$3717,'Outdoor original data'!$G$2:$G$3717) -> 28618 | C106: =_xlfn.XLOOKUP(A106,'Total covered original data'!$A$2:$A$4431,'Total covered original data'!$G$2:$G$4431) -> 171084 | D106: =_xlfn.XLOOKUP(A106,'Total summed original data'!$A$2:$A$3718,'Total summed original data'!$G$2:$G$3718) -> 171083 | E106: 16.72745552 | F106: 16.72755329 | G106: 9.777391978e-05
A107: 04005 | B107: =_xlfn.XLOOKUP(A107,'Outdoor original data'!$A$2:$A$3717,'Outdoor original data'!$G$2:$G$3717) -> 22449 | C107: =_xlfn.XLOOKUP(A107,'Total covered original data'!$A$2:$A$4431,'Total covered original data'!$G$2:$G$4431) -> 303374 | D107: =_xlfn.XLOOKUP(A107,'Total summed original data'!$A$2:$A$3718,'Total summed original data'!$G$2:$G$3718) -> 303375 | E107: 7.399777173 | F107: 7.399752781 | G107: -2.439151932e-05
A108: 04007 | B108: =_xlfn.XLOOKUP(A108,'Outdoor original data'!$A$2:$A$3717,'Outdoor original data'!$G$2:$G$3717) -> 9143 | C108: =_xlfn.XLOOKUP(A108,'Total covered original data'!$A$2:$A$4431,'Total covered original data'!$G$2:$G$4431) -> 72998 | D108: =_xlfn.XLOOKUP(A108,'Total summed original data'!$A$2:$A$3718,'Total summed original data'!$G$2:$G$3718) -> 72999 | E108: 12.52500068 | F108: 12.52482911 | G108: -0.0001715777022
A109: 04009 | B109: =_xlfn.XLOOKUP(A109,'Outdoor original data'!$A$2:$A$3717,'Outdoor original data'!$G$2:$G$3717) -> 4665 | C109: =_xlfn.XLOOKUP(A109,'Total covered original data'!$A$2:$A$4431,'Total covered original data'!$G$2:$G$4431) -> 47985 | D109: =_xlfn.XLOOKUP(A109,'Total summed original data'!$A$2:$A$3718,'Total summed original data'!$G$2:$G$3718) -> 47985 | E109: 9.721788059 | F109: 9.721788059 | G109: 0
A110: 04011 | B110: =_xlfn.XLOOKUP(A110,'Outdoor original data'!$A$2:$A$3717,'Outdoor original data'!$G$2:$G$3717) -> 1012 | C110: =_xlfn.XLOOKUP(A110,'Total covered original data'!$A$2:$A$4431,'Total covered original data'!$G$2:$G$4431) -> 25606 | D110: =_xlfn.XLOOKUP(A110,'Total summed original data'!$A$2:$A$3718,'Total summed original data'!$G$2:$G$3718) -> 25606 | E110: 3.952198703 | F110: 3.952198703 | G110: 0
A111: 04012 | B111: =_xlfn.XLOOKUP(A111,'Outdoor original data'!$A$2:$A$3717,'Outdoor original data'!$G$2:$G$3717) -> 4023 | C111: =_xlfn.XLOOKUP(A111,'Total covered original data'!$A$2:$A$4431,'Total covered original data'!$G$2:$G$4431) -> 29576 | D111: =_xlfn.XLOOKUP(A111,'Total summed original data'!$A$2:$A$3718,'Total summed original data'!$G$2:$G$3718) -> 29576 | E111: 13.60224506 | F111: 13.60224506 | G111: 0
A112: 04013 | B112: =_xlfn.XLOOKUP(A112,'Outdoor original data'!$A$2:$A$3717,'Outdoor original data'!$G$2:$G$3717) -> 1051357 | C112: =_xlfn.XLOOKUP(A112,'Total covered original data'!$A$2:$A$4431,'Total covered original data'!$G$2:$G$4431) -> 10316143 | D112: =_xlfn.XLOOKUP(A112,'Total summed original data'!$A$2:$A$3718,'Total summed original data'!$G$2:$G$3718) -> 10316143 | E112: 10.19137676 | F112: 10.19137676 | G112: 0
A113: 04015 | B113: =_xlfn.XLOOKUP(A113,'Outdoor original data'!$A$2:$A$3717,'Outdoor original data'!$G$2:$G$3717) -> 27156 | C113: =_xlfn.XLOOKUP(A113,'Total covered original data'!$A$2:$A$4431,'Total covered original data'!$G$2:$G$4431) -> 260844 | D113: =_xlfn.XLOOKUP(A113,'Total summed original data'!$A$2:$A$3718,'Total summed original data'!$G$2:$G$3718) -> 260847 | E113: 10.41082026 | F113: 10.41070053 | G113: -0.0001197347901
A114: 04017 | B114: =_xlfn.XLOOKUP(A114,'Outdoor original data'!$A$2:$A$3717,'Outdoor original data'!$G$2:$G$3717) -> 13837 | C114: =_xlfn.XLOOKUP(A114,'Total covered original data'!$A$2:$A$4431,'Total covered original data'!$G$2:$G$4431) -> 134086 | D114: =_xlfn.XLOOKUP(A114,'Total summed original data'!$A$2:$A$3718,'Total summed original data'!$G$2:$G$3718) -> 134085 | E114: 10.31949644 | F114: 10.3195734 | G114: 7.696234808e-05
A115: 04019 | B115: =_xlfn.XLOOKUP(A115,'Outdoor original data'!$A$2:$A$3717,'Outdoor original data'!$G$2:$G$3717) -> 182921 | C115: =_xlfn.XLOOKUP(A115,'Total covered original data'!$A$2:$A$4431,'Total covered original data'!$G$2:$G$4431) -> 1851850 | D115: =_xlfn.XLOOKUP(A115,'Total summed original data'!$A$2:$A$3718,'Total summed original data'!$G$2:$G$3718) -> 1851853 | E115: 9.877743878 | F115: 9.877727876 | G115: -1.600193516e-05
A116: 04021 | B116: =_xlfn.XLOOKUP(A116,'Outdoor original data'!$A$2:$A$3717,'Outdoor original data'!$G$2:$G$3717) -> 41102 | C116: =_xlfn.XLOOKUP(A116,'Total covered original data'!$A$2:$A$4431,'Total covered original data'!$G$2:$G$4431) -> 321850 | D116: =_xlfn.XLOOKUP(A116,'Total summed original data'!$A$2:$A$3718,'Total summed original data'!$G$2:$G$3718) -> 321853 | E116: 12.77054529 | F116: 12.77042625 | G116: -0.0001190345774
A117: 04023 | B117: =_xlfn.XLOOKUP(A117,'Outdoor original data'!$A$2:$A$3717,'Outdoor original data'!$G$2:$G$3717) -> 10010 | C117: =_xlfn.XLOOKUP(A117,'Total covered original data'!$A$2:$A$4431,'Total covered original data'!$G$2:$G$4431) -> 66493 | D117: =_xlfn.XLOOKUP(A117,'Total summed original data'!$A$2:$A$3718,'Total summed original data'!$G$2:$G$3718) -> 66494 | E117: 15.05421623 | F117: 15.05398983 | G117: -0.0002263996185
A118: 04025 | B118: =_xlfn.XLOOKUP(A118,'Outdoor original data'!$A$2:$A$3717,'Outdoor original data'!$G$2:$G$3717) -> 49201 | C118: =_xlfn.XLOOKUP(A118,'Total covered original data'!$A$2:$A$4431,'Total covered original data'!$G$2:$G$4431) -> 326106 | D118: =_xlfn.XLOOKUP(A118,'Total summed original data'!$A$2:$A$3718,'Total summed original data'!$G$2:$G$3718) -> 326108 | E118: 15.08742556 | F118: 15.08733303 | G118: -9.253023882e-05
A119: 04027 | B119: =_xlfn.XLOOKUP(A119,'Outdoor original data'!$A$2:$A$3717,'Outdoor original data'!$G$2:$G$3717) -> 76822 | C119: =_xlfn.XLOOKUP(A119,'Total covered original data'!$A$2:$A$4431,'Total covered original data'!$G$2:$G$4431) -> 340581 | D119: =_xlfn.XLOOKUP(A119,'Total summed original data'!$A$2:$A$3718,'Total summed original data'!$G$2:$G$3718) -> 340583 | E119: 22.55616138 | F119: 22.55602893 | G119: -0.0001324561789
A120: 04999 | B120: =_xlfn.XLOOKUP(A120,'Outdoor original data'!$A$2:$A$3717,'Outdoor original data'!$G$2:$G$3717) -> 8747 | C120: =_xlfn.XLOOKUP(A120,'Total covered original data'!$A$2:$A$4431,'Total covered original data'!$G$2:$G$4431) -> 214386 | D120: =_xlfn.XLOOKUP(A120,'Total summed original data'!$A$2:$A$3718,'Total summed original data'!$G$2:$G$3718) -> 214388 | E120: 4.080023882 | F120: 4.07998582 | G120: -3.806205461e-05
A121: 05000 | B121: =_xlfn.XLOOKUP(A121,'Outdoor original data'!$A$2:$A$3717,'Outdoor original data'!$G$2:$G$3717) -> 610651 | C121: =_xlfn.XLOOKUP(A121,'Total covered original data'!$A$2:$A$4431,'Total covered original data'!$G$2:$G$4431) -> 6056035 | D121: =_xlfn.XLOOKUP(A121,'Total summed original data'!$A$2:$A$3718,'Total summed original data'!$G$2:$G$3718) -> 7024838 | E121: 10.08334661 | F121: 8.692741384 | G121: -1.390605228
A122: 05001 | B122: =_xlfn.XLOOKUP(A122,'Outdoor original data'!$A$2:$A$3717,'Outdoor original data'!$G$2:$G$3717) -> 2638 | C122: =_xlfn.XLOOKUP(A122,'Total covered original data'!$A$2:$A$4431,'Total covered original data'!$G$2:$G$4431) -> 50971 | D122: =_xlfn.XLOOKUP(A122,'Total summed original data'!$A$2:$A$3718,'Total summed original data'!$G$2:$G$3718) -> 50969 | E122: 5.175491946 | F122: 5.17569503 | G122: 0.0002030839116
A123: 05003 | B123: =_xlfn.XLOOKUP(A123,'Outdoor original data'!$A$2:$A$3717,'Outdoor original data'!$G$2:$G$3717) -> 3445 | C123: =_xlfn.XLOOKUP(A123,'Total covered original data'!$A$2:$A$4431,'Total covered original data'!$G$2:$G$4431) -> 30495 | D123: =_xlfn.XLOOKUP(A123,'Total summed original data'!$A$2:$A$3718,'Total summed original data'!$G$2:$G$3718) -> 30495 | E123: 11.29693392 | F123: 11.29693392 | G123: 0
A124: 05005 | B124: =_xlfn.XLOOKUP(A124,'Outdoor original data'!$A$2:$A$3717,'Outdoor original data'!$G$2:$G$3717) -> 4548 | C124: =_xlfn.XLOOKUP(A124,'Total covered original data'!$A$2:$A$4431,'Total covered original data'!$G$2:$G$4431) -> 75265 | D124: =_xlfn.XLOOKUP(A124,'Total summed original data'!$A$2:$A$3718,'Total summed original data'!$G$2:$G$3718) -> 75265 | E124: 6.042649306 | F124: 6.042649306 | G124: 0
A125: 05007 | B125: =_xlfn.XLOOKUP(A125,'Outdoor original data'!$A$2:$A$3717,'Outdoor original data'!$G$2:$G$3717) -> 44708 | C125: =_xlfn.XLOOKUP(A125,'Total covered original data'!$A$2:$A$4431,'Total covered original data'!$G$2:$G$4431) -> 626389 | D125: =_xlfn.XLOOKUP(A125,'Total summed original data'!$A$2:$A$3718,'Total summed original data'!$G$2:$G$3718) -> 626391 | E125: 7.137417803 | F125: 7.137395014 | G125: -2.278901773e-05
A126: 05009 | B126: =_xlfn.XLOOKUP(A126,'Outdoor original data'!$A$2:$A$3717,'Outdoor original data'!$G$2:$G$3717) -> 3607 | C126: =_xlfn.XLOOKUP(A126,'Total covered original data'!$A$2:$A$4431,'Total covered original data'!$G$2:$G$4431) -> 70558 | D126: =_xlfn.XLOOKUP(A126,'Total summed original data'!$A$2:$A$3718,'Total summed original data'!$G$2:$G$3718) -> 70558 | E126: 5.112106352 | F126: 5.112106352 | G126: 0
A127: 05011 | B127: =_xlfn.XLOOKUP(A127,'Outdoor original data'!$A$2:$A$3717,'Outdoor original data'!$G$2:$G$3717) -> 639 | C127: =_xlfn.XLOOKUP(A127,'Total covered original data'!$A$2:$A$4431,'Total covered original data'!$G$2:$G$4431) -> 18360 | D127: =_xlfn.XLOOKUP(A127,'Total summed original data'!$A$2:$A$3718,'Total summed original data'!$G$2:$G$3718) -> 18362 | E127: 3.480392157 | F127: 3.48001307 | G127: -0.0003790863911
A128: 05013 | B128: =_xlfn.XLOOKUP(A128,'Outdoor original data'!$A$2:$A$3717,'Outdoor original data'!$G$2:$G$3717) -> 651 | C128: =_xlfn.XLOOKUP(A128,'Total covered original data'!$A$2:$A$4431,'Total covered original data'!$G$2:$G$4431) -> 15039 | D128: =_xlfn.XLOOKUP(A128,'Total summed original data'!$A$2:$A$3718,'Total summed original data'!$G$2:$G$3718) -> 14518 | E128: 4.328745262 | F128: 4.484088717 | G128: 0.1553434551
A129: 05015 | B129: =_xlfn.XLOOKUP(A129,'Outdoor original data'!$A$2:$A$3717,'Outdoor original data'!$G$2:$G$3717) -> 3476 | C129: =_xlfn.XLOOKUP(A129,'Total covered original data'!$A$2:$A$4431,'Total covered original data'!$G$2:$G$4431) -> 53866 | D129: =_xlfn.XLOOKUP(A129,'Total summed original data'!$A$2:$A$3718,'Total summed original data'!$G$2:$G$3718) -> 53866 | E129: 6.453050162 | F129: 6.453050162 | G129: 0
A130: 05017 | B130: =_xlfn.XLOOKUP(A130,'Outdoor original data'!$A$2:$A$3717,'Outdoor original data'!$G$2:$G$3717) -> 1869 | C130: =_xlfn.XLOOKUP(A130,'Total covered original data'!$A$2:$A$4431,'Total covered original data'!$G$2:$G$4431) -> 14441 | D130: =_xlfn.XLOOKUP(A130,'Total summed original data'!$A$2:$A$3718,'Total summed original data'!$G$2:$G$3718) -> 14440 | E130: 12.94231701 | F130: 12.9432133 | G130: 0.0008962823417
A131: 05019 | B131: =_xlfn.XLOOKUP(A131,'Outdoor original data'!$A$2:$A$3717,'Outdoor original data'!$G$2:$G$3717) -> 1592 | C131: =_xlfn.XLOOKUP(A131,'Total covered original data'!$A$2:$A$4431,'Total covered original data'!$G$2:$G$4431) -> 43918 | D131: =_xlfn.XLOOKUP(A131,'Total summed original data'!$A$2:$A$3718,'Total summed original data'!$G$2:$G$3718) -> 43919 | E131: =(B131/C131)*100 -> 3.624937383 | F131: =(B131/D131)*100 -> 3.624854846 | G131: =F131-E131 -> -8.253688343e-05
A132: 05021 | B132: =_xlfn.XLOOKUP(A132,'Outdoor original data'!$A$2:$A$3717,'Outdoor original data'!$G$2:$G$3717) -> 2020 | C132: =_xlfn.XLOOKUP(A132,'Total covered original data'!$A$2:$A$4431,'Total covered original data'!$G$2:$G$4431) -> 15638 | D132: =_xlfn.XLOOKUP(A132,'Total summed original data'!$A$2:$A$3718,'Total summed original data'!$G$2:$G$3718) -> 15640 | E132: 12.91725285 | F132: 12.91560102 | G132: -0.001651822615
A133: 05023 | B133: =_xlfn.XLOOKUP(A133,'Outdoor original data'!$A$2:$A$3717,'Outdoor original data'!$G$2:$G$3717) -> 3116 | C133: =_xlfn.XLOOKUP(A133,'Total covered original data'!$A$2:$A$4431,'Total covered original data'!$G$2:$G$4431) -> 31431 | D133: =_xlfn.XLOOKUP(A133,'Total summed original data'!$A$2:$A$3718,'Total summed original data'!$G$2:$G$3718) -> 31431 | E133: 9.91377939 | F133: 9.91377939 | G133: 0
A134: 05025 | B134: =_xlfn.XLOOKUP(A134,'Outdoor original data'!$A$2:$A$3717,'Outdoor original data'!$G$2:$G$3717) -> 927 | C134: =_xlfn.XLOOKUP(A134,'Total covered original data'!$A$2:$A$4431,'Total covered original data'!$G$2:$G$4431) -> 5062 | D134: =_xlfn.XLOOKUP(A134,'Total summed original data'!$A$2:$A$3718,'Total summed original data'!$G$2:$G$3718) -> 5063 | E134: 18.31291979 | F134: 18.30930278 | G134: -0.003617009637
A135: 05027 | B135: =_xlfn.XLOOKUP(A135,'Outdoor original data'!$A$2:$A$3717,'Outdoor original data'!$G$2:$G$3717) -> 3302 | C135: =_xlfn.XLOOKUP(A135,'Total covered original data'!$A$2:$A$4431,'Total covered original data'!$G$2:$G$4431) -> 39507 | D135: =_xlfn.XLOOKUP(A135,'Total summed original data'!$A$2:$A$3718,'Total summed original data'!$G$2:$G$3718) -> 39509 | E135: 8.358012504 | F135: 8.35758941 | G135: -0.0004230941053
A136: 05029 | B136: =_xlfn.XLOOKUP(A136,'Outdoor original data'!$A$2:$A$3717,'Outdoor original data'!$G$2:$G$3717) -> 4683 | C136: =_xlfn.XLOOKUP(A136,'Total covered original data'!$A$2:$A$4431,'Total covered original data'!$G$2:$G$4431) -> 33105 | D136: =_xlfn.XLOOKUP(A136,'Total summed original data'!$A$2:$A$3718,'Total summed original data'!$G$2:$G$3718) -> 33105 | E136: 14.14589941 | F136: 14.14589941 | G136: 0
A137: 05031 | B137: =_xlfn.XLOOKUP(A137,'Outdoor original data'!$A$2:$A$3717,'Outdoor original data'!$G$2:$G$3717) -> 16778 | C137: =_xlfn.XLOOKUP(A137,'Total covered original data'!$A$2:$A$4431,'Total covered original data'!$G$2:$G$4431) -> 258910 | D137: =_xlfn.XLOOKUP(A137,'Total summed original data'!$A$2:$A$3718,'Total summed original data'!$G$2:$G$3718) -> 258911 | E137: 6.4802441 | F137: 6.480219071 | G137: -2.502884814e-05
A138: 05033 | B138: =_xlfn.XLOOKUP(A138,'Outdoor original data'!$A$2:$A$3717,'Outdoor original data'!$G$2:$G$3717) -> 8548 | C138: =_xlfn.XLOOKUP(A138,'Total covered original data'!$A$2:$A$4431,'Total covered original data'!$G$2:$G$4431) -> 97064 | D138: =_xlfn.XLOOKUP(A138,'Total summed original data'!$A$2:$A$3718,'Total summed original data'!$G$2:$G$3718) -> 97064 | E138: 8.80656062 | F138: 8.80656062 | G138: 0
A139: 05035 | B139: =_xlfn.XLOOKUP(A139,'Outdoor original data'!$A$2:$A$3717,'Outdoor original data'!$G$2:$G$3717) -> 4930 | C139: =_xlfn.XLOOKUP(A139,'Total covered original data'!$A$2:$A$4431,'Total covered original data'!$G$2:$G$4431) -> 78473 | D139: =_xlfn.XLOOKUP(A139,'Total summed original data'!$A$2:$A$3718,'Total summed original data'!$G$2:$G$3718) -> 78473 | E139: 6.282415608 | F139: 6.282415608 | G139: 0
A140: 05037 | B140: =_xlfn.XLOOKUP(A140,'Outdoor original data'!$A$2:$A$3717,'Outdoor original data'!$G$2:$G$3717) -> 2292 | C140: =_xlfn.XLOOKUP(A140,'Total covered original data'!$A$2:$A$4431,'Total covered original data'!$G$2:$G$4431) -> 23500 | D140: =_xlfn.XLOOKUP(A140,'Total summed original data'!$A$2:$A$3718,'Total summed original data'!$G$2:$G$3718) -> 23501 | E140: 9.753191489 | F140: 9.752776478 | G140: -0.000415011765
A141: 05039 | B141: =_xlfn.XLOOKUP(A141,'Outdoor original data'!$A$2:$A$3717,'Outdoor original data'!$G$2:$G$3717) -> 1032 | C141: =_xlfn.XLOOKUP(A141,'Total covered original data'!$A$2:$A$4431,'Total covered original data'!$G$2:$G$4431) -> 13312 | D141: =_xlfn.XLOOKUP(A141,'Total summed original data'!$A$2:$A$3718,'Total summed original data'!$G$2:$G$3718) -> 13313 | E141: 7.752403846 | F141: 7.751821528 | G141: -0.0005823183239
A142: 05041 | B142: =_xlfn.XLOOKUP(A142,'Outdoor original data'!$A$2:$A$3717,'Outdoor original data'!$G$2:$G$3717) -> 2004 | C142: =_xlfn.XLOOKUP(A142,'Total covered original data'!$A$2:$A$4431,'Total covered original data'!$G$2:$G$4431) -> 22476 | D142: =_xlfn.XLOOKUP(A142,'Total summed original data'!$A$2:$A$3718,'Total summed original data'!$G$2:$G$3718) -> 22476 | E142: 8.916177256 | F142: 8.916177256 | G142: 0
A143: 05043 | B143: =_xlfn.XLOOKUP(A143,'Outdoor original data'!$A$2:$A$3717,'Outdoor original data'!$G$2:$G$3717) -> 3279 | C143: =_xlfn.XLOOKUP(A143,'Total covered original data'!$A$2:$A$4431,'Total covered original data'!$G$2:$G$4431) -> 31631 | D143: =_xlfn.XLOOKUP(A143,'Total summed original data'!$A$2:$A$3718,'Total summed original data'!$G$2:$G$3718) -> 31632 | E143: 10.3664127 | F143: 10.36608498 | G143: -0.0003277191672
A144: 05045 | B144: =_xlfn.XLOOKUP(A144,'Outdoor original data'!$A$2:$A$3717,'Outdoor original data'!$G$2:$G$3717) -> 21236 | C144: =_xlfn.XLOOKUP(A144,'Total covered original data'!$A$2:$A$4431,'Total covered original data'!$G$2:$G$4431) -> 205485 | D144: =_xlfn.XLOOKUP(A144,'Total summed original data'!$A$2:$A$3718,'Total summed original data'!$G$2:$G$3718) -> 205489 | E144: 10.3345743 | F144: 10.33437313 | G144: -0.0002011703653
A145: 05047 | B145: =_xlfn.XLOOKUP(A145,'Outdoor original data'!$A$2:$A$3717,'Outdoor original data'!$G$2:$G$3717) -> 2999 | C145: =_xlfn.XLOOKUP(A145,'Total covered original data'!$A$2:$A$4431,'Total covered original data'!$G$2:$G$4431) -> 23623 | D145: =_xlfn.XLOOKUP(A145,'Total summed original data'!$A$2:$A$3718,'Total summed original data'!$G$2:$G$3718) -> 23624 | E145: 12.69525462 | F145: 12.69471724 | G145: -0.0005373880217
A146: 05049 | B146: =_xlfn.XLOOKUP(A146,'Outdoor original data'!$A$2:$A$3717,'Outdoor original data'!$G$2:$G$3717) -> 1199 | C146: =_xlfn.XLOOKUP(A146,'Total covered original data'!$A$2:$A$4431,'Total covered original data'!$G$2:$G$4431) -> 10364 | D146: =_xlfn.XLOOKUP(A146,'Total summed original data'!$A$2:$A$3718,'Total summed original data'!$G$2:$G$3718) -> 10363 | E146: 11.56889232 | F146: 11.57000868 | G146: 0.001116365176
A147: 05051 | B147: =_xlfn.XLOOKUP(A147,'Outdoor original data'!$A$2:$A$3717,'Outdoor original data'!$G$2:$G$3717) -> 16248 | C147: =_xlfn.XLOOKUP(A147,'Total covered original data'!$A$2:$A$4431,'Total covered original data'!$G$2:$G$4431) -> 184963 | D147: =_xlfn.XLOOKUP(A147,'Total summed original data'!$A$2:$A$3718,'Total summed original data'!$G$2:$G$3718) -> 184965 | E147: 8.784459595 | F147: 8.78436461 | G147: -9.498510091e-05
A148: 05053 | B148: =_xlfn.XLOOKUP(A148,'Outdoor original data'!$A$2:$A$3717,'Outdoor original data'!$G$2:$G$3717) -> 1454 | C148: =_xlfn.XLOOKUP(A148,'Total covered original data'!$A$2:$A$4431,'Total covered original data'!$G$2:$G$4431) -> 20910 | D148: =_xlfn.XLOOKUP(A148,'Total summed original data'!$A$2:$A$3718,'Total summed original data'!$G$2:$G$3718) -> 20908 | E148: 6.953610713 | F148: 6.954275875 | G148: 0.0006651626853
A149: 05055 | B149: =_xlfn.XLOOKUP(A149,'Outdoor original data'!$A$2:$A$3717,'Outdoor original data'!$G$2:$G$3717) -> 3741 | C149: =_xlfn.XLOOKUP(A149,'Total covered original data'!$A$2:$A$4431,'Total covered original data'!$G$2:$G$4431) -> 76551 | D149: =_xlfn.XLOOKUP(A149,'Total summed original data'!$A$2:$A$3718,'Total summed original data'!$G$2:$G$3718) -> 76551 | E149: 4.88693812 | F149: 4.88693812 | G149: 0
A150: 05057 | B150: =_xlfn.XLOOKUP(A150,'Outdoor original data'!$A$2:$A$3717,'Outdoor original data'!$G$2:$G$3717) -> 2260 | C150: =_xlfn.XLOOKUP(A150,'Total covered original data'!$A$2:$A$4431,'Total covered original data'!$G$2:$G$4431) -> 38241 | D150: =_xlfn.XLOOKUP(A150,'Total summed original data'!$A$2:$A$3718,'Total summed original data'!$G$2:$G$3718) -> 38241 | E150: 5.909887294 | F150: 5.909887294 | G150: 0
A151: 05059 | B151: =_xlfn.XLOOKUP(A151,'Outdoor original data'!$A$2:$A$3717,'Outdoor original data'!$G$2:$G$3717) -> 3813 | C151: =_xlfn.XLOOKUP(A151,'Total covered original data'!$A$2:$A$4431,'Total covered original data'!$G$2:$G$4431) -> 41072 | D151: =_xlfn.XLOOKUP(A151,'Total summed original data'!$A$2:$A$3718,'Total summed original data'!$G$2:$G$3718) -> 41075 | E151: 9.283696922 | F151: 9.283018868 | G151: -0.0006780545531
A152: 05061 | B152: =_xlfn.XLOOKUP(A152,'Outdoor original data'!$A$2:$A$3717,'Outdoor original data'!$G$2:$G$3717) -> 865 | C152: =_xlfn.XLOOKUP(A152,'Total covered original data'!$A$2:$A$4431,'Total covered original data'!$G$2:$G$4431) -> 32899 | D152: =_xlfn.XLOOKUP(A152,'Total summed original data'!$A$2:$A$3718,'Total summed original data'!$G$2:$G$3718) -> 32899 | E152: 2.629259248 | F152: 2.629259248 | G152: 0
A153: 05063 | B153: =_xlfn.XLOOKUP(A153,'Outdoor original data'!$A$2:$A$3717,'Outdoor original data'!$G$2:$G$3717) -> 5519 | C153: =_xlfn.XLOOKUP(A153,'Total covered original data'!$A$2:$A$4431,'Total covered original data'!$G$2:$G$4431) -> 81298 | D153: =_xlfn.XLOOKUP(A153,'Total summed original data'!$A$2:$A$3718,'Total summed original data'!$G$2:$G$3718) -> 81299 | E153: 6.788604886 | F153: 6.788521384 | G153: -8.350170218e-05
A154: 05065 | B154: =_xlfn.XLOOKUP(A154,'Outdoor original data'!$A$2:$A$3717,'Outdoor original data'!$G$2:$G$3717) -> 681 | C154: =_xlfn.XLOOKUP(A154,'Total covered original data'!$A$2:$A$4431,'Total covered original data'!$G$2:$G$4431) -> 14444 | D154: =_xlfn.XLOOKUP(A154,'Total summed original data'!$A$2:$A$3718,'Total summed original data'!$G$2:$G$3718) -> 14443 | E154: 4.714760454 | F154: 4.715086893 | G154: 0.0003264391369
A155: 05067 | B155: =_xlfn.XLOOKUP(A155,'Outdoor original data'!$A$2:$A$3717,'Outdoor original data'!$G$2:$G$3717) -> 5620 | C155: =_xlfn.XLOOKUP(A155,'Total covered original data'!$A$2:$A$4431,'Total covered original data'!$G$2:$G$4431) -> 25771 | D155: =_xlfn.XLOOKUP(A155,'Total summed original data'!$A$2:$A$3718,'Total summed original data'!$G$2:$G$3718) -> 25772 | E155: 21.807458 | F155: 21.80661183 | G155: -0.0008461686324
A156: 05069 | B156: =_xlfn.XLOOKUP(A156,'Outdoor original data'!$A$2:$A$3717,'Outdoor original data'!$G$2:$G$3717) -> 14924 | C156: =_xlfn.XLOOKUP(A156,'Total covered original data'!$A$2:$A$4431,'Total covered original data'!$G$2:$G$4431) -> 132740 | D156: =_xlfn.XLOOKUP(A156,'Total summed original data'!$A$2:$A$3718,'Total summed original data'!$G$2:$G$3718) -> 132741 | E156: 11.24303149 | F156: 11.24294679 | G156: -8.469901154e-05
A157: 05071 | B157: =_xlfn.XLOOKUP(A157,'Outdoor original data'!$A$2:$A$3717,'Outdoor original data'!$G$2:$G$3717) -> 1340 | C157: =_xlfn.XLOOKUP(A157,'Total covered original data'!$A$2:$A$4431,'Total covered original data'!$G$2:$G$4431) -> 41806 | D157: =_xlfn.XLOOKUP(A157,'Total summed original data'!$A$2:$A$3718,'Total summed original data'!$G$2:$G$3718) -> 41807 | E157: 3.205281539 | F157: 3.20520487 | G157: -7.666853729e-05
A158: 05073 | B158: =_xlfn.XLOOKUP(A158,'Outdoor original data'!$A$2:$A$3717,'Outdoor original data'!$G$2:$G$3717) -> 906 | C158: =_xlfn.XLOOKUP(A158,'Total covered original data'!$A$2:$A$4431,'Total covered original data'!$G$2:$G$4431) -> 5576 | D158: =_xlfn.XLOOKUP(A158,'Total summed original data'!$A$2:$A$3718,'Total summed original data'!$G$2:$G$3718) -> 5577 | E158: 16.2482066 | F158: 16.24529317 | G158: -0.002913431343
A159: 05075 | B159: =_xlfn.XLOOKUP(A159,'Outdoor original data'!$A$2:$A$3717,'Outdoor original data'!$G$2:$G$3717) -> 2141 | C159: =_xlfn.XLOOKUP(A159,'Total covered original data'!$A$2:$A$4431,'Total covered original data'!$G$2:$G$4431) -> 19465 | D159: =_xlfn.XLOOKUP(A159,'Total summed original data'!$A$2:$A$3718,'Total summed original data'!$G$2:$G$3718) -> 19464 | E159: 10.99922939 | F159: 10.99979449 | G159: 0.0005651063186
A160: 05077 | B160: =_xlfn.XLOOKUP(A160,'Outdoor original data'!$A$2:$A$3717,'Outdoor original data'!$G$2:$G$3717) -> 1675 | C160: =_xlfn.XLOOKUP(A160,'Total covered original data'!$A$2:$A$4431,'Total covered original data'!$G$2:$G$4431) -> 8856 | D160: =_xlfn.XLOOKUP(A160,'Total summed original data'!$A$2:$A$3718,'Total summed original data'!$G$2:$G$3718) -> 6336 | E160: 18.9137308 | F160: 26.43623737 | G160: 7.52250657
A161: 05079 | B161: =_xlfn.XLOOKUP(A161,'Outdoor original data'!$A$2:$A$3717,'Outdoor original data'!$G$2:$G$3717) -> 4946 | C161: =_xlfn.XLOOKUP(A161,'Total covered original data'!$A$2:$A$4431,'Total covered original data'!$G$2:$G$4431) -> 13661 | D161: =_xlfn.XLOOKUP(A161,'Total summed original data'!$A$2:$A$3718,'Total summed original data'!$G$2:$G$3718) -> 13663 | E161: 36.20525584 | F161: 36.19995609 | G161: -0.005299752007
A162: 05081 | B162: =_xlfn.XLOOKUP(A162,'Outdoor original data'!$A$2:$A$3717,'Outdoor original data'!$G$2:$G$3717) -> 791 | C162: =_xlfn.XLOOKUP(A162,'Total covered original data'!$A$2:$A$4431,'Total covered original data'!$G$2:$G$4431) -> 16026 | D162: =_xlfn.XLOOKUP(A162,'Total summed original data'!$A$2:$A$3718,'Total summed original data'!$G$2:$G$3718) -> 16025 | E162: 4.93572944 | F162: 4.936037441 | G162: 0.0003080018371
A163: 05083 | B163: =_xlfn.XLOOKUP(A163,'Outdoor original data'!$A$2:$A$3717,'Outdoor original data'!$G$2:$G$3717) -> 1888 | C163: =_xlfn.XLOOKUP(A163,'Total covered original data'!$A$2:$A$4431,'Total covered original data'!$G$2:$G$4431) -> 25869 | D163: =_xlfn.XLOOKUP(A163,'Total summed original data'!$A$2:$A$3718,'Total summed original data'!$G$2:$G$3718) -> 25872 | E163: 7.298310719 | F163: 7.29746444 | G163: -0.0008462790723
A164: 05085 | B164: =_xlfn.XLOOKUP(A164,'Outdoor original data'!$A$2:$A$3717,'Outdoor original data'!$G$2:$G$3717) -> 6582 | C164: =_xlfn.XLOOKUP(A164,'Total covered original data'!$A$2:$A$4431,'Total covered original data'!$G$2:$G$4431) -> 70789 | D164: =_xlfn.XLOOKUP(A164,'Total summed original data'!$A$2:$A$3718,'Total summed original data'!$G$2:$G$3718) -> 70790 | E164: 9.298054783 | F164: 9.297923436 | G164: -0.0001313470092
A165: 05087 | B165: =_xlfn.XLOOKUP(A165,'Outdoor original data'!$A$2:$A$3717,'Outdoor original data'!$G$2:$G$3717) -> 1037 | C165: =_xlfn.XLOOKUP(A165,'Total covered original data'!$A$2:$A$4431,'Total covered original data'!$G$2:$G$4431) -> 17111 | D165: =_xlfn.XLOOKUP(A165,'Total summed original data'!$A$2:$A$3718,'Total summed original data'!$G$2:$G$3718) -> 17113 | E165: 6.060428964 | F165: 6.05972068 | G165: -0.0007082836398
A166: 05089 | B166: =_xlfn.XLOOKUP(A166,'Outdoor original data'!$A$2:$A$3717,'Outdoor original data'!$G$2:$G$3717) -> 360 | C166: =_xlfn.XLOOKUP(A166,'Total covered original data'!$A$2:$A$4431,'Total covered original data'!$G$2:$G$4431) -> 18059 | D166: =_xlfn.XLOOKUP(A166,'Total summed original data'!$A$2:$A$3718,'Total summed original data'!$G$2:$G$3718) -> 18061 | E166: 1.993465862 | F166: 1.993245114 | G166: -0.000220748116
A167: 05091 | B167: =_xlfn.XLOOKUP(A167,'Outdoor original data'!$A$2:$A$3717,'Outdoor original data'!$G$2:$G$3717) -> 7183 | C167: =_xlfn.XLOOKUP(A167,'Total covered original data'!$A$2:$A$4431,'Total covered original data'!$G$2:$G$4431) -> 62683 | D167: =_xlfn.XLOOKUP(A167,'Total summed original data'!$A$2:$A$3718,'Total summed original data'!$G$2:$G$3718) -> 62682 | E167: 11.45924732 | F167: 11.45943014 | G167: 0.0001828155982
A168: 05093 | B168: =_xlfn.XLOOKUP(A168,'Outdoor original data'!$A$2:$A$3717,'Outdoor original data'!$G$2:$G$3717) -> 7702 | C168: =_xlfn.XLOOKUP(A168,'Total covered original data'!$A$2:$A$4431,'Total covered original data'!$G$2:$G$4431) -> 86213 | D168: =_xlfn.XLOOKUP(A168,'Total summed original data'!$A$2:$A$3718,'Total summed original data'!$G$2:$G$3718) -> 86216 | E168: 8.933687495 | F168: 8.933376635 | G168: -0.0003108594981
A169: 05095 | B169: =_xlfn.XLOOKUP(A169,'Outdoor original data'!$A$2:$A$3717,'Outdoor original data'!$G$2:$G$3717) -> 977 | C169: =_xlfn.XLOOKUP(A169,'Total covered original data'!$A$2:$A$4431,'Total covered original data'!$G$2:$G$4431) -> 9756 | D169: =_xlfn.XLOOKUP(A169,'Total summed original data'!$A$2:$A$3718,'Total summed original data'!$G$2:$G$3718) -> 9756 | E169: 10.01435014 | F169: 10.01435014 | G169: 0
A170: 05097 | B170: =_xlfn.XLOOKUP(A170,'Outdoor original data'!$A$2:$A$3717,'Outdoor original data'!$G$2:$G$3717) -> 402 | C170: =_xlfn.XLOOKUP(A170,'Total covered original data'!$A$2:$A$4431,'Total covered original data'!$G$2:$G$4431) -> 6261 | D170: =_xlfn.XLOOKUP(A170,'Total summed original data'!$A$2:$A$3718,'Total summed original data'!$G$2:$G$3718) -> 6262 | E170: 6.420699569 | F170: 6.419674225 | G170: -0.001025343272
A171: 05099 | B171: =_xlfn.XLOOKUP(A171,'Outdoor original data'!$A$2:$A$3717,'Outdoor original data'!$G$2:$G$3717) -> 919 | C171: =_xlfn.XLOOKUP(A171,'Total covered original data'!$A$2:$A$4431,'Total covered original data'!$G$2:$G$4431) -> 11732 | D171: =_xlfn.XLOOKUP(A171,'Total summed original data'!$A$2:$A$3718,'Total summed original data'!$G$2:$G$3718) -> 11732 | E171: 7.833276509 | F171: 7.833276509 | G171: 0
A172: 05101 | B172: =_xlfn.XLOOKUP(A172,'Outdoor original data'!$A$2:$A$3717,'Outdoor original data'!$G$2:$G$3717) -> 339 | C172: =_xlfn.XLOOKUP(A172,'Total covered original data'!$A$2:$A$4431,'Total covered original data'!$G$2:$G$4431) -> 5100 | D172: =_xlfn.XLOOKUP(A172,'Total summed original data'!$A$2:$A$3718,'Total summed original data'!$G$2:$G$3718) -> 3146 | E172: 6.647058824 | F172: 10.77558805 | G172: 4.128529225
A173: 05103 | B173: =_xlfn.XLOOKUP(A173,'Outdoor original data'!$A$2:$A$3717,'Outdoor original data'!$G$2:$G$3717) -> 3632 | C173: =_xlfn.XLOOKUP(A173,'Total covered original data'!$A$2:$A$4431,'Total covered original data'!$G$2:$G$4431) -> 35056 | D173: =_xlfn.XLOOKUP(A173,'Total summed original data'!$A$2:$A$3718,'Total summed original data'!$G$2:$G$3718) -> 35056 | E173: 10.36056595 | F173: 10.36056595 | G173: 0
A174: 05105 | B174: =_xlfn.XLOOKUP(A174,'Outdoor original data'!$A$2:$A$3717,'Outdoor original data'!$G$2:$G$3717) -> 498 | C174: =_xlfn.XLOOKUP(A174,'Total covered original data'!$A$2:$A$4431,'Total covered original data'!$G$2:$G$4431) -> 5577 | D174: =_xlfn.XLOOKUP(A174,'Total summed original data'!$A$2:$A$3718,'Total summed original data'!$G$2:$G$3718) -> 5578 | E174: 8.929532006 | F174: 8.927931158 | G174: -0.001600848334
A175: 05107 | B175: =_xlfn.XLOOKUP(A175,'Outdoor original data'!$A$2:$A$3717,'Outdoor original data'!$G$2:$G$3717) -> 2940 | C175: =_xlfn.XLOOKUP(A175,'Total covered original data'!$A$2:$A$4431,'Total covered original data'!$G$2:$G$4431) -> 25510 | D175: =_xlfn.XLOOKUP(A175,'Total summed original data'!$A$2:$A$3718,'Total summed original data'!$G$2:$G$3718) -> 25510 | E175: 11.5248922 | F175: 11.5248922 | G175: 0
A176: 05109 | B176: =_xlfn.XLOOKUP(A176,'Outdoor original data'!$A$2:$A$3717,'Outdoor original data'!$G$2:$G$3717) -> 387 | C176: =_xlfn.XLOOKUP(A176,'Total covered original data'!$A$2:$A$4431,'Total covered original data'!$G$2:$G$4431) -> 13068 | D176: =_xlfn.XLOOKUP(A176,'Total summed original data'!$A$2:$A$3718,'Total summed original data'!$G$2:$G$3718) -> 13067 | E176: 2.961432507 | F176: 2.961659141 | G176: 0.0002266344614
A177: 05111 | B177: =_xlfn.XLOOKUP(A177,'Outdoor original data'!$A$2:$A$3717,'Outdoor original data'!$G$2:$G$3717) -> 1060 | C177: =_xlfn.XLOOKUP(A177,'Total covered original data'!$A$2:$A$4431,'Total covered original data'!$G$2:$G$4431) -> 26051 | D177: =_xlfn.XLOOKUP(A177,'Total summed original data'!$A$2:$A$3718,'Total summed original data'!$G$2:$G$3718) -> 26052 | E177: 4.068941691 | F177: 4.068785506 | G177: -0.0001561853866
A178: 05113 | B178: =_xlfn.XLOOKUP(A178,'Outdoor original data'!$A$2:$A$3717,'Outdoor original data'!$G$2:$G$3717) -> 1535 | C178: =_xlfn.XLOOKUP(A178,'Total covered original data'!$A$2:$A$4431,'Total covered original data'!$G$2:$G$4431) -> 29025 | D178: =_xlfn.XLOOKUP(A178,'Total summed original data'!$A$2:$A$3718,'Total summed original data'!$G$2:$G$3718) -> 29025 | E178: 5.288544358 | F178: 5.288544358 | G178: 0
A179: 05115 | B179: =_xlfn.XLOOKUP(A179,'Outdoor original data'!$A$2:$A$3717,'Outdoor original data'!$G$2:$G$3717) -> 12720 | C179: =_xlfn.XLOOKUP(A179,'Total covered original data'!$A$2:$A$4431,'Total covered original data'!$G$2:$G$4431) -> 125509 | D179: =_xlfn.XLOOKUP(A179,'Total summed original data'!$A$2:$A$3718,'Total summed original data'!$G$2:$G$3718) -> 125507 | E179: 10.13473137 | F179: 10.13489287 | G179: 0.0001615006553
A180: 05117 | B180: =_xlfn.XLOOKUP(A180,'Outdoor original data'!$A$2:$A$3717,'Outdoor original data'!$G$2:$G$3717) -> 1182 | C180: =_xlfn.XLOOKUP(A180,'Total covered original data'!$A$2:$A$4431,'Total covered original data'!$G$2:$G$4431) -> 7413 | D180: =_xlfn.XLOOKUP(A180,'Total summed original data'!$A$2:$A$3718,'Total summed original data'!$G$2:$G$3718) -> 7412 | E180: 15.94496155 | F180: 15.94711279 | G180: 0.002151236043
A181: 05119 | B181: =_xlfn.XLOOKUP(A181,'Outdoor original data'!$A$2:$A$3717,'Outdoor original data'!$G$2:$G$3717) -> 109382 | C181: =_xlfn.XLOOKUP(A181,'Total covered original data'!$A$2:$A$4431,'Total covered original data'!$G$2:$G$4431) -> 1235716 | D181: =_xlfn.XLOOKUP(A181,'Total summed original data'!$A$2:$A$3718,'Total summed original data'!$G$2:$G$3718) -> 1235714 | E181: 8.851710264 | F181: 8.85172459 | G181: 1.432647079e-05
A182: 05121 | B182: =_xlfn.XLOOKUP(A182,'Outdoor original data'!$A$2:$A$3717,'Outdoor original data'!$G$2:$G$3717) -> 1703 | C182: =_xlfn.XLOOKUP(A182,'Total covered original data'!$A$2:$A$4431,'Total covered original data'!$G$2:$G$4431) -> 29316 | D182: =_xlfn.XLOOKUP(A182,'Total summed original data'!$A$2:$A$3718,'Total summed original data'!$G$2:$G$3718) -> 29318 | E182: 5.809114477 | F182: 5.808718194 | G182: -0.0003962831351
A183: 05123 | B183: =_xlfn.XLOOKUP(A183,'Outdoor original data'!$A$2:$A$3717,'Outdoor original data'!$G$2:$G$3717) -> 4688 | C183: =_xlfn.XLOOKUP(A183,'Total covered original data'!$A$2:$A$4431,'Total covered original data'!$G$2:$G$4431) -> 35003 | D183: =_xlfn.XLOOKUP(A183,'Total summed original data'!$A$2:$A$3718,'Total summed original data'!$G$2:$G$3718) -> 35003 | E183: 13.39313773 | F183: 13.39313773 | G183: 0
A184: 05125 | B184: =_xlfn.XLOOKUP(A184,'Outdoor original data'!$A$2:$A$3717,'Outdoor original data'!$G$2:$G$3717) -> 14252 | C184: =_xlfn.XLOOKUP(A184,'Total covered original data'!$A$2:$A$4431,'Total covered original data'!$G$2:$G$4431) -> 125360 | D184: =_xlfn.XLOOKUP(A184,'Total summed original data'!$A$2:$A$3718,'Total summed original data'!$G$2:$G$3718) -> 125362 | E184: 11.36885769 | F184: 11.36867631 | G184: -0.0001813764568
A185: 05127 | B185: =_xlfn.XLOOKUP(A185,'Outdoor original data'!$A$2:$A$3717,'Outdoor original data'!$G$2:$G$3717) -> 278 | C185: =_xlfn.XLOOKUP(A185,'Total covered original data'!$A$2:$A$4431,'Total covered original data'!$G$2:$G$4431) -> 15112 | D185: =_xlfn.XLOOKUP(A185,'Total summed original data'!$A$2:$A$3718,'Total summed original data'!$G$2:$G$3718) -> 15113 | E185: 1.839597671 | F185: 1.839475948 | G185: -0.0001217228658
A186: 05129 | B186: =_xlfn.XLOOKUP(A186,'Outdoor original data'!$A$2:$A$3717,'Outdoor original data'!$G$2:$G$3717) -> 95 | C186: =_xlfn.XLOOKUP(A186,'Total covered original data'!$A$2:$A$4431,'Total covered original data'!$G$2:$G$4431) -> 7517 | D186: =_xlfn.XLOOKUP(A186,'Total summed original data'!$A$2:$A$3718,'Total summed original data'!$G$2:$G$3718) -> 7518 | E186: 1.263802049 | F186: 1.263633945 | G186: -0.0001681034914
A187: 05131 | B187: =_xlfn.XLOOKUP(A187,'Outdoor original data'!$A$2:$A$3717,'Outdoor original data'!$G$2:$G$3717) -> 22384 | C187: =_xlfn.XLOOKUP(A187,'Total covered original data'!$A$2:$A$4431,'Total covered original data'!$G$2:$G$4431) -> 319466 | D187: =_xlfn.XLOOKUP(A187,'Total summed original data'!$A$2:$A$3718,'Total summed original data'!$G$2:$G$3718) -> 319469 | E187: 7.006692418 | F187: 7.006626621 | G187: -6.579692319e-05
A188: 05133 | B188: =_xlfn.XLOOKUP(A188,'Outdoor original data'!$A$2:$A$3717,'Outdoor original data'!$G$2:$G$3717) -> 861 | C188: =_xlfn.XLOOKUP(A188,'Total covered original data'!$A$2:$A$4431,'Total covered original data'!$G$2:$G$4431) -> 23799 | D188: =_xlfn.XLOOKUP(A188,'Total summed original data'!$A$2:$A$3718,'Total summed original data'!$G$2:$G$3718) -> 23802 | E188: 3.617799067 | F188: 3.61734308 | G188: -0.0004559867743
A189: 05135 | B189: =_xlfn.XLOOKUP(A189,'Outdoor original data'!$A$2:$A$3717,'Outdoor original data'!$G$2:$G$3717) -> 1082 | C189: =_xlfn.XLOOKUP(A189,'Total covered original data'!$A$2:$A$4431,'Total covered original data'!$G$2:$G$4431) -> 17649 | D189: =_xlfn.XLOOKUP(A189,'Total summed original data'!$A$2:$A$3718,'Total summed original data'!$G$2:$G$3718) -> 17651 | E189: 6.130658961 | F189: 6.129964308 | G189: -0.0006946528764
A190: 05137 | B190: =_xlfn.XLOOKUP(A190,'Outdoor original data'!$A$2:$A$3717,'Outdoor original data'!$G$2:$G$3717) -> 377 | C190: =_xlfn.XLOOKUP(A190,'Total covered original data'!$A$2:$A$4431,'Total covered original data'!$G$2:$G$4431) -> 12857 | D190: =_xlfn.XLOOKUP(A190,'Total summed original data'!$A$2:$A$3718,'Total summed original data'!$G$2:$G$3718) -> 12854 | E190: 2.932254803 | F190: 2.932939163 | G190: 0.0006843600753
A191: 05139 | B191: =_xlfn.XLOOKUP(A191,'Outdoor original data'!$A$2:$A$3717,'Outdoor original data'!$G$2:$G$3717) -> 12528 | C191: =_xlfn.XLOOKUP(A191,'Total covered original data'!$A$2:$A$4431,'Total covered original data'!$G$2:$G$4431) -> 83976 | D191: =_xlfn.XLOOKUP(A191,'Total summed original data'!$A$2:$A$3718,'Total summed original data'!$G$2:$G$3718) -> 83976 | E191: 14.91854816 | F191: 14.91854816 | G191: 0
A192: 05141 | B192: =_xlfn.XLOOKUP(A192,'Outdoor original data'!$A$2:$A$3717,'Outdoor original data'!$G$2:$G$3717) -> 1363 | C192: =_xlfn.XLOOKUP(A192,'Total covered original data'!$A$2:$A$4431,'Total covered original data'!$G$2:$G$4431) -> 17593 | D192: =_xlfn.XLOOKUP(A192,'Total summed original data'!$A$2:$A$3718,'Total summed original data'!$G$2:$G$3718) -> 17594 | E192: 7.747399534 | F192: 7.746959191 | G192: -0.0004403432724
A193: 05143 | B193: =_xlfn.XLOOKUP(A193,'Outdoor original data'!$A$2:$A$3717,'Outdoor original data'!$G$2:$G$3717) -> 47888 | C193: =_xlfn.XLOOKUP(A193,'Total covered original data'!$A$2:$A$4431,'Total covered original data'!$G$2:$G$4431) -> 550900 | D193: =_xlfn.XLOOKUP(A193,'Total summed original data'!$A$2:$A$3718,'Total summed original data'!$G$2:$G$3718) -> 550901 | E193: 8.692684698 | F193: 8.692668919 | G193: -1.577903235e-05
A194: 05145 | B194: =_xlfn.XLOOKUP(A194,'Outdoor original data'!$A$2:$A$3717,'Outdoor original data'!$G$2:$G$3717) -> 10817 | C194: =_xlfn.XLOOKUP(A194,'Total covered original data'!$A$2:$A$4431,'Total covered original data'!$G$2:$G$4431) -> 121102 | D194: =_xlfn.XLOOKUP(A194,'Total summed original data'!$A$2:$A$3718,'Total summed original data'!$G$2:$G$3718) -> 121101 | E194: 8.932139849 | F194: 8.932213607 | G194: 7.375777119e-05
A195: 05147 | B195: =_xlfn.XLOOKUP(A195,'Outdoor original data'!$A$2:$A$3717,'Outdoor original data'!$G$2:$G$3717) -> 289 | C195: =_xlfn.XLOOKUP(A195,'Total covered original data'!$A$2:$A$4431,'Total covered original data'!$G$2:$G$4431) -> 8909 | D195: =_xlfn.XLOOKUP(A195,'Total summed original data'!$A$2:$A$3718,'Total summed original data'!$G$2:$G$3718) -> 8909 | E195: =(B195/C195)*100 -> 3.243910652 | F195: =(B195/D195)*100 -> 3.243910652 | G195: =F195-E195 -> 0
A196: 05149 | B196: =_xlfn.XLOOKUP(A196,'Outdoor original data'!$A$2:$A$3717,'Outdoor original data'!$G$2:$G$3717) -> 1520 | C196: =_xlfn.XLOOKUP(A196,'Total covered original data'!$A$2:$A$4431,'Total covered original data'!$G$2:$G$4431) -> 32209 | D196: =_xlfn.XLOOKUP(A196,'Total summed original data'!$A$2:$A$3718,'Total summed original data'!$G$2:$G$3718) -> 32210 | E196: 4.71917787 | F196: 4.719031357 | G196: -0.0001465128181
A197: 05999 | B197: =_xlfn.XLOOKUP(A197,'Outdoor original data'!$A$2:$A$3717,'Outdoor original data'!$G$2:$G$3717) -> 23026 | C197: =_xlfn.XLOOKUP(A197,'Total covered original data'!$A$2:$A$4431,'Total covered original data'!$G$2:$G$4431) -> 195623 | D197: =_xlfn.XLOOKUP(A197,'Total summed original data'!$A$2:$A$3718,'Total summed original data'!$G$2:$G$3718) -> 123857 | E197: 11.77059957 | F197: 18.59079422 | G197: 6.820194651
A198: 06000 | B198: =_xlfn.XLOOKUP(A198,'Outdoor original data'!$A$2:$A$3717,'Outdoor original data'!$G$2:$G$3717) -> 9868333 | C198: =_xlfn.XLOOKUP(A198,'Total covered original data'!$A$2:$A$4431,'Total covered original data'!$G$2:$G$4431) -> 86243812 | D198: =_xlfn.XLOOKUP(A198,'Total summed original data'!$A$2:$A$3718,'Total summed original data'!$G$2:$G$3718) -> 98503463 | E198: 11.44236644 | F198: 10.01825997 | G198: -1.424106472
A199: 06001 | B199: =_xlfn.XLOOKUP(A199,'Outdoor original data'!$A$2:$A$3717,'Outdoor original data'!$G$2:$G$3717) -> 397349 | C199: =_xlfn.XLOOKUP(A199,'Total covered original data'!$A$2:$A$4431,'Total covered original data'!$G$2:$G$4431) -> 3852538 | D199: =_xlfn.XLOOKUP(A199,'Total summed original data'!$A$2:$A$3718,'Total summed original data'!$G$2:$G$3718) -> 3852539 | E199: 10.31395407 | F199: 10.3139514 | G199: -2.677183559e-06
A200: 06003 | B200: =_xlfn.XLOOKUP(A200,'Outdoor original data'!$A$2:$A$3717,'Outdoor original data'!$G$2:$G$3717) -> 191 | C200: =_xlfn.XLOOKUP(A200,'Total covered original data'!$A$2:$A$4431,'Total covered original data'!$G$2:$G$4431) -> 3564 | D200: =_xlfn.XLOOKUP(A200,'Total summed original data'!$A$2:$A$3718,'Total summed original data'!$G$2:$G$3718) -> 2556 | E200: 5.359147026 | F200: 7.472613459 | G200: 2.113466433
... 3517 more rows

Sheet Outdoor original data
A1: area_fips | B1: 2018 | C1: 2019 | D1: 2020 | E1: 2021 | F1: 2022 | G1: SumOfOutdoorIndust
A2: 01000 | B2: 165671 | C2: 171921 | D2: 172110 | E2: 174734 | F2: 179705 | G2: 864141
A3: 01001 | B3: 951 | C3: 940 | D3: 914 | E3: 877 | F3: 941 | G3: 4623
A4: 01003 | B4: 5706 | C4: 5895 | D4: 6254 | E4: 6403 | F4: 7036 | G4: 31294
A5: 01005 | B5: 902 | C5: 890 | D5: 847 | E5: 847 | F5: 822 | G5: 4308
A6: 01007 | B6: 704 | C6: 829 | D6: 790 | E6: 723 | F6: 970 | G6: 4016
A7: 01009 | B7: 692 | C7: 735 | D7: 735 | E7: 732 | F7: 786 | G7: 3680
A8: 01011 | B8: 21 | C8: 335 | D8: 72 | E8: 65 | F8: 196 | G8: 689
A9: 01013 | B9: 542 | C9: 553 | D9: 541 | E9: 532 | F9: 539 | G9: 2707
A10: 01015 | B10: 1859 | C10: 1944 | D10: 2102 | E10: 2144 | F10: 2202 | G10: 10251
A11: 01017 | B11: 387 | C11: 610 | D11: 615 | E11: 628 | F11: 612 | G11: 2852
A12: 01019 | B12: 338 | C12: 349 | D12: 324 | E12: 340 | F12: 365 | G12: 1716
A13: 01021 | B13: 770 | C13: 684 | D13: 682 | E13: 678 | F13: 659 | G13: 3473
A14: 01023 | B14: 255 | C14: 264 | D14: 26 | E14: 26 | F14: 553 | G14: 1124
A15: 01025 | B15: 696 | C15: 690 | D15: 371 | E15: 711 | F15: 726 | G15: 3194
A16: 01027 | B16: 188 | C16: 177 | D16: 196 | E16: 196 | F16: 206 | G16: 963
A17: 01029 | B17: 238 | C17: 225 | D17: 305 | E17: 317 | F17: 427 | G17: 1512
A18: 01031 | B18: 623 | C18: 607 | D18: 1199 | E18: 1305 | F18: 1204 | G18: 4938
A19: 01033 | B19: 2060 | C19: 2182 | D19: 2601 | E19: 2723 | F19: 2780 | G19: 12346
A20: 01035 | B20: 128 | C20: 127 | D20: 119 | E20: 120 | F20: 130 | G20: 624
A21: 01037 | B21: 93 | C21: 97 | D21: 95 | E21: 103 | F21: 124 | G21: 512
A22: 01039 | B22: 1157 | C22: 1326 | D22: 1142 | E22: 1148 | F22: 1149 | G22: 5922
A23: 01041 | B23: 257 | C23: 276 | D23: 264 | E23: 278 | F23: 303 | G23: 1378
A24: 01043 | B24: 1584 | C24: 1607 | D24: 1619 | E24: 1641 | F24: 1751 | G24: 8202
A25: 01045 | B25: 742 | C25: 734 | D25: 736 | E25: 774 | F25: 815 | G25: 3801
A26: 01047 | B26: 759 | C26: 823 | D26: 778 | E26: 769 | F26: 712 | G26: 3841
A27: 01049 | B27: 691 | C27: 1087 | D27: 749 | E27: 733 | F27: 832 | G27: 4092
A28: 01051 | B28: 1762 | C28: 1835 | D28: 1898 | E28: 1913 | F28: 1972 | G28: 9380
A29: 01053 | B29: 1279 | C29: 1285 | D29: 1292 | E29: 1239 | F29: 1263 | G29: 6358
A30: 01055 | B30: 1655 | C30: 1288 | D30: 1294 | E30: 1314 | F30: 1309 | G30: 6860
A31: 01057 | B31: 339 | C31: 331 | D31: 307 | E31: 307 | F31: 308 | G31: 1592
A32: 01059 | B32: 448 | C32: 465 | D32: 436 | E32: 462 | F32: 468 | G32: 2279
A33: 01061 | B33: 284 | C33: 230 | D33: 236 | E33: 660 | F33: 693 | G33: 2103
A34: 01063 | B34: 90 | C34: 95 | D34: 74 | E34: 80 | F34: 102 | G34: 441
A35: 01065 | B35: 195 | C35: 189 | D35: 187 | E35: 381 | F35: 406 | G35: 1358
A36: 01067 | B36: 603 | C36: 575 | D36: 610 | E36: 594 | F36: 589 | G36: 2971
A37: 01069 | B37: 2242 | C37: 2367 | D37: 2292 | E37: 2333 | F37: 2353 | G37: 11587
A38: 01071 | B38: 658 | C38: 746 | D38: 722 | E38: 721 | F38: 780 | G38: 3627
A39: 01073 | B39: 30579 | C39: 31553 | D39: 31062 | E39: 31342 | F39: 32376 | G39: 156912
A40: 01075 | B40: 136 | C40: 130 | D40: 120 | E40: 125 | F40: 134 | G40: 645
A41: 01077 | B41: 1761 | C41: 1754 | D41: 1744 | E41: 1821 | F41: 1824 | G41: 8904
A42: 01079 | B42: 533 | C42: 568 | D42: 424 | E42: 575 | F42: 549 | G42: 2649
A43: 01081 | B43: 3689 | C43: 3532 | D43: 3608 | E43: 4210 | F43: 4508 | G43: 19547
A44: 01083 | B44: 4011 | C44: 3820 | D44: 3698 | E44: 4297 | F44: 4181 | G44: 20007
A45: 01085 | B45: 125 | C45: 121 | D45: 119 | E45: 113 | F45: 131 | G45: 609
A46: 01087 | B46: 44 | C46: 203 | D46: 121 | E46: 109 | F46: 195 | G46: 672
A47: 01089 | B47: 8684 | C47: 9784 | D47: 10953 | E47: 11885 | F47: 12455 | G47: 53761
A48: 01091 | B48: 773 | C48: 857 | D48: 810 | E48: 864 | F48: 884 | G48: 4188
A49: 01093 | B49: 319 | C49: 356 | D49: 392 | E49: 398 | F49: 381 | G49: 1846
A50: 01095 | B50: 1753 | C50: 1833 | D50: 1838 | E50: 1861 | F50: 1954 | G50: 9239
A51: 01097 | B51: 15935 | C51: 16097 | D51: 15709 | E51: 16193 | F51: 16997 | G51: 80931
A52: 01099 | B52: 230 | C52: 240 | D52: 356 | E52: 569 | F52: 599 | G52: 1994
A53: 01101 | B53: 10329 | C53: 10619 | D53: 11094 | E53: 11419 | F53: 11441 | G53: 54902
A54: 01103 | B54: 3779 | C54: 3956 | D54: 4188 | E54: 4265 | F54: 4185 | G54: 20373
A55: 01105 | B55: 113 | C55: 116 | D55: 108 | E55: 107 | F55: 110 | G55: 554
A56: 01107 | B56: 441 | C56: 420 | D56: 437 | E56: 456 | F56: 464 | G56: 2218
A57: 01109 | B57: 513 | C57: 514 | D57: 541 | E57: 532 | F57: 400 | G57: 2500
A58: 01111 | B58: 338 | C58: 351 | D58: 359 | E58: 306 | F58: 216 | G58: 1570
A59: 01113 | B59: 914 | C59: 957 | D59: 849 | E59: 884 | F59: 1011 | G59: 4615
A60: 01115 | B60: 1938 | C60: 2137 | D60: 2023 | E60: 2364 | F60: 2365 | G60: 10827
A61: 01117 | B61: 8326 | C61: 8196 | D61: 7968 | E61: 7707 | F61: 7974 | G61: 40171
A62: 01119 | B62: 140 | C62: 134 | D62: 122 | E62: 118 | F62: 119 | G62: 633
A63: 01121 | B63: 1819 | C63: 1978 | D63: 2120 | E63: 2133 | F63: 2291 | G63: 10341
A64: 01123 | B64: 604 | C64: 562 | D64: 604 | E64: 627 | F64: 661 | G64: 3058
A65: 01125 | B65: 6862 | C65: 7448 | D65: 7163 | E65: 6479 | F65: 6610 | G65: 34562
A66: 01127 | B66: 1692 | C66: 1596 | D66: 1403 | E66: 1309 | F66: 1254 | G66: 7254
A67: 01129 | B67: 433 | C67: 405 | D67: 362 | E67: 360 | F67: 395 | G67: 1955
A68: 01131 | B68: 204 | C68: 207 | D68: 204 | E68: 235 | F68: 233 | G68: 1083
A69: 01133 | B69: 199 | C69: 198 | D69: 196 | E69: 343 | F69: 241 | G69: 1177
A70: 01999 | B70: 6580 | C70: 7704 | D70: 7836 | E70: 7311 | F70: 1067 | G70: 30498
A71: 02000 | B71: 42775 | C71: 44245 | D71: 40335 | E71: 41830 | F71: 42622 | G71: 211807
A72: 02013 | B72: 22 | C72: 9 | D72: 10 | E72: 10 | F72: 11 | G72: 62
A73: 02016 | B73: 38 | C73: 69 | D73: 52 | E73: 54 | F73: 55 | G73: 268
A74: 02020 | B74: 16944 | C74: 17226 | D74: 16386 | E74: 16719 | F74: 16741 | G74: 84016
A75: 02050 | B75: 317 | C75: 396 | D75: 377 | E75: 370 | F75: 367 | G75: 1827
A76: 02060 | B76: 7 | C76: 53 | D76: 61 | E76: 6 | F76: 10 | G76: 137
A77: 02063 | D77: 311 | E77: 179 | F77: 178 | G77: 668
A78: 02066 | D78: 7 | E78: 32 | F78: 44 | G78: 83
A79: 02068 | B79: 32 | C79: 5 | D79: 36 | E79: 37 | F79: 46 | G79: 156
A80: 02070 | B80: 45 | C80: 38 | D80: 40 | E80: 38 | F80: 37 | G80: 198
A81: 02090 | B81: 4871 | C81: 4747 | D81: 4892 | E81: 4951 | F81: 3593 | G81: 23054
A82: 02100 | B82: 98 | C82: 102 | D82: 97 | E82: 109 | F82: 115 | G82: 521
A83: 02105 | B83: 13 | C83: 17 | D83: 16 | E83: 12 | F83: 37 | G83: 95
A84: 02110 | B84: 1982 | C84: 1968 | D84: 1084 | E84: 1128 | F84: 2116 | G84: 8278
A85: 02122 | B85: 2742 | C85: 2852 | D85: 2777 | E85: 2795 | F85: 2653 | G85: 13819
A86: 02130 | B86: 465 | C86: 441 | D86: 415 | E86: 432 | F86: 439 | G86: 2192
A87: 02150 | B87: 252 | C87: 269 | D87: 250 | E87: 254 | F87: 366 | G87: 1391
A88: 02158 | B88: 42 | C88: 73 | D88: 68 | E88: 63 | F88: 72 | G88: 318
A89: 02164 | B89: 77 | C89: 50 | D89: 14 | E89: 13 | F89: 38 | G89: 192
A90: 02170 | B90: 3377 | C90: 3686 | D90: 4144 | E90: 4305 | F90: 4863 | G90: 20375
A91: 02180 | B91: 200 | C91: 167 | D91: 168 | E91: 154 | F91: 180 | G91: 869
A92: 02185 | B92: 6029 | C92: 6552 | D92: 5017 | E92: 4429 | F92: 4769 | G92: 26796
A93: 02188 | B93: 54 | C93: 72 | D93: 118 | E93: 114 | F93: 134 | G93: 492
A94: 02195 | B94: 37 | C94: 47 | D94: 47 | E94: 48 | F94: 50 | G94: 229
A95: 02198 | B95: 52 | C95: 99 | D95: 107 | E95: 67 | F95: 68 | G95: 393
A96: 02220 | B96: 268 | C96: 271 | D96: 246 | E96: 267 | F96: 298 | G96: 1350
A97: 02230 | B97: 31 | C97: 25 | D97: 8 | E97: 10 | F97: 11 | G97: 85
A98: 02240 | B98: 154 | C98: 98 | D98: 703 | E98: 833 | F98: 870 | G98: 2658
A99: 02261 | B99: 289 | C99: 411 | G99: 700
A100: 02275 | B100: 54 | C100: 52 | D100: 31 | E100: 5 | F100: 7 | G100: 149
A101: 02282 | B101: 2 | C101: 3 | D101: 3 | E101: 2 | F101: 4 | G101: 14
A102: 02290 | B102: 128 | C102: 121 | D102: 109 | E102: 59 | F102: 113 | G102: 530
A103: 02999 | B103: 93 | C103: 116 | D103: 15 | E103: 119 | F103: 101 | G103: 444
A104: 04000 | B104: 305026 | C104: 320420 | D104: 323440 | E104: 328601 | F104: 345722 | G104: 1623209
A105: 04001 | B105: 1792 | C105: 1750 | D105: 1718 | E105: 1801 | F105: 1781 | G105: 8842
A106: 04003 | B106: 5389 | C106: 5602 | D106: 6617 | E106: 5528 | F106: 5482 | G106: 28618
A107: 04005 | B107: 4318 | C107: 4561 | D107: 4587 | E107: 4497 | F107: 4486 | G107: 22449
A108: 04007 | B108: 1983 | C108: 1791 | D108: 1696 | E108: 1772 | F108: 1901 | G108: 9143
A109: 04009 | B109: 907 | C109: 929 | D109: 943 | E109: 929 | F109: 957 | G109: 4665
A110: 04011 | B110: 136 | C110: 150 | D110: 108 | E110: 129 | F110: 489 | G110: 1012
A111: 04012 | B111: 817 | C111: 786 | D111: 863 | E111: 792 | F111: 765 | G111: 4023
A112: 04013 | B112: 194148 | C112: 206672 | D112: 209285 | E112: 214372 | F112: 226880 | G112: 1051357
A113: 04015 | B113: 5082 | C113: 5259 | D113: 5583 | E113: 5474 | F113: 5758 | G113: 27156
A114: 04017 | B114: 2915 | C114: 2807 | D114: 2784 | E114: 2962 | F114: 2369 | G114: 13837
A115: 04019 | B115: 34647 | C115: 36617 | D115: 36684 | E115: 36795 | F115: 38178 | G115: 182921
A116: 04021 | B116: 8580 | C116: 8086 | D116: 7958 | E116: 8377 | F116: 8101 | G116: 41102
A117: 04023 | B117: 1768 | C117: 1845 | D117: 1902 | E117: 2262 | F117: 2233 | G117: 10010
A118: 04025 | B118: 9051 | C118: 9527 | D118: 9880 | E118: 10176 | F118: 10567 | G118: 49201
A119: 04027 | B119: 18544 | C119: 18254 | D119: 17048 | E119: 16405 | F119: 6571 | G119: 76822
A120: 04999 | B120: 1317 | C120: 1668 | D120: 1418 | E120: 1668 | F120: 2676 | G120: 8747
A121: 05000 | B121: 117239 | C121: 120071 | D121: 120272 | E121: 122131 | F121: 130938 | G121: 610651
A122: 05001 | B122: 457 | C122: 490 | D122: 531 | E122: 538 | F122: 622 | G122: 2638
A123: 05003 | B123: 728 | C123: 736 | D123: 624 | E123: 593 | F123: 764 | G123: 3445
A124: 05005 | B124: 827 | C124: 902 | D124: 919 | E124: 870 | F124: 1030 | G124: 4548
A125: 05007 | B125: 8046 | C125: 8580 | D125: 8778 | E125: 9146 | F125: 10158 | G125: 44708
A126: 05009 | B126: 477 | C126: 470 | D126: 887 | E126: 496 | F126: 1277 | G126: 3607
A127: 05011 | B127: 120 | C127: 125 | D127: 113 | E127: 106 | F127: 175 | G127: 639
A128: 05013 | B128: 126 | C128: 136 | D128: 140 | E128: 135 | F128: 114 | G128: 651
A129: 05015 | B129: 548 | C129: 625 | D129: 706 | E129: 715 | F129: 882 | G129: 3476
A130: 05017 | B130: 384 | C130: 391 | D130: 375 | E130: 261 | F130: 458 | G130: 1869
A131: 05019 | B131: 283 | C131: 293 | D131: 299 | E131: 302 | F131: 415 | G131: 1592
A132: 05021 | B132: 448 | C132: 388 | D132: 382 | E132: 406 | F132: 396 | G132: 2020
A133: 05023 | B133: 634 | C133: 634 | D133: 611 | E133: 586 | F133: 651 | G133: 3116
A134: 05025 | B134: 191 | C134: 208 | D134: 199 | E134: 157 | F134: 172 | G134: 927
A135: 05027 | B135: 578 | C135: 719 | D135: 679 | E135: 563 | F135: 763 | G135: 3302
A136: 05029 | B136: 915 | C136: 935 | D136: 936 | E136: 924 | F136: 973 | G136: 4683
A137: 05031 | B137: 3149 | C137: 3141 | D137: 3138 | E137: 3378 | F137: 3972 | G137: 16778
A138: 05033 | B138: 1722 | C138: 1704 | D138: 1739 | E138: 1695 | F138: 1688 | G138: 8548
A139: 05035 | B139: 1014 | C139: 1002 | D139: 986 | E139: 911 | F139: 1017 | G139: 4930
A140: 05037 | B140: 399 | C140: 399 | D140: 400 | E140: 385 | F140: 709 | G140: 2292
A141: 05039 | B141: 199 | C141: 200 | D141: 195 | E141: 179 | F141: 259 | G141: 1032
A142: 05041 | B142: 402 | C142: 418 | D142: 420 | E142: 373 | F142: 391 | G142: 2004
A143: 05043 | B143: 629 | C143: 682 | D143: 645 | E143: 642 | F143: 681 | G143: 3279
A144: 05045 | B144: 4033 | C144: 4177 | D144: 4082 | E144: 4250 | F144: 4694 | G144: 21236
A145: 05047 | B145: 601 | C145: 689 | D145: 614 | E145: 470 | F145: 625 | G145: 2999
A146: 05049 | B146: 142 | C146: 226 | D146: 247 | E146: 279 | F146: 305 | G146: 1199
A147: 05051 | B147: 3062 | C147: 3245 | D147: 3152 | E147: 3173 | F147: 3616 | G147: 16248
A148: 05053 | B148: 262 | C148: 280 | D148: 279 | E148: 302 | F148: 331 | G148: 1454
A149: 05055 | B149: 630 | C149: 603 | D149: 637 | E149: 669 | F149: 1202 | G149: 3741
A150: 05057 | B150: 323 | C150: 418 | D150: 401 | E150: 405 | F150: 713 | G150: 2260
A151: 05059 | B151: 507 | C151: 658 | D151: 656 | E151: 655 | F151: 1337 | G151: 3813
A152: 05061 | B152: 210 | C152: 166 | D152: 145 | E152: 137 | F152: 207 | G152: 865
A153: 05063 | B153: 944 | C153: 960 | D153: 1059 | E153: 1296 | F153: 1260 | G153: 5519
A154: 05065 | B154: 106 | C154: 97 | D154: 90 | E154: 92 | F154: 296 | G154: 681
A155: 05067 | B155: 1087 | C155: 1096 | D155: 1131 | E155: 1127 | F155: 1179 | G155: 5620
A156: 05069 | B156: 3007 | C156: 2954 | D156: 2946 | E156: 2843 | F156: 3174 | G156: 14924
A157: 05071 | B157: 238 | C157: 271 | D157: 240 | E157: 235 | F157: 356 | G157: 1340
A158: 05073 | B158: 184 | C158: 180 | D158: 170 | E158: 165 | F158: 207 | G158: 906
A159: 05075 | B159: 441 | C159: 373 | D159: 415 | E159: 441 | F159: 471 | G159: 2141
A160: 05077 | B160: 300 | C160: 279 | D160: 265 | E160: 239 | F160: 592 | G160: 1675
A161: 05079 | B161: 959 | C161: 966 | D161: 955 | E161: 1038 | F161: 1028 | G161: 4946
A162: 05081 | B162: 214 | C162: 197 | D162: 115 | E162: 112 | F162: 153 | G162: 791
A163: 05083 | B163: 410 | C163: 363 | D163: 320 | E163: 341 | F163: 454 | G163: 1888
A164: 05085 | B164: 1055 | C164: 1084 | D164: 1081 | E164: 1567 | F164: 1795 | G164: 6582
A165: 05087 | B165: 193 | C165: 198 | D165: 219 | E165: 232 | F165: 195 | G165: 1037
A166: 05089 | B166: 41 | C166: 39 | D166: 38 | E166: 134 | F166: 108 | G166: 360
A167: 05091 | B167: 1385 | C167: 1427 | D167: 1400 | E167: 1410 | F167: 1561 | G167: 7183
A168: 05093 | B168: 1401 | C168: 1453 | D168: 1431 | E168: 1346 | F168: 2071 | G168: 7702
A169: 05095 | B169: 199 | C169: 201 | D169: 193 | E169: 180 | F169: 204 | G169: 977
A170: 05097 | B170: 81 | C170: 77 | D170: 70 | E170: 78 | F170: 96 | G170: 402
A171: 05099 | B171: 193 | C171: 182 | D171: 178 | E171: 165 | F171: 201 | G171: 919
A172: 05101 | B172: 46 | C172: 67 | D172: 75 | E172: 71 | F172: 80 | G172: 339
A173: 05103 | B173: 645 | C173: 669 | D173: 617 | E173: 629 | F173: 1072 | G173: 3632
A174: 05105 | B174: 100 | C174: 102 | D174: 104 | E174: 95 | F174: 97 | G174: 498
A175: 05107 | B175: 577 | C175: 562 | D175: 591 | E175: 591 | F175: 619 | G175: 2940
A176: 05109 | B176: 78 | C176: 83 | D176: 79 | E176: 70 | F176: 77 | G176: 387
A177: 05111 | B177: 202 | C177: 185 | D177: 193 | E177: 195 | F177: 285 | G177: 1060
A178: 05113 | B178: 272 | C178: 281 | D178: 278 | E178: 292 | F178: 412 | G178: 1535
A179: 05115 | B179: 2540 | C179: 2540 | D179: 2595 | E179: 2732 | F179: 2313 | G179: 12720
A180: 05117 | B180: 236 | C180: 224 | D180: 239 | E180: 225 | F180: 258 | G180: 1182
A181: 05119 | B181: 19367 | C181: 22571 | D181: 21850 | E181: 22101 | F181: 23493 | G181: 109382
A182: 05121 | B182: 213 | C182: 203 | D182: 429 | E182: 420 | F182: 438 | G182: 1703
A183: 05123 | B183: 798 | C183: 987 | D183: 993 | E183: 800 | F183: 1110 | G183: 4688
A184: 05125 | B184: 2602 | C184: 2651 | D184: 2822 | E184: 2855 | F184: 3322 | G184: 14252
A185: 05127 | B185: 50 | C185: 52 | D185: 68 | E185: 61 | F185: 47 | G185: 278
A186: 05129 | B186: 30 | C186: 15 | D186: 15 | E186: 17 | F186: 18 | G186: 95
A187: 05131 | B187: 4374 | C187: 4415 | D187: 4304 | E187: 4236 | F187: 5055 | G187: 22384
A188: 05133 | B188: 52 | C188: 49 | D188: 50 | E188: 344 | F188: 366 | G188: 861
A189: 05135 | B189: 255 | C189: 210 | D189: 208 | E189: 169 | F189: 240 | G189: 1082
A190: 05137 | B190: 77 | C190: 76 | D190: 71 | E190: 57 | F190: 96 | G190: 377
A191: 05139 | B191: 2484 | C191: 2579 | D191: 2372 | E191: 2477 | F191: 2616 | G191: 12528
A192: 05141 | B192: 404 | C192: 341 | D192: 228 | E192: 218 | F192: 172 | G192: 1363
A193: 05143 | B193: 8733 | C193: 9196 | D193: 9459 | E193: 9841 | F193: 10659 | G193: 47888
A194: 05145 | B194: 1873 | C194: 1955 | D194: 2055 | E194: 2294 | F194: 2640 | G194: 10817
A195: 05147 | B195: 55 | C195: 52 | D195: 51 | E195: 50 | F195: 81 | G195: 289
A196: 05149 | B196: 289 | C196: 292 | D196: 285 | E196: 267 | F196: 387 | G196: 1520
A197: 05999 | B197: 4154 | C197: 4255 | D197: 4615 | E197: 4647 | F197: 5355 | G197: 23026
A198: 06000 | B198: 1928308 | C198: 1967820 | D198: 1947691 | E198: 1991963 | F198: 2032551 | G198: 9868333
A199: 06001 | B199: 78286 | C199: 79561 | D199: 77579 | E199: 80369 | F199: 81554 | G199: 397349
A200: 06003 | B200: 33 | C200: 36 | D200: 33 | E200: 31 | F200: 58 | G200: 191
... 3517 more rows

Sheet Methods and Notes
A1: Methods and Notes
A3: GENERAL NOTES
B4: Note for these data: ‘Total Covered’ is not the sum of the other ownership levels, due to non-disclosure to protect the identity of respondents. Please see BLS QCEW Q&A #9, #13, and #14 for a detailed explanation of QCEW methods and non-disclosure policy.
B5: Data last updated 4/15/2024
A7: OBTAIN DATA
B8: Start at: https://www.bls.gov/cew/downloadable-data-files.htm
B9: Download "CSVs By Industry, Annual Averages" individually for 2018-2022
B10: Unzip folder and select industries in the following codes (based in the file names):
B12: For comparison, 10, Total, all industries
A13: Occupation | B13: NAICS Sector
A14: Agriculture and fishing | B14: NAICS Sector 11—Agriculture, forestry, fishing, and hunting
A15: Construction | B15: NAICS Sector 23—Construction
A16: Mining | B16: NAICS Sector 21—Mining, quarrying, and oil and gas extraction
A17: Emergency responders | B17: NAICS Sector 6242—Emergency and other relief services
A18: Other outdoor workers | B18: NAICS Sectors 4911, 4921, 4922 (delivery), 9221 (police), 5621—5629, 22 (utility)
A20: PROCESS DATA
A22: Run the python script 'OHD_script_ownership'. You should only have to change the base file path 'dir_name' to point to where you have saved the BLS data. In future data updates, will need to retrofit to intake a different set of 5 years, or manually change the 5 years in the script.
A24: Python will output an Excel table named 'pivot_AllYears_outdoors'. Paste this into the 'Outdoor Original Data' worksheet.
A25: Python will output an Excel table called 'pivot_AllYears_allcovered'. Paste this into the 'Total Covered Original Data' worksheet.
A26: Python will output an Excel table called' pivot_AllYears_total_own'. Paste this into the 'Total Summed Original Data' worksheet.
A27: We do not use the 'Total Summed Original Data' worksheet. It is only there to point out the differences arising from disclosure (see note in General Notes above).
A29: The summed values from the 'Outdoor Original Data' and 'Total Covered Original Data' worksheets should get pulled into the 'Mapping File' worksheet automatically.
